Workbook

Sheet Lâmina Comparativa
E1: FIA`s - Lâmina Comparativa e Fund Guide
B2: Ações
B3: Patrimônio>: | D3: 1000000000 | E3: ← Determine um Valor de Patrimônio
B4: Dta. Últ. Cot.: | D4: =_xlfn.SINGLE(IF(D5="",WORKDAY.INTL(_xll.ECONOMATICA("CDI ACUMULADO","DATE OF LAST QUOTE"),-2,1),D5)) -> 2024-09-25 | E4: ← Não Modificar
B5: Dta. Pref. Últ. Cot.: | E5: ← Para alterar a data da Célula D4, basta digitar na Célula D5
C6: ↓ Selecionar Os Fundo
B7: Nº | C7: Fundos Analisados | D7: =_xll.ECONOMATICA($H$8:$H$13,"Fund manager",,,,,,,,,"Empresa Gestora") -> Empresa Gestora | F7: =_xll.ECONOMATICA($H$8:$H$13,"Anbima classification") -> Classificação Anbima | H7: Código | I7: =_xll.ECONOMATICA($H$8:$H$13,"Date of Last Quote",,,,,,,,,"Últ. Cotação") -> Últ. Cotação | J7: =_xll.ECONOMATICA($H$8:$H$13,"Series Start Date",,,,,,,,,"Inc. Serie") -> Inc. Serie | K7: =_xll.ECONOMATICA(H8:H13,"net assets",,$D$4,,,,,,,"Patrimônio") -> Patrimônio | L7: =_xll.ECONOMATICA($H$8:$H$13,"Tot Invest",,$D$4,,,,,,,"QTD. Cotistas") -> QTD. Cotistas | M7: =_xll.ECONOMATICA($H$8:$H$13,"Purchase conversion date",,,,,,,,,"Aplicação") -> Aplicação | N7: =_xll.ECONOMATICA($H$8:$H$13,"Redemption conversion date",,,,,,,,,"Resgate") -> Resgate | O7: =_xll.ECONOMATICA($H$8:$H$13,"Redemption Payment date",,,,,,,,,"Pagamento") -> Pagamento
B8: 1 | C8: Absolute Pace Lb Master FIA | D8: Absolute | F8: Ações Livre | H8: =VLOOKUP(C8,'Fund Guide'!$C:$D,2,0) -> 488542 | I8: 2024-09-26 | J8: 2018-12-27 | K8: 3575760101 | L8: 1900-01-08 | M8: D+001 | N8: D+001 | O8: D+003
B9: 2 | C9: Real Investor Fc FIA - Bdr Nivel I | D9: Real Investor Asset Management Ltda. | F9: Ações Livre | H9: =VLOOKUP(C9,'Fund Guide'!$C:$D,2,0) -> 298761 | I9: 2024-09-26 | J9: 2012-02-29 | K9: 2013014501 | L9: 1981-09-01 | M9: D+001 | N9: D+027 | O9: D+029
B10: 3 | C10: Nucleo Master FIA | D10: Nucleo Capital Ltda | F10: Ações Livre | H10: =VLOOKUP(C10,'Fund Guide'!$C:$D,2,0) -> 296880 | I10: 2024-09-26 | J10: 2012-01-31 | K10: 1615382018 | L10: 1900-01-14 | M10: D+000 | N10: D+000 | O10: D+002
B11: 4 | C11: Absolute Pace Long Biased Fc FIA | D11: Absolute | F11: Ações Livre | H11: =VLOOKUP(C11,'Fund Guide'!$C:$D,2,0) -> 485675 | I11: 2024-09-26 | J11: 2018-12-27 | K11: 1931806690 | L11: 1915-06-25 | M11: D+001 | N11: D+030 | O11: D+032
B12: 5 | C12: Alaska Institucional FIA | D12: Alaska Investimentos | F12: Ações Livre | H12: =VLOOKUP(C12,'Fund Guide'!$C:$D,2,0) -> 435325 | I12: 2024-09-26 | J12: 2017-02-21 | K12: 1077993882 | L12: 2024-02-07 | M12: D+001 | N12: D+030 | O12: D+032
B13: 6 | C13: Atena FIA Ie | D13: Spn Gestao de Investimentos | F13: Ações Invest. no Exterior | H13: =VLOOKUP(C13,'Fund Guide'!$C:$D,2,0) -> 226106 | I13: 2024-09-26 | J13: 2009-04-08 | K13: 2793330528 | L13: 1900-01-05 | M13: D+001 | N13: D+001 | O13: D+005
B15: Perfil de Risco e Retorno
B16: Nome do Fundo | D16: 1D | E16: 1M | F16: 3M | G16: 6M | H16: 12M | I16: 24M | J16: 36M | K16: Volatilidade | L16: Sharpe | M16: InfoRatio | N16: Melhor Mês | O16: Pior Mês
B17: =IF(C8=0,"",C8) -> Absolute Pace Lb Master FIA | D17: =IFERROR(_xll.ECONOMATICA($H$8,"return",D$16,$D$4,,,,"decimal"),"") -> -0.01226140833 | E17: =IFERROR(_xll.ECONOMATICA($H$8,"return",E$16,$D$4,,,,"decimal"),"") -> -0.04321535358 | F17: =IFERROR(_xll.ECONOMATICA($H$8,"return",F$16,$D$4,,,,"decimal"),"") -> 0.09542852403 | G17: =IFERROR(_xll.ECONOMATICA($H$8,"return",G$16,$D$4,,,,"decimal"),"") -> 0.03298147216 | H17: =IFERROR(_xll.ECONOMATICA($H$8,"return",H$16,$D$4,,,,"decimal"),"") -> 0.197562981 | I17: =IFERROR(_xll.ECONOMATICA($H$8,"return",I$16,$D$4,,,,"decimal"),"") -> 0.4350455821 | J17: =IFERROR(_xll.ECONOMATICA($H$8,"return",J$16,$D$4,,,,"decimal"),"") -> 0.7037212841 | K17: =IFERROR(_xll.ECONOMATICA($H$8,"volatility",,$D$4,,,,"decimal"),"") -> 0.1310177219 | L17: =IFERROR(_xll.ECONOMATICA($H$8,"Sharpe",,$D$4),"") -> 0.6632317152 | M17: =IFERROR(_xll.ECONOMATICA($H$8,"InfoRatio",,$D$4),"") -> 0.7910418936 | N17: =IFERROR(_xll.ECONOMATICA($H$8,"Return M",,$D$4,,,,"decimal",,,,),"") -> 0.10388102 | O17: =IFERROR(_xll.ECONOMATICA($H$8,"Return M",,$D$4,,,,"decimal",,,,{"std.tec.dret.mom=true"}),"") -> -0.03795015471
B18: ="vs. "&$B$29&" (dif. p.p.)" -> vs. IBOV (dif. p.p.) | D18: =IFERROR((D17-D$29)*100,"") -> -0.7953537069 | E18: -1.355629172 | F18: 1.977288078 | G18: -0.3691702747 | H18: 6.24593132 | I18: 25.71798332 | J18: 54.21451136
B19: =IF(C9=0,"",C9) -> Real Investor Fc FIA - Bdr Nivel I | D19: =IFERROR(_xll.ECONOMATICA($H9,"return",D$16,$D$4,,,,"decimal"),"") -> -0.007376754654 | E19: =IFERROR(_xll.ECONOMATICA($H$9,"return",E$16,$D$4,,,,"decimal"),"") -> -0.04597056676 | F19: =IFERROR(_xll.ECONOMATICA($H$9,"return",F$16,$D$4,,,,"decimal"),"") -> 0.04687158173 | G19: =IFERROR(_xll.ECONOMATICA($H$9,"return",G$16,$D$4,,,,"decimal"),"") -> -0.01123798879 | H19: =IFERROR(_xll.ECONOMATICA($H$9,"return",H$16,$D$4,,,,"decimal"),"") -> 0.1247365581 | I19: =IFERROR(_xll.ECONOMATICA($H$9,"return",I$16,$D$4,,,,"decimal"),"") -> 0.2959616349 | J19: =IFERROR(_xll.ECONOMATICA($H$9,"return",J$16,$D$4,,,,"decimal"),"") -> 0.3785723127 | K19: =IFERROR(_xll.ECONOMATICA($H$9,"volatility",,$D$4,,,,"decimal"),"") -> 0.1325956366 | L19: =IFERROR(_xll.ECONOMATICA($H$9,"Sharpe",,$D$4),"") -> 0.1589239268 | M19: =IFERROR(_xll.ECONOMATICA($H$9,"InfoRatio",,$D$4),"") -> -0.1213574533 | N19: =IFERROR(_xll.ECONOMATICA($H$9,"Return M",,$D$4,,,,"decimal",,,,),"") -> 0.1013165957 | O19: =IFERROR(_xll.ECONOMATICA($H$9,"Return M",,$D$4,,,,"decimal",,,,{"std.tec.dret.mom=true"}),"") -> -0.04648265195
B20: ="vs. "&$B$29&" (dif. p.p.)" -> vs. IBOV (dif. p.p.) | D20: =IFERROR((D19-D$29)*100,"") -> -0.3068883397 | E20: -1.63115049 | F20: -2.878406152 | G20: -4.79111637 | H20: -1.03671097 | I20: 11.8095886 | J20: 21.69961423
B21: =IF(C10=0,"",C10) -> Nucleo Master FIA | D21: =IFERROR(_xll.ECONOMATICA($H$10,"return",D$16,$D$4,,,,"decimal"),"") -> -0.01754380134 | E21: =IFERROR(_xll.ECONOMATICA($H$10,"return",E$16,$D$4,,,,"decimal"),"") -> -0.0508988147 | F21: =IFERROR(_xll.ECONOMATICA($H$10,"return",F$16,$D$4,,,,"decimal"),"") -> 0.04216424295 | G21: =IFERROR(_xll.ECONOMATICA($H$10,"return",G$16,$D$4,,,,"decimal"),"") -> -0.03124931873 | H21: =IFERROR(_xll.ECONOMATICA($H$10,"return",H$16,$D$4,,,,"decimal"),"") -> -0.07000798359 | I21: =IFERROR(_xll.ECONOMATICA($H$10,"return",I$16,$D$4,,,,"decimal"),"") -> -0.03750688033 | J21: =IFERROR(_xll.ECONOMATICA($H$10,"return",J$16,$D$4,,,,"decimal"),"") -> -0.1861238371 | K21: =IFERROR(_xll.ECONOMATICA($H$10,"volatility",,$D$4,,,,"decimal"),"") -> 0.1813667224 | L21: =IFERROR(_xll.ECONOMATICA($H$10,"Sharpe",,$D$4),"") -> -0.8220161488 | M21: =IFERROR(_xll.ECONOMATICA($H$10,"InfoRatio",,$D$4),"") -> -1.477597925 | N21: =IFERROR(_xll.ECONOMATICA($H$10,"Return M",,$D$4,,,,"decimal",,,,),"") -> 0.1753866229 | O21: =IFERROR(_xll.ECONOMATICA($H$10,"Return M",,$D$4,,,,"decimal",,,,{"std.tec.dret.mom=true"}),"") -> -0.09767852262
B22: ="vs. "&$B$29&" (dif. p.p.)" -> vs. IBOV (dif. p.p.) | D22: =IFERROR((D21-D$29)*100,"") -> -1.323593008 | E22: -2.123975285 | F22: -3.34914003 | G22: -6.792249364 | H22: -20.51116514 | I22: -21.53726292 | J22: -34.77000076
B23: =IF(C11=0,"",C11) -> Absolute Pace Long Biased Fc FIA | D23: =IFERROR(_xll.ECONOMATICA($H$11,"return",D$16,$D$4,,,,"decimal"),"") -> -0.01184793125 | E23: =IFERROR(_xll.ECONOMATICA($H$11,"return",E$16,$D$4,,,,"decimal"),"") -> -0.03829387425 | F23: =IFERROR(_xll.ECONOMATICA($H$11,"return",F$16,$D$4,,,,"decimal"),"") -> 0.08871845109 | G23: =IFERROR(_xll.ECONOMATICA($H$11,"return",G$16,$D$4,,,,"decimal"),"") -> 0.0227501704 | H23: =IFERROR(_xll.ECONOMATICA($H$11,"return",H$16,$D$4,,,,"decimal"),"") -> 0.1575406222 | I23: =IFERROR(_xll.ECONOMATICA($H$11,"return",I$16,$D$4,,,,"decimal"),"") -> 0.3475361636 | J23: =IFERROR(_xll.ECONOMATICA($H$11,"return",J$16,$D$4,,,,"decimal"),"") -> 0.5654851531 | K23: =IFERROR(_xll.ECONOMATICA($H$11,"volatility",,$D$4,,,,"decimal"),"") -> 0.1242610338 | L23: =IFERROR(_xll.ECONOMATICA($H$11,"Sharpe",,$D$4),"") -> 0.4000580188 | M23: =IFERROR(_xll.ECONOMATICA($H$11,"InfoRatio",,$D$4),"") -> 0.2799409461 | N23: =IFERROR(_xll.ECONOMATICA($H$11,"Return M",,$D$4,,,,"decimal",,,,),"") -> 0.09580518307 | O23: =IFERROR(_xll.ECONOMATICA($H$11,"Return M",,$D$4,,,,"decimal",,,,{"std.tec.dret.mom=true"}),"") -> -0.03950998351
B24: ="vs. "&$B$29&" (dif. p.p.)" -> vs. IBOV (dif. p.p.) | D24: =IFERROR((D23-D$29)*100,"") -> -0.7540059994 | E24: -0.8634812392 | F24: 1.306280784 | G24: -1.392300451 | H24: 2.243695437 | I24: 16.96704148 | J24: 40.39089826
B25: =IF(C12=0,"",C12) -> Alaska Institucional FIA | D25: =IFERROR(_xll.ECONOMATICA($H$12,"return",D$16,$D$4,,,,"decimal"),"") -> -0.01159441166 | E25: =IFERROR(_xll.ECONOMATICA($H$12,"return",E$16,$D$4,,,,"decimal"),"") -> -0.06970792445 | F25: =IFERROR(_xll.ECONOMATICA($H$12,"return",F$16,$D$4,,,,"decimal"),"") -> -0.0162016263 | G25: =IFERROR(_xll.ECONOMATICA($H$12,"return",G$16,$D$4,,,,"decimal"),"") -> -0.1032462162 | H25: =IFERROR(_xll.ECONOMATICA($H$12,"return",H$16,$D$4,,,,"decimal"),"") -> -0.05855583157 | I25: =IFERROR(_xll.ECONOMATICA($H$12,"return",I$16,$D$4,,,,"decimal"),"") -> 0.07362171769 | J25: =IFERROR(_xll.ECONOMATICA($H$12,"return",J$16,$D$4,,,,"decimal"),"") -> 0.1461374279 | K25: =IFERROR(_xll.ECONOMATICA($H$12,"volatility",,$D$4,,,,"decimal"),"") -> 0.1959647461 | L25: =IFERROR(_xll.ECONOMATICA($H$12,"Sharpe",,$D$4),"") -> -0.6954406097 | M25: =IFERROR(_xll.ECONOMATICA($H$12,"InfoRatio",,$D$4),"") -> -1.546578819 | N25: =IFERROR(_xll.ECONOMATICA($H$12,"Return M",,$D$4,,,,"decimal",,,,),"") -> 0.1621184367 | O25: =IFERROR(_xll.ECONOMATICA($H$12,"Return M",,$D$4,,,,"decimal",,,,{"std.tec.dret.mom=true"}),"") -> -0.05271617549
B26: ="vs. "&$B$29&" (dif. p.p.)" -> vs. IBOV (dif. p.p.) | D26: =IFERROR((D25-D$29)*100,"") -> -0.7286540399 | E26: -4.00488626 | F26: -9.185726955 | G26: -13.99193911 | H26: -19.36594994 | I26: -10.42440312 | J26: -1.543874254
B27: =IF(C13=0,"",C13) -> Atena FIA Ie | D27: =IFERROR(_xll.ECONOMATICA($H$13,"return",D$16,$D$4,,,,"decimal"),"") -> 0.0002862747297 | E27: =IFERROR(_xll.ECONOMATICA($H$13,"return",E$16,$D$4,,,,"decimal"),"") -> 0.002567060354 | F27: =IFERROR(_xll.ECONOMATICA($H$13,"return",F$16,$D$4,,,,"decimal"),"") -> 0.03529313156 | G27: =IFERROR(_xll.ECONOMATICA($H$13,"return",G$16,$D$4,,,,"decimal"),"") -> 0.07894953876 | H27: =IFERROR(_xll.ECONOMATICA($H$13,"return",H$16,$D$4,,,,"decimal"),"") -> 0.1888413387 | I27: =IFERROR(_xll.ECONOMATICA($H$13,"return",I$16,$D$4,,,,"decimal"),"") -> 0.276877264 | J27: =IFERROR(_xll.ECONOMATICA($H$13,"return",J$16,$D$4,,,,"decimal"),"") -> -0.1744318929 | K27: =IFERROR(_xll.ECONOMATICA($H$13,"volatility",,$D$4,,,,"decimal"),"") -> 0.1175761339 | L27: =IFERROR(_xll.ECONOMATICA($H$13,"Sharpe",,$D$4),"") -> 0.6536145604 | M27: =IFERROR(_xll.ECONOMATICA($H$13,"InfoRatio",,$D$4),"") -> 0.2706559101 | N27: =IFERROR(_xll.ECONOMATICA($H$13,"Return M",,$D$4,,,,"decimal",,,,),"") -> 0.06075957224 | O27: =IFERROR(_xll.ECONOMATICA($H$13,"Return M",,$D$4,,,,"decimal",,,,{"std.tec.dret.mom=true"}),"") -> -0.05563565968
B28: ="vs. "&$B$29&" (dif. p.p.)" -> vs. IBOV (dif. p.p.) | D28: =IFERROR((D27-D$29)*100,"") -> 0.4594145987 | E28: 3.222612221 | F28: -4.036251169 | G28: 4.227636386 | H28: 5.373767089 | I28: 9.901151512 | J28: -33.60080634
B29: IBOV | C29: ← Selecionar Índice | D29: =IFERROR(_xll.ECONOMATICA($B$29&"<XBSP>","return",D$16,$D$4,,,,"decimal"),"") -> -0.004307871257 | E29: =IFERROR(_xll.ECONOMATICA($B$29&"<XBSP>","return",E$16,$D$4,,,,"decimal"),"") -> -0.02965906186 | F29: =IFERROR(_xll.ECONOMATICA($B$29&"<XBSP>","return",F$16,$D$4,,,,"decimal"),"") -> 0.07565564325 | G29: =IFERROR(_xll.ECONOMATICA($B$29&"<XBSP>","return",G$16,$D$4,,,,"decimal"),"") -> 0.0366731749 | H29: =IFERROR(_xll.ECONOMATICA($B$29&"<XBSP>","return",H$16,$D$4,,,,"decimal"),"") -> 0.1351036678 | I29: =IFERROR(_xll.ECONOMATICA($B$29&"<XBSP>","return",I$16,$D$4,,,,"decimal"),"") -> 0.1778657489 | J29: =IFERROR(_xll.ECONOMATICA($B$29&"<XBSP>","return",J$16,$D$4,,,,"decimal"),"") -> 0.1615761705 | K29: =IFERROR(_xll.ECONOMATICA($B$29&"<XBSP>","volatility",,$D$4,,,,"decimal"),"") -> 0.1274859373 | L29: =IFERROR(_xll.ECONOMATICA($B$29&"<XBSP>","sharpe",,$D$4),"") -> 0.2379471294 | M29: =IFERROR(_xll.ECONOMATICA($B$29&"<XBSP>","Return M",,$D$4,,,,"decimal",,,,),"") -> 0.1253932279 | N29: =IFERROR(_xll.ECONOMATICA($B$29&"<XBSP>","Return M",,$D$4,,,,"decimal",,,,{"std.tec.dret.mom=true"}),"") -> -0.04794089126 | O29: =IFERROR(_xll.ECONOMATICA($H$13,"Number Premium",,$D$4,,,,"decimal",,,,{"std.tec.dret.cmp=-1";"std.tec.dret.noprc=true"}),"") -> 0.05
B31: Rentabilidade Acumulada - Gráfico Base 100 | M31: Digite uma Data e Selecionar um Período (M = Mês; Q = Trimestre; Y = Anos) → | N31: Período: | O31: 12M

Sheet Fund Guide
D1: Planilha Auxiliar Fund Guide
B2: Data: | C2: ='Lâmina Comparativa'!$D$4 -> 2024-09-25 | D2: ← Não Modificar
B3: Data Formatada: | C3: =TEXT($C$2,"aaaa-mm-dd") -> 2024-09-25 | D3: ← Não Modificar
B4: FILTROS: | C4: ="Anbima class="&'Lâmina Comparativa'!B2 -> Anbima class=Ações | D4: ← Não Modificar
C5: ="Net Assets[date="&$C$3&"]>"&'Lâmina Comparativa'!D3 -> Net Assets[date=2024-09-25]>1000000000 | D5: ← Não Modificar | S5: MOVIMENTAÇÃO | Z5: COTA E PATRIMÔNIO | AI5: ESTATÍSTICAS (desde o início) | AR5: RISCO | BB5: CAPTAÇÕES E RESGATES (R$ - Milhares) | BL5: RETORNO
Z6: 12M | AA6: ← Selecione o período | BB6: =C2 -> 2024-09-25 | BE6: =C2 -> 2024-09-25 | BH6: 12M
B7: =_xll.ECOSECURITIES("FUND","ACTIVE",,"BRA","BRANA",,"CÓDIGO",C4:C5) -> CÓDIGO | C7: =_xll.ECONOMATICA($B$8:$B$5680,"name") -> Nome | D7: =_xll.ECONOMATICA($B$8:$B$5680,"TICKER") -> Código | E7: =_xll.ECONOMATICA($B$8:$B$5680,"Series Start Date",,,,,,,,,"Início do Fundo") -> Início do Fundo | F7: =_xll.ECONOMATICA($B$8:$B$5680,"Employer ID number",,,,,,,,,"CNPJ") -> CNPJ | G7: =_xll.ECONOMATICA($B$8:$B$5680,"Anbima class",,,,,,,,,"Classificação Anbima") -> Classificação Anbima | H7: =_xll.ECONOMATICA($B$8:$B$5680,"Anbima subcategory",,,,,,,,,"Subcategoria Anbima") -> Subcategoria Anbima | I7: =_xll.ECONOMATICA($B$8:$B$5680,"portfolio manager",,,,,,,,,"Gestora") -> Gestora | J7: =_xll.ECONOMATICA($B$8:$B$5680,"Administrator",,,,,,,,,"Administrador") -> Administrador | K7: =_xll.ECONOMATICA($B$8:$B$5680,"Securities Custody",,,,,,,,,"Custodiante") -> Custodiante | L7: =_xll.ECONOMATICA($B$8:$B$5680,"Tot Invest",,$C$2,,,,,,,"Nº de Cotistas") -> Nº de Cotistas | M7: =_xll.ECONOMATICA($B$8:$B$5680,"Benchmark",,,,,,,,,"Benchmark") -> Benchmark | N7: =_xll.ECONOMATICA($B$8:$B$5680,"Expected taxation",,,,,,,,,"Tributação") -> Tributação | O7: =_xll.ECONOMATICA($B$8:$B$5680,"Qualified investor",,,,,,,,,"Investidor Qualificado") -> Investidor Qualificado | P7: =_xll.ECONOMATICA($B$8:$B$5680,"Foreign investment",,,,,,,,,"Investimento no Exterior") -> Investimento no Exterior | Q7: =_xll.ECONOMATICA($B$8:$B$5680,"Leveraged",,,,,,,,,"Alavancado") -> Alavancado | R7: =_xll.ECONOMATICA($B$8:$B$5680,"Private credit",,,,,,,,,"Crédito Privado") -> Crédito Privado | S7: =_xll.ECONOMATICA($B$8:$B$5680,"Purchase conversion date",,,,,,,,,"Aplicação") -> Aplicação | T7: =_xll.ECONOMATICA($B$8:$B$5680,"Redemption conversion date",,,,,,,,,"Resgate") -> Resgate | U7: =_xll.ECONOMATICA($B$8:$B$5680,"Redemption Payment date",,,,,,,,,"Pagamento") -> Pagamento | V7: =_xll.ECONOMATICA($B$8:$B$5680,"Minimum initial investment",,,,,,,,,"Aplicação Inicial (R$)") -> Aplicação Inicial (R$) | W7: =_xll.ECONOMATICA($B$8:$B$5680,"Minimum additional investment",,,,,,,,,"Movimentação (R$)") -> Movimentação (R$) | X7: =_xll.ECONOMATICA($B$8:$B$5680,"Minimum holding balance",,,,,,,,,"Saldo Mínimo (R$)") -> Saldo Mínimo (R$) | Z7: =_xll.ECONOMATICA($B$8:$B$5680,"Date of Last Quote",,,,,,,,,"Data Última Cotação") -> Data Última Cotação | AA7: =_xll.ECONOMATICA($B$8:$B$5680,"NAV",,$C$2,,,,,,,"Cota (R$)") -> Cota (R$) | AB7: =_xll.ECONOMATICA($B$8:$B$5680,"Max of the Serie",$Z$6,$C$2,,,,,,,"Máximo (R$) "&Z6,) -> Máximo (R$) 12M | AC7: Cota vs Máximo | AD7: =_xll.ECONOMATICA($B$8:$B$5680,"Max of the Serie",$Z$6,$C$2,,,,,,,"Data do Máximo "&Z6,{"std.tec.cals=0";"std.tec.dtovlr=true"}) -> Data do Máximo 12M | AE7: =_xll.ECONOMATICA($B$8:$B$5680,"Net Assets",,$C$2,,,,,,,"Patrimônio (R$)") -> Patrimônio (R$) | AF7: =_xll.ECONOMATICA($B$8:$B$5680,"Hist Average",$Z$6,$C$2,,,,"Thousands",,,"Patrimônio Médio (R$) "&Z6,{"std.tec.cals=12"}) -> Patrimônio Médio (R$) 12M | AG7: =_xll.ECONOMATICA($B$8:$B$5680,"Tot Invest",,$C$2,,,,,,,"Número de Cotistas") -> Número de Cotistas | AI7: =_xll.ECONOMATICA($B$8:$B$5680,"Return M","FROM START",$C$2,,,,"decimal",,,"Maior Retorno Mensal") -> Maior Retorno Mensal | AJ7: =_xll.ECONOMATICA($B$8:$B$5680,"Return M","FROM START",$C$2,,,,"decimal",,,"Menor Retorno Mensal",{"std.tec.dret.mom=true"}) -> Menor Retorno Mensal | AK7: =_xll.ECONOMATICA($B$8:$B$5680,"Number Return","FROM START",$C$2,,,,,,,"Meses Positivos",{"std.tec.dret.noprc=true"}) -> Meses Positivos | AL7: =_xll.ECONOMATICA($B$8:$B$5680,"Number Return","FROM START",$C$2,,,,,,,"Meses Negativos",{"std.tec.dret.cmp=-1";"std.tec.dret.noprc=true"}) -> Meses Negativos | AM7: =_xll.ECONOMATICA($B$8:$B$5680,"Number Premium","FROM START",$C$2,,,,,,,"Meses Acima CDI",{"std.tec.dret.noprc=true"}) -> Meses Acima CDI | AN7: =_xll.ECONOMATICA($B$8:$B$5680,"Number Premium","FROM START",$C$2,,,,,,,"Meses Abaixo CDI",{"std.tec.dret.cmp=-1";"std.tec.dret.noprc=true"}) -> Meses Abaixo CDI | AO7: =_xll.ECONOMATICA($B$8:$B$5680,"Number Premium","FROM START",$C$2,,,,,,,"Meses Acima IBOV",{"std.tec.stt.bmk=0:6158,1:0,2:79083,3:0,4:0,5:0,6:0,7:0,8:0,9:0,10:0,11:0,12:0,13:0,14:0,15:0,16:0,17:0,18:0,19:0,20:0,21:0,22:0,23:0,24:0,25:0,26:0,27:0,28:0,29:0,30:0,31:0,";"std.tec.stt.bmk=32:0,33:0,34:0,35:0,36:0,37:0,38:0,39:0,40:0,41:0,42:0,43:0,44:0,45:0,46:0,47:0,48:0,49:0,50:0,51:0,52:0,53:0,54:0,55:0,56:0,57:0,58:0,59:0,60:0,61:0,62:0,63:0,64:0,65:0,66:0,67:0,68:0,69:0,70:0,71:0,72:0,73:0,74:0,75:0,76:0,77:0,78:0,79:0";"std.tec.dret.noprc=true"}) -> Meses Acima IBOV | AP7: =_xll.ECONOMATICA($B$8:$B$5680,"Number Premium","FROM START",$C$2,,,,,,,"Meses Abaixo IBOV",{"std.tec.stt.bmk=0:6158,1:0,2:79083,3:0,4:0,5:0,6:0,7:0,8:0,9:0,10:0,11:0,12:0,13:0,14:0,15:0,16:0,17:0,18:0,19:0,20:0,21:0,22:0,23:0,24:0,25:0,26:0,27:0,28:0,29:0,30:0,31:0,";"std.tec.stt.bmk=32:0,33:0,34:0,35:0,36:0,37:0,38:0,39:0,40:0,41:0,42:0,43:0,44:0,45:0,46:0,47:0,48:0,49:0,50:0,51:0,52:0,53:0,54:0,55:0,56:0,57:0,58:0,59:0,60:0,61:0,62:0,63:0,64:0,65:0,66:0,67:0,68:0,69:0,70:0,71:0,72:0,73:0,74:0,75:0,76:0,77:0,78:0,79:0";"std.tec.dret.cmp=-1";"std.tec.dret.noprc=true"}) -> Meses Abaixo IBOV | AR7: =_xll.ECONOMATICA($B$8:$B$5680,"Volatility","12M",$C$2,,,,"decimal",,,"Volatilidade 12M",{"jtc.per=2";"std.tec.ppr.per=2"}) -> Volatilidade 12M | AS7: =_xll.ECONOMATICA($B$8:$B$5680,"Volatility","3M",$C$2,,,,"decimal",,,"Volatilidade 3M",{"jtc.per=2";"std.tec.ppr.per=2"}) -> Volatilidade 3M | AT7: =_xll.ECONOMATICA($B$8:$B$5680,"Sharpe","12M",$C$2,,,,,,,"Sharpe 12M") -> Sharpe 12M | AU7: =_xll.ECONOMATICA($B$8:$B$5680,"Sharpe","3M",$C$2,,,,,,,"Sharpe 3M") -> Sharpe 3M | AV7: =_xll.ECONOMATICA($B$8:$B$5680,"Sortino","12M",$C$2,,,,,,,"Sortino 12M") -> Sortino 12M | AW7: =_xll.ECONOMATICA($B$8:$B$5680,"Sortino","3M",$C$2,,,,,,,"Sortino 3M") -> Sortino 3M | AX7: =_xll.ECONOMATICA($B$8:$B$5680,"VAR %","3M",$C$2,,,,"decimal",,,"VaR 95% 3M") -> VaR 95% 3M | AY7: =_xll.ECONOMATICA($B$8:$B$5680,"VAR %","12M",$C$2,,,,"decimal",,,"VaR 95% 12M") -> VaR 95% 12M | AZ7: =_xll.ECONOMATICA($B$8:$B$5680,"MaxLoss",,$C$2,,,,"decimal",,,"Perda Máxima") -> Perda Máxima | BB7: =_xll.ECONOMATICA($B$8:$B$5680,"Inflows","In the month",$C$2,,,,"thousands",,,"Captação") -> Captação | BC7: =_xll.ECONOMATICA($B$8:$B$5680,"Total Red","In the month",$C$2,,,,"thousands",,,"Resgates") -> Resgates | BD7: =_xll.ECONOMATICA($B$8:$B$5680,"Net Inflows","In the month",$C$2,,,,"thousands",,,"Captação Líquida") -> Captação Líquida | BE7: =_xll.ECONOMATICA($B$8:$B$5680,"Inflows","In the year",$C$2,,,,"thousands",,,"Captação") -> Captação | BF7: =_xll.ECONOMATICA($B$8:$B$5680,"Total Red","In the year",$C$2,,,,"thousands",,,"Resgates") -> Resgates | BG7: =_xll.ECONOMATICA($B$8:$B$5680,"Net Inflows","In the year",$C$2,,,,"thousands",,,"Captação Líquida") -> Captação Líquida | BH7: =_xll.ECONOMATICA($B$8:$B$5680,"Inflows",$BH$6,$C$2,,,,"thousands",,,"Captação") -> Captação | BI7: =_xll.ECONOMATICA($B$8:$B$5680,"Total Red",$BH$6,$C$2,,,,"thousands",,,"Resgates") -> Resgates | BJ7: =_xll.ECONOMATICA($B$8:$B$5680,"Net Inflows",$BH$6,$C$2,,,,"thousands",,,"Captação Líquida") -> Captação Líquida | BL7: =_xll.ECONOMATICA($B$8:$B$5680,"return",$BH$6,$C$2,,,,"decimal",,,"Retorno 12M") -> Retorno 12M | BM7: =_xll.ECONOMATICA($B$8:$B$5680,"return","in the year",$C$2,,,,"decimal",,,"Retorno "&TEXT(C2,"aaaa")) -> Retorno 2024 | BN7: =_xll.ECONOMATICA($B$8:$B$5680,"return","in the month",$C$2,,,,"decimal",,,"Retorno "&TEXT(C2,"mmmm")) -> Retorno setembro
B8: 448931<BraNa> | C8: A10 Investimentos FIA Ie | D8: 448931 | E8: 2017-09-29 | F8: 23129095000143 | G8: Ações | H8: Fechados de Ações | I8: A10 Investimentos Ltda. | J8: BTG Pactual Servicos Financeiros SA Dtvm | K8: Banco BTG Pactual S/A | L8: 2 | M8: Não se Aplica | N8: Renda Variável | O8: Inv. Profissional | P8: Até 100% | Q8: Sim | R8: Não | S8: D+000 | T8: D+000 | U8: D+005 | V8: 1000000 | W8: 0 | X8: 0 | Z8: 2024-09-26 | AA8: 966459.9939 | AB8: 2481834.391 | AC8: =IFERROR(AA8/AB8,"") -> 0.3894135714 | AD8: 2023-09-27 | AE8: 3105745914 | AF8: 4401193.366 | AG8: 2 | AI8: 119.2962855 | AJ8: -0.3531555684 | AK8: 51 | AL8: 33 | AM8: 50 | AN8: 34 | AO8: 46 | AP8: 38 | AR8: 0.1929887919 | AS8: 0.09792959612 | AT8: -0.8293462011 | AU8: 0.04350977884 | AV8: -1.251977117 | AW8: 0.07019198676 | AX8: 0.06746306152 | AY8: 0.07061692594 | AZ8: -0.7138817464 | BB8: 0 | BC8: 0 | BD8: 0 | BE8: 0 | BF8: 0 | BG8: 0 | BH8: 0 | BI8: 0 | BJ8: 0 | BL8: -0.6194170974 | BM8: -0.57528375 | BN8: 0.08495662401
B9: 488542<BraNa> | C9: Absolute Pace Lb Master FIA | D9: 488542 | E9: 2018-12-27 | F9: 32071783000190 | G9: Ações | H9: Livre | I9: Absolute Gestao de Investimentos Ltda | J9: BNY Mellon Servicos Financeiros Dtvm SA | K9: BNY Mellon Banco S.A. | L9: 8 | M9: Não se Aplica | N9: Renda Variável | O9: Inv. Qualificado | P9: Até 40 % | Q9: Sim | R9: Não se Aplica | S9: D+001 | T9: D+001 | U9: D+003 | Z9: 2024-09-26 | AA9: 4.15882422 | AB9: 4.35767617 | AC9: =IFERROR(AA9/AB9,"") -> 0.954367433 | AD9: 2024-08-20 | AE9: 3575760101 | AF9: 2861094.611 | AG9: 8 | AI9: 0.1472683224 | AJ9: -0.2324237461 | AK9: 43 | AL9: 26 | AM9: 42 | AN9: 27 | AO9: 48 | AP9: 21 | AR9: 0.03993283327 | AS9: 0.03397569721 | AT9: 0.6632317152 | AU9: 2.344454343 | AV9: 1.11222148 | AW9: 4.321039069 | AX9: 0.01289845355 | AY9: 0.01355657447 | AZ9: -0.08316147976 | BB9: 118387.4559 | BC9: 104109.6262 | BD9: 14277.82967 | BE9: 1518838.517 | BF9: 596244.2992 | BG9: 922594.2177 | BH9: 1779158.911 | BI9: 787317.59 | BJ9: 991841.3216 | BL9: 0.197562981 | BM9: 0.07385857249 | BN9: -0.02272072261
B10: 485675<BraNa> | C10: Absolute Pace Long Biased Fc FIA | D10: 485675 | E10: 2018-12-27 | F10: 32073525000143 | G10: Ações | H10: Livre | I10: Absolute Gestao de Investimentos Ltda | J10: BNY Mellon Servicos Financeiros Dtvm SA | K10: BNY Mellon Banco S.A. | L10: 5655 | M10: Não se Aplica | N10: Renda Variável | O10: Inv. Qualificado | P10: Até 40 % | Q10: Sim | R10: Não se Aplica | S10: D+001 | T10: D+030 | U10: D+032 | V10: 500 | W10: 100 | X10: 100 | Z10: 2024-09-26 | AA10: 3.10344269 | AB10: 3.23373074 | AC10: 0.9597096789 | AD10: 2024-08-20 | AE10: 1931806690 | AF10: 1589559.282 | AG10: 5655 | AI10: 0.137223216 | AJ10: -0.2340845582 | AK10: 43 | AL10: 26 | AM10: 41 | AN10: 28 | AO10: 45 | AP10: 24 | AR10: 0.03776940956 | AS10: 0.03184094024 | AT10: 0.4000580188 | AU10: 2.29661856 | AV10: 0.6589865137 | AW10: 4.254543703 | AX10: 0.01174287302 | AY10: 0.01285377646 | AZ10: -0.08436213541 | BB10: 38067.22234 | BC10: 65458.65373 | BD10: -27391.43139 | BE10: 790026.7443 | BF10: 317325.7711 | BG10: 472700.9732 | BH10: 972228.5607 | BI10: 392054.3482 | BJ10: 580174.2124 | BL10: 0.1575406222 | BM10: 0.05688814787 | BN10: -0.0216260419
B11: 504191<BraNa> | C11: Absoluto Partners Master FIA | D11: 504191 | E11: 2019-08-13 | F11: 34172637000187 | G11: Ações | H11: Livre | I11: Absoluto Partners Gestão de Recursos Ltda. | J11: BTG Pactual Servicos Financeiros SA Dtvm | K11: Banco BTG Pactual S/A | L11: 22 | M11: Não se Aplica | N11: Renda Variável | O11: Inv. Qualificado | P11: Até 40 % | Q11: Sim | R11: Não se Aplica | S11: D+001 | T11: D+001 | U11: D+003 | Z11: 2024-09-26 | AA11: 1.642874 | AB11: 1.7190238 | AC11: 0.9557017186 | AD11: 2024-08-21 | AE11: 4464098767 | AF11: 4702162.645 | AG11: 22 | AI11: 0.1845686013 | AJ11: -0.2543359953 | AK11: 36 | AL11: 25 | AM11: 33 | AN11: 28 | AO11: 35 | AP11: 26 | AR11: 0.05102002921 | AS11: 0.0350585539 | AT11: 0.2389878526 | AU11: 1.852993232 | AV11: 0.394108984 | AW11: 3.217930151 | AX11: 0.01735271377 | AY11: 0.01775549897 | AZ11: -0.124853461 | BB11: 5006.75 | BC11: 112818.8525 | BD11: -107812.1025 | BE11: 320221.5567 | BF11: 968793.5177 | BG11: -648571.961 | BH11: 502974.8955 | BI11: 1235225.52 | BJ11: -732250.6242 | BL11: 0.139948144 | BM11: -0.005182831808 | BN11: -0.02046683731
B12: 256749<BraNa> | C12: Alaska Black Master FIA Bdr Nivel I | D12: 256749 | E12: 2010-09-17 | F12: 12055107000116 | G12: Ações | H12: Livre | I12: Alaska Investimentos Ltda. | J12: BTG Pactual Servicos Financeiros SA Dtvm | K12: Banco BTG Pactual S/A | L12: 2 | M12: Não se Aplica | N12: Renda Variável | O12: Não | P12: Até 20 % | Q12: Sim | R12: Não se Aplica | S12: D+001 | T12: D+000 | U12: D+002 | Z12: 2024-09-26 | AA12: 4.6231122 | AB12: 7.02326 | AC12: 0.658257305 | AD12: 2023-12-27 | AE12: 1030512815 | AF12: 1315149.736 | AG12: 2 | AI12: 0.3724993854 | AJ12: -0.5968986313 | AK12: 90 | AL12: 78 | AM12: 84 | AN12: 84 | AO12: 93 | AP12: 75 | AR12: 0.0867637072 | AS12: 0.04149706855 | AT12: -0.632990463 | AU12: -0.2935614455 | AV12: -0.9757958917 | AW12: -0.4564726391 | AX12: 0.0391025828 | AY12: 0.03462867738 | AZ12: -0.3762389688 | BB12: 18174.35663 | BC12: 22634.41701 | BD12: -4460.06038 | BE12: 157099.1375 | BF12: 272793.7673 | BG12: -115694.6298 | BH12: 195987.593 | BI12: 385261.4968 | BJ12: -189273.9039 | BL12: -0.1722721147 | BM12: -0.3347921698 | BN12: -0.04420928203
B13: 435325<BraNa> | C13: Alaska Institucional FIA | D13: 435325 | E13: 2017-02-21 | F13: 26673556000132 | G13: Ações | H13: Livre | I13: Alaska Investimentos Ltda. | J13: BTG Pactual Servicos Financeiros SA Dtvm | K13: Banco BTG Pactual S/A | L13: 45329 | M13: Não se Aplica | N13: Renda Variável | O13: Não | P13: Até 20 % | Q13: Não | R13: Não se Aplica | S13: D+001 | T13: D+030 | U13: D+032 | V13: 1000 | W13: 1000 | X13: 1000 | Z13: 2024-09-26 | AA13: 2.9876597 | AB13: 3.7200615 | AC13: 0.8031210506 | AD13: 2023-12-27 | AE13: 1077993882 | AF13: 1201832.625 | AG13: 45329 | AI13: 0.1878687893 | AJ13: -0.3219087164 | AK13: 50 | AL13: 41 | AM13: 47 | AN13: 44 | AO13: 46 | AP13: 45 | AR13: 0.05715238043 | AS13: 0.0398097323 | AT13: -0.6954406097 | AU13: -0.6298182813 | AV13: -1.086986671 | AW13: -0.994071729 | AX13: 0.02143630192 | AY13: 0.02026751074 | AZ13: -0.2245529005 | BB13: 12626.04755 | BC13: 32418.5552 | BD13: -19792.50765 | BE13: 189124.4935 | BF13: 192867.1784 | BG13: -3742.68482 | BH13: 228325.558 | BI13: 247875.5246 | BJ13: -19549.96661 | BL13: -0.05855583157 | BM13: -0.1939425002 | BN13: -0.05858431001
B14: 119628<BraNa> | C14: Alaska Poland FIA Bdr Nivel I | D14: 119628 | E14: 2003-08-05 | F14: 5775774000108 | G14: Ações | H14: Índice Ativo | I14: Alaska Investimentos Ltda. | J14: BTG Pactual Servicos Financeiros SA Dtvm | K14: Banco BTG Pactual S/A | L14: 2 | M14: IBOVESPA FECHAMENTO | N14: Renda Variável | O14: Inv. Profissional | P14: Até 40 % | Q14: Sim | R14: Não se Aplica | S14: D+000 | T14: D+000 | U14: D+002 | Z14: 2024-09-26 | AA14: 45.3232683 | AB14: 48.6085876 | AC14: 0.9324127801 | AD14: 2024-03-28 | AE14: 4055905404 | AF14: 4091926.362 | AG14: 2 | AI14: 0.2012074172 | AJ14: -0.2881199037 | AK14: 156 | AL14: 97 | AM14: 136 | AN14: 117 | AO14: 141 | AP14: 112 | AR14: 0.04797524227 | AS14: 0.02856796288 | AT14: -0.09039975974 | AU14: 0.2728198873 | AV14: -0.1441520054 | AW14: 0.4451351376 | AX14: 0.01739110712 | AY14: 0.01866832204 | AZ14: -0.1318650081 | BB14: 0 | BC14: 5718.67044 | BD14: -5718.67044 | BE14: 0 | BF14: 29131.95273 | BG14: -29131.95273 | BH14: 0 | BI14: 56464.93957 | BJ14: -56464.93957 | BL14: 0.07542478126 | BM14: -0.04497263871 | BN14: -0.02200792808
B15: 422657<BraNa> | C15: Alden FIA | D15: 422657 | E15: 2016-06-10 | F15: 4679647000142 | G15: Ações | H15: Livre | I15: Naman Capital Ltda. | J15: Intrag | K15: Itau Unibanco S.A. | L15: 5 | M15: Não se Aplica | N15: Renda Variável | O15: Inv. Profissional | P15: Até 40 % | Q15: Sim | R15: Não se Aplica | S15: D+000 | T15: D+001 | U15: D+003 | V15: 100 | W15: 0 | X15: 0 | Z15: 2024-09-26 | AA15: 3219.952457 | AB15: 3836.443373 | AC15: 0.8393066556 | AD15: 2024-04-02 | AE15: 2154136416 | AF15: 2237739.584 | AG15: 5 | AI15: 0.2675626978 | AJ15: -0.1249405896 | AK15: 60 | AL15: 39 | AM15: 55 | AN15: 44 | AO15: 45 | AP15: 54 | AR15: 0.07007390708 | AS15: 0.02666005691 | AT15: -0.4557842376 | AU15: 0.4552483221 | AV15: -0.7159153766 | AW15: 1.014225836 | AX15: 0.0228260426 | AY15: 0.01969923931 | AZ15: -0.223396597 | BB15: 0 | BC15: 0 | BD15: 0 | BE15: 0 | BF15: 0 | BG15: 0 | BH15: 0 | BI15: 0 | BJ15: 0 | BL15: -0.00355031023 | BM15: -0.0765592365 | BN15: -0.04912088027
B16: 163902<BraNa> | C16: Alocc Tna Fc de FIA | D16: 163902 | E16: 2006-04-28 | F16: 6918966000199 | G16: Ações | H16: Livre | I16: Taboaco, Nieckele e Associados - Gestao Patrimonial Ltda | J16: Bem Dtvm | K16: Banco Bradesco S.A. | L16: 104 | M16: Não se Aplica | N16: Renda Variável | O16: Inv. Qualificado | P16: Até 40 % | Q16: Sim | R16: Não se Aplica | S16: D+001 | T16: D+030 | U16: D+032 | V16: 10000 | W16: 5000 | X16: 10000 | Z16: 2024-09-26 | AA16: 16.148246 | AB16: 16.7521136 | AC16: 0.9639527516 | AD16: 2024-08-21 | AE16: 1066230984 | AF16: 1024835.716 | AG16: 104 | AI16: 0.1414293438 | AJ16: -0.2932897517 | AK16: 136 | AL16: 85 | AM16: 117 | AN16: 104 | AO16: 132 | AP16: 89 | AR16: 0.04684680824 | AS16: 0.03189304715 | AT16: 0.2159295237 | AU16: 1.774414828 | AV16: 0.354504983 | AW16: 3.068644993 | AX16: 0.0130890557 | AY16: 0.01437017404 | AZ16: -0.1029313237 | BB16: 4200 | BC16: 445.02179 | BD16: 3754.97821 | BE16: 53061.23701 | BF16: 49507.09618 | BG16: 3554.14083 | BH16: 81647.09517 | BI16: 59906.12626 | BJ16: 21740.96891 | BL16: 0.133603801 | BM16: 0.01464063033 | BN16: -0.02240984736
B17: 226106<BraNa> | C17: Atena FIA Ie | D17: 226106 | E17: 2009-04-08 | F17: 9327472000128 | G17: Ações | H17: Invest. no Exterior | I17: Spn Gestão de Investimentos Ltda | J17: BTG Pactual Servicos Financeiros SA Dtvm | K17: Banco BTG Pactual S/A | L17: 5 | M17: Não se Aplica | N17: Renda Variável | O17: Inv. Profissional | P17: Até 100% | Q17: S | R17: Não se Aplica | S17: D+001 | T17: D+001 | U17: D+005 | Z17: 2024-09-26 | AA17: 74.2600795 | AB17: 76.6283194 | AC17: 0.969094456 | AD17: 2024-09-12 | AE17: 2793330528 | AF17: 2570676.486 | AG17: 5 | AI17: 0.1187202373 | AJ17: -0.1479784701 | AK17: 124 | AL17: 61 | AM17: 96 | AN17: 89 | AO17: 96 | AP17: 89 | AR17: 0.0341510295 | AS17: 0.01597286506 | AT17: 0.6536145604 | AU17: 0.3475996141 | AV17: 1.181680263 | AW17: 0.6061292528 | AX17: 0.01222196734 | AY17: 0.01221961082 | AZ17: -0.08139843497 | BB17: 0 | BC17: 0 | BD17: 0 | BE17: 9800 | BF17: 0 | BG17: 9800 | BH17: 13200 | BI17: 0 | BJ17: 13200 | BL17: 0.1888413387 | BM17: 0.1300232449 | BN17: -0.01186100449
B18: 655503<BraNa> | C18: Atme Fc FIA | D18: 655503 | E18: 2022-06-06 | F18: 46331366000144 | G18: Ações | H18: Livre | I18: Atmos Capital Gestão de Recursos Ltda | J18: BTG Pactual Servicos Financeiros SA Dtvm | K18: Banco BTG Pactual S/A | L18: 16 | M18: Não se Aplica | N18: Renda Variável | O18: Inv. Qualificado | P18: Até 40 % | Q18: Sim | R18: Não se Aplica | S18: D+001 | T18: D+060 | U18: D+062 | V18: 10000000 | W18: 50000 | X18: 50000 | Z18: 2024-09-26 | AA18: 126.7246177 | AB18: 131.3777648 | AC18: 0.9645819285 | AD18: 2024-08-21 | AE18: 1351914789 | AF18: 1349202.458 | AG18: 16 | AI18: 0.1052684768 | AJ18: -0.05922511126 | AK18: 16 | AL18: 11 | AM18: 15 | AN18: 12 | AO18: 14 | AP18: 13 | AR18: 0.04180669851 | AS18: 0.031635189 | AT18: 0.3857544789 | AU18: 1.364364492 | AV18: 0.6317730166 | AW18: 2.261399615 | AX18: 0.01355383038 | AY18: 0.01489388816 | AZ18: -0.07147506352 | BB18: 0 | BC18: 0 | BD18: 0 | BE18: 0 | BF18: 104295.9373 | BG18: -104295.9373 | BH18: 0 | BI18: 106245.9373 | BJ18: -106245.9373 | BL18: 0.1609086726 | BM18: 0.05428211202 | BN18: -0.0183654216
B19: 390925<BraNa> | C19: Atmos Atit Fc de FIA | D19: 390925 | E19: 2015-03-20 | F19: 21762107000147 | G19: Ações | H19: Livre | I19: Atmos Capital Gestão de Recursos Ltda | J19: BTG Pactual Servicos Financeiros SA Dtvm | K19: Banco BTG Pactual S/A | L19: 102 | M19: Não se Aplica | N19: Renda Variável | O19: Inv. Qualificado | P19: Até 40 % | Q19: Sim | R19: Não se Aplica | S19: D+001 | T19: D+001 | U19: D+003 | V19: 100000 | W19: 20000 | X19: 20000 | Z19: 2024-09-26 | AA19: 323.9568331 | AB19: 339.1224717 | AC19: 0.9552797591 | AD19: 2024-08-21 | AE19: 1280429039 | AF19: 1326216.372 | AG19: 102 | AI19: 0.2075303095 | AJ19: -0.3146930915 | AK19: 75 | AL19: 39 | AM19: 64 | AN19: 50 | AO19: 61 | AP19: 53 | AR19: 0.04478959631 | AS19: 0.0382630059 | AT19: 0.3875992253 | AU19: 1.334356987 | AV19: 0.6323734807 | AW19: 2.182707462 | AX19: 0.01544946624 | AY19: 0.01629679629 | AZ19: -0.08010199147 | BB19: 0 | BC19: 67092.0447 | BD19: -67092.0447 | BE19: 33000 | BF19: 197173.1944 | BG19: -164173.1944 | BH19: 33000 | BI19: 218222.7754 | BJ19: -185222.7754 | BL19: 0.1646019937 | BM19: 0.04848370205 | BN19: -0.02386823418
B20: 236950<BraNa> | C20: Atmos Master FIA | D20: 236950 | E20: 2009-10-15 | F20: 11188572000162 | G20: Ações | H20: Livre | I20: Atmos Capital Gestão de Recursos Ltda | J20: BTG Pactual Servicos Financeiros SA Dtvm | K20: Banco BTG Pactual S/A | L20: 30 | M20: Não se Aplica | N20: Renda Variável | O20: Inv. Qualificado | P20: Até 40 % | Q20: Sim | R20: Não se Aplica | S20: D+001 | T20: D+001 | U20: D+003 | Z20: 2024-09-26 | AA20: 1408.340252 | AB20: 1473.134083 | AC20: 0.9560163381 | AD20: 2024-08-21 | AE20: 11253288640 | AF20: 11258153.45 | AG20: 30 | AI20: 0.2239717178 | AJ20: -0.3112044401 | AK20: 127 | AL20: 52 | AM20: 106 | AN20: 73 | AO20: 106 | AP20: 73 | AR20: 0.04498940552 | AS20: 0.03853610298 | AT20: 0.4846330855 | AU20: 1.44199181 | AV20: 0.7944973871 | AW20: 2.368782904 | AX20: 0.01556575872 | AY20: 0.01636426212 | AZ20: -0.07705881326 | BB20: 12258.614 | BC20: 135156.1447 | BD20: -122897.5307 | BE20: 363146.8341 | BF20: 1504486.692 | BG20: -1141339.858 | BH20: 593089.847 | BI20: 1900153.692 | BJ20: -1307063.845 | BL20: 0.1816204739 | BM20: 0.05950074378 | BN20: -0.02309649599
B21: 531952<BraNa> | C21: Atmr II Fc FIA | D21: 531952 | E21: 2020-03-18 | F21: 36326771000110 | G21: Ações | H21: Livre | I21: Atmos Capital Gestão de Recursos Ltda | J21: BTG Pactual Servicos Financeiros SA Dtvm | K21: Banco BTG Pactual S/A | L21: 230 | M21: Não se Aplica | N21: Renda Variável | O21: Inv. Qualificado | P21: Até 40 % | Q21: Sim | R21: Não se Aplica | S21: D+001 | T21: D+060 | U21: D+062 | V21: 200000 | W21: 20000 | X21: 20000 | Z21: 2024-09-26 | AA21: 176.8308192 | AB21: 185.1808716 | AC21: 0.9549086668 | AD21: 2024-08-21 | AE21: 1026047816 | AF21: 1038943.013 | AG21: 230 | AI21: 0.1201969101 | AJ21: -0.1389652642 | AK21: 32 | AL21: 22 | AM21: 27 | AN21: 27 | AO21: 27 | AP21: 27 | AR21: 0.04501307541 | AS21: 0.03843088589 | AT21: 0.3920886785 | AU21: 1.334888497 | AV21: 0.6400566346 | AW21: 2.18364822 | AX21: 0.01553899102 | AY21: 0.016362035 | AZ21: -0.08011400181 | BB21: 0 | BC21: 5846.91527 | BD21: -5846.91527 | BE21: 0 | BF21: 121390.8077 | BG21: -121390.8077 | BH21: 0 | BI21: 205922.541 | BJ21: -205922.541 | BL21: 0.1655349214 | BM21: 0.04875598086 | BN21: -0.02400746347
B22: 240451<BraNa> | C22: Az Quest Small Mid Caps Master FIA | D22: 240451 | E22: 2009-12-30 | F22: 11403884000141 | G22: Ações | H22: Livre | I22: Az Quest Investimentos Ltda. | J22: Intrag | K22: Itau Unibanco S.A. | L22: 3 | M22: OUTROS | N22: Renda Variável | O22: Não | P22: Não se Aplica | Q22: N | R22: N | S22: D+001 | T22: D+000 | U22: D+002 | V22: 1 | W22: 1 | X22: 1 | Z22: 2024-09-26 | AA22: 11.4855732 | AB22: 11.8999883 | AC22: 0.9651751674 | AD22: 2024-09-05 | AE22: 1228036817 | AF22: 1226947.063 | AG22: 3 | AI22: 0.1542127555 | AJ22: -0.3816460825 | AK22: 117 | AL22: 60 | AM22: 107 | AN22: 70 | AO22: 107 | AP22: 70 | AR22: 0.04755430508 | AS22: 0.03573639134 | AT22: 0.4071557593 | AU22: 2.329381142 | AV22: 0.6593949906 | AW22: 3.973407806 | AX22: 0.01370843388 | AY22: 0.01569716491 | AZ22: -0.09061446627 | BB22: 1144.37126 | BC22: 16794.45238 | BD22: -15650.08112 | BE22: 17528.04199 | BF22: 155994.2013 | BG22: -138466.1593 | BH22: 19453.84199 | BI22: 223927.2013 | BJ22: -204473.3593 | BL22: 0.1664374175 | BM22: 0.05936308994 | BN22: -0.01588074149
B23: 536458<BraNa> | C23: BB Acoes Bolsa Americana FIA | D23: 536458 | E23: 2020-05-05 | F23: 36178569000199 | G23: Ações | H23: Livre | I23: BB Gestao de Recursos Dtvm S.A | J23: BB Asset Management | K23: Banco do Brasil S.A. | L23: 20902 | M23: OUTROS | N23: Renda Variável | O23: Não | P23: Até 20 % | Q23: Não | R23: Não se Aplica | S23: D+001 | T23: D+001 | U23: D+003 | V23: 0.01 | W23: 0.01 | X23: 0.01 | Z23: 2024-09-26 | AA23: 2.258888212 | AB23: 2.266771636 | AC23: 0.9965221799 | AD23: 2024-09-24 | AE23: 1437327201 | AF23: 1313884.923 | AG23: 20902 | AI23: 0.1030602522 | AJ23: -0.08645582717 | AK23: 35 | AL23: 17 | AM23: 34 | AN23: 18 | AO23: 29 | AP23: 23 | AR23: 0.03083983884 | AS23: 0.003382301113 | AT23: 1.804475088 | AU23: 0.604826382 | AV23: 2.917204078 | AW23: 0.8782299371 | AX23: 0.01611807316 | AY23: 0.01299606693 | AZ23: -0.08392009296 | BB23: 18028.56798 | BC23: 16123.64378 | BD23: 1904.9242 | BE23: 287609.7592 | BF23: 323460.1284 | BG23: -35850.36921 | BH23: 309536.7615 | BI23: 425209.6497 | BJ23: -115672.8882 | BL23: 0.3526107982 | BM23: 0.2196683844 | BN23: 0.01651751068
B24: 387061<BraNa> | C24: BB Acoes Globais Instit Bdr Nivel I FIA | D24: 387061 | E24: 2015-01-22 | F24: 21470644000113 | G24: Ações | H24: Livre | I24: BB Gestao de Recursos Dtvm S.A | J24: BB Asset Management | K24: Banco do Brasil S.A. | L24: 138 | M24: GLOBAL BDRX | N24: Renda Variável | O24: Não | P24: Até 20 % | Q24: Não | R24: Não se Aplica | S24: D+001 | T24: D+001 | U24: D+004 | V24: 200 | W24: 200 | X24: 200 | Z24: 2024-09-26 | AA24: 6.596033376 | AB24: 6.708804391 | AC24: 0.9831905943 | AD24: 2024-07-10 | AE24: 1585199562 | AF24: 1424468.827 | AG24: 138 | AI24: 0.165594379 | AJ24: -0.1458582768 | AK24: 77 | AL24: 39 | AM24: 70 | AN24: 46 | AO24: 60 | AP24: 56 | AR24: 0.03436018241 | AS24: 0.007689817684 | AT24: 1.894063195 | AU24: 0.08648872786 | AV24: 3.160455244 | AW24: 0.1283417573 | AX24: 0.01977927018 | AY24: 0.01602640371 | AZ24: -0.1089947884 | BB24: 48646.16957 | BC24: 24056.68578 | BD24: 24589.48379 | BE24: 194655.0072 | BF24: 313143.9892 | BG24: -118488.982 | BH24: 198976.3243 | BI24: 356825.9003 | BJ24: -157849.576 | BL24: 0.420436926 | BM24: 0.3196506389 | BN24: 0.004721063819
B25: 156019<BraNa> | C25: BB Acoes Quantita FI Financeiro Resp Lim | D25: 156019 | E25: 2006-03-24 | F25: 7877986000121 | G25: Ações | H25: Livre | I25: BB Gestao de Recursos Dtvm S.A | J25: BB Asset Management | K25: Banco do Brasil S.A. | L25: 7 | M25: Não se Aplica | N25: Renda Variável | O25: Não | P25: Até 20 % | Q25: N | R25: Não se Aplica | S25: D+001 | T25: D+001 | U25: D+003 | V25: 0.01 | W25: 0.01 | X25: 0.01 | Z25: 2024-09-26 | AA25: 4.242875825 | AB25: 4.547831856 | AC25: 0.9329447436 | AD25: 2023-12-29 | AE25: 1110508699 | AF25: 1287405.211 | AG25: 7 | AI25: 0.1702929018 | AJ25: -0.3210507712 | AK25: 121 | AL25: 101 | AM25: 114 | AN25: 108 | AO25: 117 | AP25: 105 | AR25: 0.04567197803 | AS25: 0.02892834143 | AT25: -0.2258625117 | AU25: 1.009281966 | AV25: -0.3518565073 | AW25: 1.594726248 | AX25: 0.01211815756 | AY25: 0.01307749001 | AZ25: -0.1406860113 | BB25: 673.61603 | BC25: 18253.58866 | BD25: -17579.97263 | BE25: 27663.27475 | BF25: 335572.9667 | BG25: -307909.692 | BH25: 52786.66522 | BI25: 393005.4626 | BJ25: -340218.7974 | BL25: 0.07087713938 | BM25: -0.06705525636 | BN25: -0.02820681131
B26: 155942<BraNa> | C26: BB Acoes Selecao Fatorial Fc FI | D26: 155942 | E26: 2006-03-24 | F26: 7882792000114 | G26: Ações | H26: Livre | I26: BB Gestao de Recursos Dtvm S.A | J26: BB Asset Management | K26: Banco do Brasil S.A. | L26: 16045 | M26: Não se Aplica | N26: Indefinido | O26: Não | P26: Até 20 % | Q26: Não | R26: Não se Aplica | S26: D+001 | T26: D+001 | U26: D+003 | V26: 0.01 | W26: 0.01 | X26: 0.01 | Z26: 2024-09-26 | AA26: 2.739022945 | AB26: 2.958248273 | AC26: 0.925893533 | AD26: 2023-12-28 | AE26: 1099699796 | AF26: 1271247.344 | AG26: 16045 | AI26: 0.1681758862 | AJ26: -0.3223279605 | AK26: 120 | AL26: 102 | AM26: 113 | AN26: 109 | AO26: 105 | AP26: 117 | AR26: 0.04568338384 | AS26: 0.02888128204 | AT26: -0.3036970219 | AU26: 0.9123669947 | AV26: -0.4712366107 | AW26: 1.435624875 | AX26: 0.01211835846 | AY26: 0.01307799644 | AZ26: -0.1446883522 | BB26: 666.09162 | BC26: 17352.48778 | BD26: -16686.39616 | BE26: 25961.26258 | BF26: 315102.1434 | BG26: -289140.8808 | BH26: 44143.03444 | BI26: 365113.075 | BJ26: -320970.0405 | BL26: 0.06001906831 | BM26: -0.07409223244 | BN26: -0.02893005773
B27: 396397<BraNa> | C27: Bergen FIA Bdr Nivel I Ie | D27: 396397 | E27: 2014-12-18 | F27: 21437224000135 | G27: Ações | H27: Fechados de Ações | I27: Charles River Administradora de Recursos Financeiros Ltda. | J27: BTG Pactual Servicos Financeiros SA Dtvm | K27: Banco BTG Pactual S/A | L27: 1 | M27: Não se Aplica | N27: Não Aplicável | O27: Inv. Profissional | P27: Até 100% | Q27: Não | R27: Não se Aplica | S27: D+001 | T27: D+001 | U27: D+002 | Z27: 2024-09-26 | AA27: 4.70667673 | AB27: 4.86044059 | AC27: 0.9683642137 | AD27: 2024-03-28 | AE27: 2263254314 | AF27: 2170897.553 | AG27: 1 | AI27: 0.158741962 | AJ27: -0.1518740441 | AK27: 76 | AL27: 41 | AM27: 68 | AN27: 49 | AO27: 64 | AP27: 53 | AR27: 0.02822987131 | AS27: 0.01661103515 | AT27: 0.7972120406 | AU27: -1.030294075 | AV27: 1.316539451 | AW27: -1.509365985 | AX27: 0.00684639559 | AY27: 0.007936358255 | AZ27: -0.0486717234 | BB27: 0 | BC27: 0 | BD27: 0 | BE27: 0 | BF27: 0 | BG27: 0 | BH27: 239028.405 | BI27: 0 | BJ27: 239028.405 | BL27: 0.1757204907 | BM27: 0.02495099137 | BN27: -0.02455783892
B28: 311960<BraNa> | C28: Brasil Capital 30 Master FIA | D28: 311960 | E28: 2012-08-27 | F28: 14284684000105 | G28: Ações | H28: Valor/Cresc. | I28: Bc Gestão de Recursos Ltda | J28: BNY Mellon Servicos Financeiros Dtvm SA | K28: BNY Mellon Banco S.A. | L28: 7 | M28: Não se Aplica | N28: Renda Variável | O28: Não | P28: Até 20 % | Q28: Não | R28: Não se Aplica | S28: D+000 | T28: D+000 | U28: D+002 | W28: 1 | X28: 1 | Z28: 2024-09-26 | AA28: 4.18383312 | AB28: 4.60349308 | AC28: 0.9088387986 | AD28: 2023-12-28 | AE28: 1123664265 | AF28: 1340701.55 | AG28: 7 | AI28: 0.1500206053 | AJ28: -0.374397008 | AK28: 95 | AL28: 50 | AM28: 84 | AN28: 61 | AO28: 86 | AP28: 59 | AR28: 0.05205794634 | AS28: 0.03481790954 | AT28: -0.395675182 | AU28: 0.4294244704 | AV28: -0.6302347382 | AW28: 0.7128622863 | AX28: 0.01793320316 | AY28: 0.01860686898 | AZ28: -0.1533390075 | BB28: 3494.917 | BC28: 54218.5206 | BD28: -50723.6036 | BE28: 150404.107 | BF28: 398383.0591 | BG28: -247978.9521 | BH28: 200480.2634 | BI28: 507183.3683 | BJ28: -306703.105 | BL28: 0.01550973128 | BM28: -0.09083434173 | BN28: -0.04842659249
B29: 252311<BraNa> | C29: BTG Pactual Absolut Institucional Fc FIA | D29: 252311 | E29: 2010-07-19 | F29: 11977794000164 | G29: Ações | H29: Livre | I29: BTG Pactual Asset Management S/A Dtvm | J29: BTG Pactual Servicos Financeiros SA Dtvm | K29: Banco BTG Pactual S/A | L29: 1656 | M29: Não se Aplica | N29: Renda Variável | O29: Não | P29: Até 20 % | Q29: Não | R29: Não se Aplica | S29: D+001 | T29: D+030 | U29: D+032 | V29: 5000 | W29: 0 | X29: 0 | Z29: 2024-09-26 | AA29: 3.4130312 | AB29: 3.7573498 | AC29: 0.9083613136 | AD29: 2024-02-27 | AE29: 1021054612 | AF29: 1263580.96 | AG29: 1656 | AI29: 0.164987523 | AJ29: -0.3171305156 | AK29: 102 | AL29: 68 | AM29: 90 | AN29: 80 | AO29: 93 | AP29: 77 | AR29: 0.04981751629 | AS29: 0.03545988781 | AT29: -0.3711162072 | AU29: 0.2656978461 | AV29: -0.5821334828 | AW29: 0.4214650994 | AX29: 0.01408499469 | AY29: 0.01527609134 | AZ29: -0.1480789731 | BB29: 200.98208 | BC29: 4349.23379 | BD29: -4148.25171 | BE29: 28356.71278 | BF29: 327690.1965 | BG29: -299333.4837 | BH29: 107205.7348 | BI29: 504015.49 | BJ29: -396809.7552 | BL29: 0.03888840627 | BM29: -0.08149633832 | BN29: -0.04200041733
B30: 326941<BraNa> | C30: BTG Pactual Absoluto Institu Master FIA | D30: 326941 | E30: 2013-01-18 | F30: 17009959000190 | G30: Ações | H30: Livre | I30: BTG Pactual Asset Management S/A Dtvm | J30: BTG Pactual Servicos Financeiros SA Dtvm | K30: Banco BTG Pactual S/A | L30: 3 | M30: Não se Aplica | N30: Renda Variável | O30: Não | P30: Até 20 % | Q30: Não | R30: Não se Aplica | S30: D+001 | T30: D+001 | U30: D+003 | V30: 25000 | W30: 0 | X30: 0 | Z30: 2024-09-26 | AA30: 3.0254084 | AB30: 3.2731479 | AC30: 0.9243115473 | AD30: 2024-02-27 | AE30: 1374423959 | AF30: 1409004.02 | AG30: 3 | AI30: 0.1676792901 | AJ30: -0.3149698379 | AK30: 82 | AL30: 58 | AM30: 75 | AN30: 65 | AO30: 75 | AP30: 65 | AR30: 0.04977251638 | AS30: 0.03563552712 | AT30: -0.1792506545 | AU30: 0.4941715114 | AV30: -0.2840135098 | AW30: 0.7923952031 | AX30: 0.01408504939 | AY30: 0.01527562922 | AZ30: -0.1403190183 | BB30: 194.45484 | BC30: 37808.65245 | BD30: -37614.19761 | BE30: 549601.0659 | BF30: 536603.7299 | BG30: 12997.33594 | BH30: 680767.4515 | BI30: 780216.919 | BJ30: -99449.46746 | BL30: 0.07005774596 | BM30: -0.06108075716 | BN30: -0.03996408903
B31: 282634<BraNa> | C31: C U C D D N 95 FI Mult Cred Priv Resp Li | D31: 282634 | E31: 2011-08-01 | F31: 97522849000167 | G31: Ações | H31: Fechados de Ações | I31: BTG Pactual Wm Gestão de Recursos Ltda | J31: BTG Pactual Servicos Financeiros SA Dtvm | K31: Banco BTG Pactual S/A | L31: 1 | M31: Não se Aplica | N31: Renda Variável | O31: Inv. Profissional | P31: Até 100% | Q31: Sim | R31: Não se Aplica | S31: D+000 | T31: D+000 | U31: D+005 | Z31: 2024-09-26 | AA31: 3.1504285 | AB31: 3.3078995 | AC31: 0.9523954703 | AD31: 2024-08-20 | AE31: 1151561729 | AF31: 1125515.841 | AG31: 1 | AI31: 0.1213994213 | AJ31: -0.2883261565 | AK31: 116 | AL31: 41 | AM31: 93 | AN31: 64 | AO31: 82 | AP31: 75 | AR31: 0.04381861583 | AS31: 0.03283923492 | AT31: -0.05048032094 | AU31: 1.24681782 | AV31: -0.08090116365 | AW31: 2.071742085 | AX31: 0.0112373779 | AY31: 0.01309425718 | AZ31: -0.09596520704 | BB31: 0 | BC31: 0 | BD31: 0 | BE31: 0 | BF31: 0 | BG31: 0 | BH31: 0 | BI31: 0 | BJ31: 0 | BL31: 0.09531242232 | BM31: -0.02248084447 | BN31: -0.03152677083
B32: 339075<BraNa> | C32: Caixa FIA Institucional Bdr Nivel I | D32: 339075 | E32: 2013-06-25 | F32: 17502937000168 | G32: Ações | H32: Livre | I32: Caixa Distribuidora de Títulos e Valores Mobiliários S.A. | J32: Caixa | K32: Caixa Econômica Federal | L32: 440 | M32: Não se Aplica | N32: Renda Variável | O32: Não | P32: Não se Aplica | Q32: Não | R32: Não se Aplica | S32: D+001 | T32: D+001 | U32: D+003 | V32: 0.01 | W32: 0.01 | X32: 0.01 | Z32: 2024-09-26 | AA32: 8.61844877 | AB32: 8.78761649 | AC32: 0.9807493055 | AD32: 2024-07-02 | AE32: 2642467925 | AF32: 2307103.307 | AG32: 440 | AI32: 0.1596480175 | AJ32: -0.1415540546 | AK32: 89 | AL32: 46 | AM32: 77 | AN32: 58 | AO32: 73 | AP32: 62 | AR32: 0.0363996422 | AS32: 0.002889494089 | AT32: 2.429822392 | AU32: 0.2387068935 | AV32: 4.261674962 | AW32: 0.3786645853 | AX32: 0.0202979544 | AY32: 0.01625355478 | AZ32: -0.09713533254 | BB32: 18100.79962 | BC32: 37145.4481 | BD32: -19044.64848 | BE32: 297581.1268 | BF32: 460490.2692 | BG32: -162909.1424 | BH32: 306000.2336 | BI32: 641243.9271 | BJ32: -335243.6935 | BL32: 0.5170341015 | BM32: 0.4093213548 | BN32: -0.0006097064979
B33: 654949<BraNa> | C33: Caixa FMP FGTS Eletrobras | D33: 654949 | E33: 2022-06-14 | F33: 45160183000140 | G33: Ações | H33: FMP-FGTS | I33: Caixa Distribuidora de Títulos e Valores Mobiliários S.A. | J33: Caixa | K33: Caixa Econômica Federal | L33: 91086 | M33: Não se Aplica | N33: Renda Variável | O33: Não | P33: Não se Aplica | Q33: Não | R33: Não se Aplica | S33: D+000 | T33: D+001 | U33: D+005 | V33: 200 | W33: 0 | X33: 0 | Z33: 2024-09-26 | AA33: 0.945031 | AB33: 1.062941 | AC33: 0.889071924 | AD33: 2024-02-20 | AE33: 1047576454 | AF33: 1106112.455 | AG33: 91086 | AI33: 0.1721221932 | AJ33: -0.1544520647 | AK33: 12 | AL33: 15 | AM33: 11 | AN33: 16 | AO33: 9 | AP33: 18 | AR33: 0.07479295014 | AS33: 0.06194038821 | AT33: 0.08440259236 | AU33: 1.83900605 | AV33: 0.131956458 | AW33: 3.129460237 | AX33: 0.02562282191 | AY33: 0.02537133149 | AZ33: -0.2162293109 | BB33: 0 | BC33: 9175.47337 | BD33: -9175.47337 | BE33: 0 | BF33: 85077.43924 | BG33: -85077.43924 | BH33: 0 | BI33: 121272.1817 | BJ33: -121272.1817 | BL33: 0.1005688997 | BM33: -0.06871935867 | BN33: -0.06208030711
B34: 311286<BraNa> | C34: Caixa Vinci Valor Dividendos FIA | D34: 311286 | E34: 2012-08-24 | F34: 15154458000172 | G34: Ações | H34: Dividendos | I34: Vinci Equities Gestora de Recursos Ltda | J34: Caixa | K34: Caixa Econômica Federal | L34: 1 | M34: Não se Aplica | N34: Não Aplicável | O34: Não | P34: Não se Aplica | Q34: Não | R34: Não se Aplica | S34: D+001 | T34: D+015 | U34: D+017 | Z34: 2024-09-26 | AA34: 3.55068679 | AB34: 3.67246616 | AC34: 0.9668398932 | AD34: 2024-09-05 | AE34: 1058034167 | AF34: 997691.5593 | AG34: 1 | AI34: 0.1441950443 | AJ34: -0.2730389163 | AK34: 85 | AL34: 60 | AM34: 78 | AN34: 67 | AO34: 83 | AP34: 62 | AR34: 0.03780318439 | AS34: 0.02818628182 | AT34: 0.4921426024 | AU34: 1.927205966 | AV34: 0.8115294299 | AW34: 3.239142527 | AX34: 0.01067322469 | AY34: 0.01174823239 | AZ34: -0.06344880531 | BB34: 2000 | BC34: 10000 | BD34: -8000 | BE34: 77000 | BF34: 70980 | BG34: 6020 | BH34: 78500 | BI34: 112430 | BJ34: -33930 | BL34: 0.1658463651 | BM34: 0.0363369993 | BN34: -0.02025965812
B35: 112461<BraNa> | C35: Cancale FIA | D35: 112461 | E35: 2002-11-29 | F35: 4566470000178 | G35: Ações | H35: Livre | I35: Eduardo Brenner | J35: Credit Suisse Hedging Griffo Cor Val S.A | K35: Itau Unibanco S.A. | L35: 1 | M35: IBOVESPA | N35: Renda Variável | O35: Inv. Profissional | P35: Até 40 % | Q35: Sim | R35: Não se Aplica | S35: D+000 | T35: D+001 | U35: D+003 | V35: 500 | W35: 5000 | X35: 500000 | Z35: 2024-09-25 | AA35: 17.7103945 | AB35: 18.041598 | AC35: 0.9816422304 | AD35: 2024-09-17 | AE35: 1115754660 | AF35: 1051433.232 | AG35: 1 | AI35: 0.1486963722 | AJ35: -0.2577833005 | AK35: 159 | AL35: 103 | AM35: 142 | AN35: 120 | AO35: 139 | AP35: 123 | AR35: 0.03559204541 | AS35: 0.02451559031 | AT35: -0.1779526114 | AU35: 1.724391425 | AV35: -0.2853917683 | AW35: 3.042689484 | AX35: 0.01017820944 | AY35: 0.009985530013 | AZ35: -0.07815664687 | BB35: 0 | BC35: 0 | BD35: 0 | BE35: 68168.92861 | BF35: 5033.84508 | BG35: 63135.08353 | BH35: 68168.92861 | BI35: 5033.84508 | BJ35: 63135.08353 | BL35: 0.08705032121 | BM35: -0.003017266411 | BN35: -0.007986966573
B36: 393983<BraNa> | C36: Chardonnay FIA Ie | D36: 393983 | E36: 2015-03-30 | F36: 21681273000119 | G36: Ações | H36: Invest. no Exterior | I36: BTG Pactual Wm Gestão de Recursos Ltda | J36: BTG Pactual Servicos Financeiros SA Dtvm | K36: Banco BTG Pactual S/A | L36: 7 | M36: Não se Aplica | N36: Renda Variável | O36: Inv. Profissional | P36: Até 100% | Q36: Sim | R36: Não | S36: D+000 | T36: D+000 | U36: D+005 | V36: 0 | W36: 0 | X36: 0 | Z36: 2024-09-26 | AA36: 690.89912 | AB36: 745.1366499 | AC36: 0.9272112975 | AD36: 2024-09-13 | AE36: 12862004743 | AF36: 11109138.47 | AG36: 7 | AI36: 6.214258198 | AJ36: -1 | AR36: 0.07262290972 | AS36: 0.05451461161 | AT36: 0.5234082609 | AU36: 3.369106087 | AV36: 0.8715603189 | AW36: 6.212363622 | AX36: 0.02324761483 | AY36: 0.02742858671 | AZ36: -0.1446559528 | BB36: 0 | BC36: 0 | BD36: 0 | BE36: 0 | BF36: 0 | BG36: 0 | BH36: 340665.5825 | BI36: 0 | BJ36: 340665.5825 | BL36: 0.2219636905 | BM36: 0.1141626736 | BN36: -0.006745442102
B37: 455180<BraNa> | C37: Classe Unica Cotas do Agpj2 FIA | D37: 455180 | E37: 2017-12-19 | F37: 29044201000172 | G37: Ações | H37: Invest. no Exterior | I37: BTG Pactual Wm Gestão de Recursos Ltda | J37: BTG Pactual Servicos Financeiros SA Dtvm | K37: Banco BTG Pactual S/A | L37: 1 | M37: Não se Aplica | N37: Renda Variável | O37: Inv. Profissional | P37: Até 100% | Q37: S | R37: Não se Aplica | S37: D+000 | T37: D+000 | U37: D+030 | Z37: 2024-09-26 | AA37: 11476.23903 | AB37: 11490.1843 | AC37: 0.9987863322 | AD37: 2024-09-16 | AE37: 4491089123 | AF37: 3573030.484 | AG37: 1 | AI37: 0.09189373287 | AJ37: -0.2492632686 | AK37: 50 | AL37: 31 | AM37: 39 | AN37: 42 | AO37: 35 | AP37: 46 | AR37: 0.00866414088 | AS37: 0.0006499675318 | AT37: -2.578440497 | AU37: -19.88933652 | AV37: -4.00941228 | AW37: -13.36292019 | AX37: 0.0004441865494 | AY37: 0.002338004796 | AZ37: -0.009568544565 | BB37: 0 | BC37: 0 | BD37: 0 | BE37: 0 | BF37: 0 | BG37: 0 | BH37: 3734815.977 | BI37: 0 | BJ37: 3734815.977 | BL37: 0.04632177597 | BM37: 0.002193357746 | BN37: -9.084401972e-05
B38: 444863<BraNa> | C38: Clique Master FIA | D38: 444863 | E38: 2017-07-14 | F38: 26840592000143 | G38: Ações | H38: Livre | I38: Eduardo Brenner | J38: Credit Suisse Hedging Griffo Cor Val S.A | K38: Itau Unibanco S.A. | L38: 5 | M38: CDI | N38: Renda Variável | O38: Inv. Profissional | P38: Até 40 % | Q38: Sim | R38: Não | S38: D+000 | T38: D+001 | U38: D+003 | V38: 1 | W38: 1 | X38: 1 | Z38: 2024-09-25 | AA38: 17.7774809 | AB38: 18.2217016 | AC38: 0.9756213382 | AD38: 2024-09-16 | AE38: 2666020169 | AF38: 2548999.469 | AG38: 5 | AI38: 0.1268470548 | AJ38: -0.2610837045 | AK38: 47 | AL38: 39 | AM38: 44 | AN38: 42 | AO38: 40 | AP38: 46 | AR38: 0.03986561513 | AS38: 0.02894175746 | AT38: -0.04442839257 | AU38: 2.178859846 | AV38: -0.07192736384 | AW38: 3.777686025 | AX38: 0.009936751664 | AY38: 0.01070221132 | AZ38: -0.08218903864 | BB38: 0 | BC38: 15.88155 | BD38: -15.88155 | BE38: 10385.89236 | BF38: 206.84347 | BG38: 10179.04889 | BH38: 10411.80266 | BI38: 16207.83312 | BJ38: -5796.03046 | BL38: 0.1002148217 | BM38: 0.002099176669 | BN38: -0.01163736197
B39: 236942<BraNa> | C39: Constancia Fundamento FIA | D39: 236942 | E39: 2009-10-16 | F39: 11182064000177 | G39: Ações | H39: Livre | I39: Constância Investimentos Ltda. | J39: Bem Dtvm | K39: Banco Bradesco S.A. | L39: 1915 | M39: IBOVESPA | N39: Renda Variável | O39: Não | P39: Até 20 % | Q39: Não | R39: Não se Aplica | S39: D+001 | T39: D+014 | U39: D+015 | V39: 1000 | W39: 1000 | X39: 1000 | Z39: 2024-09-26 | AA39: 4.2289203 | AB39: 4.3930457 | AC39: 0.962639724 | AD39: 2023-12-29 | AE39: 1376112824 | AF39: 1407245.971 | AG39: 1915 | AI39: 0.1619042337 | AJ39: -0.3155894405 | AK39: 106 | AL39: 73 | AM39: 88 | AN39: 91 | AO39: 103 | AP39: 76 | AR39: 0.04574259726 | AS39: 0.0292345926 | AT39: -0.1804791014 | AU39: 1.587838739 | AV39: -0.2823215921 | AW39: 2.725597995 | AX39: 0.01196529187 | AY39: 0.01371181246 | AZ39: -0.1308494469 | BB39: 2816.09403 | BC39: 72441.44178 | BD39: -69625.34775 | BE39: 216187.3455 | BF39: 220097.0528 | BG39: -3909.70725 | BH39: 236612.2043 | BI39: 241629.3619 | BJ39: -5017.1576 | BL39: 0.07512698826 | BM39: -0.03736027604 | BN39: -0.02070453497
B40: 558771<BraNa> | C40: CSHG 1122c2 FIA Ie | D40: 558771 | E40: 2020-10-30 | F40: 36874409000184 | G40: Ações | H40: Invest. no Exterior | I40: Credit Suisse Hedging-Griffo Wealth Management S.A. | J40: Credit Suisse Hedging Griffo Cor Val S.A | K40: Itau Unibanco S.A. | L40: 1 | M40: IBOVESPA | N40: Renda Variável | O40: Inv. Profissional | P40: Até 100% | Q40: S | R40: N | S40: D+000 | T40: D+000 | U40: D+001 | V40: 1000000 | W40: 0 | X40: 0 | Z40: 2024-09-26 | AA40: 16.0853241 | AB40: 16.7979391 | AC40: 0.9575772364 | AD40: 2024-07-02 | AE40: 2160859987 | AF40: 1838218.908 | AG40: 1 | AI40: 0.1568707791 | AJ40: -0.09541666323 | AK40: 27 | AL40: 20 | AM40: 24 | AN40: 23 | AO40: 26 | AP40: 21 | AR40: 0.0348323745 | AS40: 0.001044078433 | AT40: 1.704387441 | AU40: 0.1259254738 | AV40: 2.746853008 | AW40: 0.1882400557 | AX40: 0.02140467866 | AY40: 0.01660460627 | AZ40: -0.1218022692 | BB40: 0 | BC40: 0 | BD40: 0 | BE40: 0 | BF40: 0 | BG40: 0 | BH40: 0 | BI40: 0 | BJ40: 0 | BL40: 0.3973550223 | BM40: 0.31299186 | BN40: 0.00325530921
B41: 690635<BraNa> | C41: CSHG 1122c22 FIA Ie | D41: 690635 | E41: 2023-01-27 | F41: 47123113000148 | G41: Ações | H41: Invest. no Exterior | I41: Credit Suisse Hedging-Griffo Wealth Management S.A. | J41: Credit Suisse Hedging Griffo Cor Val S.A | K41: Itau Unibanco S.A. | L41: 1 | M41: IBOVESPA | N41: Renda Variável | O41: Inv. Profissional | P41: Até 100% | Q41: S | R41: N | S41: D+000 | T41: D+000 | U41: D+001 | V41: 1000000 | W41: 0 | X41: 0 | Z41: 2024-09-26 | AA41: 14.2160822 | AB41: 15.0094529 | AC41: 0.9471419308 | AD41: 2024-09-04 | AE41: 4342733113 | AF41: 3660033.586 | AG41: 1 | AI41: 0.1180132677 | AJ41: -0.05641190915 | AK41: 11 | AL41: 9 | AM41: 11 | AN41: 9 | AO41: 11 | AP41: 9 | AR41: 0.05251641617 | AS41: 0.06926081868 | AT41: 0.9345544166 | AU41: 2.892646688 | AV41: 1.529249438 | AW41: 5.113028358 | AX41: 0.02372681456 | AY41: 0.02134662877 | AZ41: -0.1537033027 | BB41: 0 | BC41: 0 | BD41: 0 | BE41: 0 | BF41: 0 | BG41: 0 | BH41: 0 | BI41: 0 | BJ41: 0 | BL41: 0.2977991185 | BM41: 0.265723307 | BN41: -0.0491828782
B42: 343031<BraNa> | C42: CSHG Cerejeira Equity FIF Acoes Resp Lim | D42: 343031 | E42: 2013-08-05 | F42: 7887001000149 | G42: Ações | H42: Invest. no Exterior | I42: Credit Suisse Hedging-Griffo Wealth Management S.A. | J42: Credit Suisse Hedging Griffo Cor Val S.A | K42: Itau Unibanco S.A. | L42: 3 | M42: IBOVESPA | N42: Renda Variável | O42: Inv. Profissional | P42: Até 100% | Q42: Sim | R42: Não | S42: D+000 | T42: D+001 | U42: D+003 | V42: 500000 | W42: 1 | X42: 500000 | Z42: 2024-09-25 | AA42: 7.0701404 | AB42: 7.1932705 | AC42: 0.9828825984 | AD42: 2024-09-13 | AE42: 3675309440 | AF42: 1549748.329 | AG42: 3 | AI42: 0.1455252503 | AJ42: -0.2750989556 | AK42: 82 | AL42: 51 | AM42: 69 | AN42: 64 | AO42: 64 | AP42: 69 | AR42: 0.02052915755 | AS42: 0.01247358883 | AT42: 0.2068838851 | AU42: 0.391221154 | AV42: 0.3740374218 | AW42: 0.6494187851 | AX42: 0.003697626418 | AY42: 0.005636239822 | AZ42: -0.02745139739 | BB42: 2245874.468 | BC42: 20001.2 | BD42: 2225873.268 | BE42: 2245874.468 | BF42: 96888.26261 | BG42: 2148986.206 | BH42: 2245874.468 | BI42: 96888.26261 | BJ42: 2148986.206 | BL42: 0.1221101575 | BM42: 0.07948772958 | BN42: -0.01051930051
B43: 254193<BraNa> | C43: CSHG Novo Tempo FIA Ie | D43: 254193 | E43: 2010-08-02 | F43: 11991689000180 | G43: Ações | H43: Invest. no Exterior | I43: Credit Suisse Hedging-Griffo Wealth Management S.A. | J43: Credit Suisse Hedging Griffo Cor Val S.A | K43: Itau Unibanco S.A. | L43: 2 | M43: IBOVESPA FECHAMENTO | N43: Renda Variável | O43: Inv. Profissional | P43: Até 100% | Q43: S | R43: Não | S43: D+000 | T43: D+001 | U43: D+003 | V43: 500000 | W43: 1 | X43: 500000 | Z43: 2024-09-25 | AA43: 4.6500044 | AB43: 4.8528212 | AC43: 0.958206414 | AD43: 2023-12-27 | AE43: 1109838987 | AF43: 1089432.756 | AG43: 2 | AI43: 0.1512066248 | AJ43: -0.3002328768 | AK43: 111 | AL43: 58 | AM43: 101 | AN43: 68 | AO43: 93 | AP43: 76 | AR43: 0.04373417044 | AS43: 0.01688422862 | AT43: -0.3907107877 | AU43: 1.353380369 | AV43: -0.621552299 | AW43: 2.342627572 | AX43: 0.009247251562 | AY43: 0.01256451882 | AZ43: -0.1088610271 | BB43: 0 | BC43: 0 | BD43: 0 | BE43: 0 | BF43: 0 | BG43: 0 | BH43: 0 | BI43: 0 | BJ43: 0 | BL43: 0.05067398073 | BM43: -0.04024078746 | BN43: -0.007267923425
B44: 363049<BraNa> | C44: CSHG Sakura II FIF - Acoes Resp Limitada | D44: 363049 | E44: 2014-03-14 | F44: 18716479000122 | G44: Ações | H44: Invest. no Exterior | I44: Credit Suisse Hedging-Griffo Wealth Management S.A. | J44: Credit Suisse Hedging Griffo Cor Val S.A | K44: Itau Unibanco S.A. | L44: 1 | M44: IBOVESPA | N44: Renda Variável | O44: Inv. Profissional | P44: Até 100% | Q44: Sim | R44: Não | S44: D+000 | T44: D+001 | U44: D+003 | V44: 500000 | W44: 1 | X44: 500000 | Z44: 2024-09-25 | AA44: 2722.660065 | AB44: 2791.424203 | AC44: 0.9753659304 | AD44: 2024-08-20 | AE44: 1106071708 | AF44: 1163015.241 | AG44: 1 | AI44: 0.05254128363 | AJ44: -0.09541085013 | AK44: 102 | AL44: 24 | AM44: 78 | AN44: 48 | AO44: 63 | AP44: 63 | AR44: 0.02080087473 | AS44: 0.01699664115 | AT44: 0.03890874432 | AU44: 0.1625350782 | AV44: 0.06707213493 | AW44: 0.2557377004 | AX44: 0.004908055288 | AY44: 0.006236742974 | AZ44: -0.03274290477 | BB44: 0 | BC44: 0 | BD44: 0 | BE44: 0 | BF44: 120065.2402 | BG44: -120065.2402 | BH44: 0 | BI44: 120065.2402 | BJ44: -120065.2402 | BL44: 0.1118224743 | BM44: 0.05037774398 | BN44: -0.01625780919
B45: 311383<BraNa> | C45: Cx Fc Acoes Expert Vinci Valor Div Rpps | D45: 311383 | E45: 2012-08-24 | F45: 15154441000115 | G45: Ações | H45: Dividendos | I45: Caixa Distribuidora de Títulos e Valores Mobiliários S.A. | J45: Caixa | K45: Caixa Econômica Federal | L45: 150 | M45: Não se Aplica | N45: Renda Variável | O45: Não | P45: Não se Aplica | Q45: Não | R45: Não se Aplica | S45: D+001 | T45: D+030 | U45: D+032 | V45: 10000 | W45: 100 | X45: 1000 | Z45: 2024-09-26 | AA45: 2.71427062 | AB45: 2.80816178 | AC45: 0.9665649035 | AD45: 2024-09-05 | AE45: 1064010416 | AF45: 1005838.393 | AG45: 150 | AI45: 0.1426057351 | AJ45: -0.2740084 | AK45: 84 | AL45: 61 | AM45: 75 | AN45: 70 | AO45: 79 | AP45: 66 | AR45: 0.03755665911 | AS45: 0.02795375894 | AT45: 0.4102308532 | AU45: 1.81853872 | AV45: 0.673707634 | AW45: 3.042000636 | AX45: 0.01059123163 | AY45: 0.01165121253 | AZ45: -0.06474410671 | BB45: 1000 | BC45: 10000 | BD45: -9000 | BE45: 82404.34467 | BF45: 70694.89201 | BG45: 11709.45266 | BH45: 84276.32484 | BI45: 110570.9576 | BJ45: -26294.63281 | BL45: 0.155264373 | BM45: 0.02990600836 | BN45: -0.02074559368
B46: 640050<BraNa> | C46: De Duero FIA Ie | D46: 640050 | E46: 2022-02-22 | F46: 44515588000191 | G46: Ações | H46: Invest. no Exterior | I46: BTG Pactual Wm Gestão de Recursos Ltda | J46: BTG Pactual Servicos Financeiros SA Dtvm | K46: S3 Caceis Brasil Distribuidora de Titulos e Valores Mobiliarios S.A | L46: 2 | M46: Não se Aplica | N46: Renda Variável | O46: Inv. Profissional | P46: Até 100% | Q46: S | R46: N | S46: D+000 | T46: D+000 | U46: D+002 | V46: 0 | W46: 0 | X46: 0 | Z46: 2024-09-26 | AA46: 1.26269356 | AB46: 1.48720641 | AC46: 0.8490371959 | AD46: 2024-01-15 | AE46: 3112609156 | AF46: 3004444.407 | AG46: 2 | AI46: 0.2065653412 | AJ46: -0.1425041758 | AK46: 14 | AL46: 17 | AM46: 12 | AN46: 19 | AO46: 15 | AP46: 16 | AR46: 0.07122441562 | AS46: 0.0547552502 | AT46: -0.09719671034 | AU46: -0.3429647602 | AV46: -0.1650017549 | AW46: -0.5196794154 | AX46: 0.01968277811 | AY46: 0.02492379066 | AZ46: -0.189686864 | BB46: 7250 | BC46: 0 | BD46: 7250 | BE46: 355750 | BF46: 122000 | BG46: 233750 | BH46: 1062116.893 | BI46: 122000 | BJ46: 940116.8931 | BL46: 0.05432596064 | BM46: -0.1327817439 | BN46: -0.06438888941
B47: 282286<BraNa> | C47: Delta Fm&B FIA | D47: 282286 | E47: 2011-07-29 | F47: 12952687000144 | G47: Ações | H47: Setoriais | I47: BTG Pactual Wm Gestão de Recursos Ltda | J47: BTG Pactual Servicos Financeiros SA Dtvm | K47: Banco BTG Pactual S/A | L47: 1 | M47: Não se Aplica | N47: Renda Variável | O47: Inv. Profissional | P47: Não se Aplica | Q47: Sim | R47: Não | S47: D+000 | T47: D+001 | U47: D+003 | V47: 0 | W47: 0 | X47: 0 | Z47: 2024-09-26 | AA47: 20689649.22 | AB47: 22668934.27 | AC47: 0.9126873356 | AD47: 2024-09-13 | AE47: 9812168637 | AF47: 8434662.58 | AG47: 1 | AI47: 11.76558457 | AJ47: -0.582667659 | AK47: 64 | AL47: 94 | AM47: 37 | AN47: 121 | AO47: 76 | AP47: 82 | AR47: 0.09200725476 | AS47: 0.06776922261 | AT47: 0.5179439958 | AU47: 3.583542222 | AV47: 0.8636973496 | AW47: 6.606786273 | AX47: 0.02924119767 | AY47: 0.03543933814 | AZ47: -0.1870442666 | BB47: 0 | BC47: 0 | BD47: 0 | BE47: 0 | BF47: 115000.0067 | BG47: -115000.0067 | BH47: 356052.2794 | BI47: 115000.0067 | BJ47: 241052.2727 | BL47: 0.2342259356 | BM47: 0.1154945509 | BN47: -0.006821674247
B48: 170321<BraNa> | C48: Dibra FIA | D48: 170321 | E48: 2006-08-29 | F48: 7973152000110 | G48: Ações | H48: Fechados de Ações | I48: Itau Dtvm S.A. | J48: Itau Unibanco SA | K48: Itau Unibanco S.A. | L48: 5 | M48: IBOVESPA FECHAMENTO | N48: Renda Variável | O48: Inv. Profissional | P48: Até 40 % | Q48: Sim | R48: Não se Aplica | S48: D+000 | T48: D+001 | U48: D+003 | V48: 100 | W48: 100 | X48: 100 | Z48: 2024-09-26 | AA48: 10128574.14 | AB48: 16962790.81 | AC48: 0.5971054088 | AD48: 2024-03-14 | AE48: 5351462230 | AF48: 7298426.53 | AG48: 5 | AI48: 1.910448804 | AJ48: -0.7225197754 | AK48: 120 | AL48: 97 | AM48: 108 | AN48: 109 | AO48: 116 | AP48: 101 | AR48: 0.07382783519 | AS48: 0.0428738621 | AT48: -1.353072866 | AU48: -2.271422395 | AV48: -2.003549801 | AW48: -3.021200135 | AX48: 0.02700665372 | AY48: 0.02802586799 | AZ48: -0.4028945912 | BB48: 300 | BC48: 0 | BD48: 300 | BE48: 680 | BF48: 0 | BG48: 680 | BH48: 980 | BI48: 0 | BJ48: 980 | BL48: -0.3218740211 | BM48: -0.3546843572 | BN48: -0.08210924153
B49: 354503<BraNa> | C49: Dom Bosco FI Financeiro Ações - Responsabilidade L | D49: 354503 | E49: 2013-12-02 | F49: 14387403000140 | G49: Ações | H49: Dividendos | I49: Fundação Dos Economiários Federais - Funcef | J49: Caixa | K49: Banco Bradesco S.A. | L49: 3 | M49: Não se Aplica | N49: Não Aplicável | O49: Inv. Profissional | P49: Não se Aplica | Q49: Não | R49: Não se Aplica | S49: D+000 | T49: D+000 | U49: D+002 | Z49: 2024-09-26 | AA49: 194.4988125 | AB49: 203.1037057 | AC49: 0.9576330074 | AD49: 2024-08-28 | AE49: 1669936149 | AF49: 1915849.595 | AG49: 3 | AI49: 0.183022641 | AJ49: -0.3615446019 | AK49: 74 | AL49: 55 | AM49: 68 | AN49: 61 | AO49: 59 | AP49: 70 | AR49: 0.04444271265 | AS49: 0.03231101884 | AT49: -0.0900952108 | AU49: 1.252683581 | AV49: -0.1433453966 | AW49: 2.061807353 | AX49: 0.0126541574 | AY49: 0.01377021241 | AZ49: -0.1194353521 | BB49: 0 | BC49: 143165.2179 | BD49: -143165.2179 | BE49: 228619.3636 | BF49: 308913.621 | BG49: -80294.25736 | BH49: 228619.3636 | BI49: 1532313.621 | BJ49: -1303694.257 | BL49: 0.08820328411 | BM49: -0.04176401464 | BN49: -0.03120575111
B50: 185485<BraNa> | C50: Dybra FIC FIA | D50: 185485 | E50: 2007-03-16 | F50: 8639942000126 | G50: Ações | H50: Livre | I50: Dynamo Administração de Recursos Ltda | J50: Dynamo Administracao de Recursos Ltda | K50: Banco Bradesco S.A. | L50: 44 | M50: Não se Aplica | N50: Renda Variável | O50: Inv. Qualificado | P50: Até 40 % | Q50: Sim | R50: Não | S50: D+001 | T50: D+090 | U50: D+092 | V50: 25000 | W50: 25000 | X50: 25000 | Z50: 2024-09-26 | AA50: 13960.9798 | AB50: 14439.9903 | AC50: 0.9668275053 | AD50: 2024-09-13 | AE50: 1638759475 | AF50: 1445670.007 | AG50: 44 | AI50: 0.1584368252 | AJ50: -0.3042433527 | AK50: 135 | AL50: 75 | AM50: 123 | AN50: 87 | AO50: 122 | AP50: 88 | AR50: 0.04970319125 | AS50: 0.02985650449 | AT50: 0.4459522342 | AU50: 2.447824165 | AV50: 0.7528223292 | AW50: 4.518163565 | AX50: 0.01498901849 | AY50: 0.01623189454 | AZ50: -0.1201488984 | BB50: 0 | BC50: 0 | BD50: 0 | BE50: 135136.1071 | BF50: 14551.22631 | BG50: 120584.8808 | BH50: 135466.1071 | BI50: 34551.22631 | BJ50: 100914.8808 | BL50: 0.1745238603 | BM50: 0.0488007095 | BN50: -0.01165210143
B51: 010431<BraNa> | C51: Dynamo Cougar FIC FIA | D51: 10431 | E51: 1996-01-03 | F51: 73232530000139 | G51: Ações | H51: Livre | I51: Dynamo Administração de Recursos Ltda | J51: Dynamo Administracao de Recursos Ltda | K51: Banco Bradesco S.A. | L51: 810 | M51: OUTROS | N51: Não Aplicável | O51: Inv. Qualificado | P51: Até 40 % | Q51: Sim | R51: Não | S51: D+001 | T51: D+012 | U51: D+014 | V51: 300000 | W51: 30000 | X51: 30000 | Z51: 2024-09-26 | AA51: 1517.923282 | AB51: 1571.026301 | AC51: 0.9661985172 | AD51: 2024-09-13 | AE51: 5975143031 | AF51: 6003148.395 | AG51: 810 | AI51: 0.2436509635 | AJ51: -0.3206162079 | AK51: 225 | AL51: 119 | AM51: 199 | AN51: 145 | AO51: 185 | AP51: 159 | AR51: 0.04980619888 | AS51: 0.02979812809 | AT51: 0.3291675035 | AU51: 2.27867575 | AV51: 0.5524803628 | AW51: 4.175082576 | AX51: 0.01503121739 | AY51: 0.01626419987 | AZ51: -0.1237600115 | BB51: 0 | BC51: 74762.89679 | BD51: -74762.89679 | BE51: 42091.38746 | BF51: 610671.0279 | BG51: -568579.6405 | BH51: 55063.52912 | BI51: 762842.0177 | BJ51: -707778.4885 | BL51: 0.1544480126 | BM51: 0.03537763858 | BN51: -0.01296554767
B52: 597570<BraNa> | C52: Dynamo Cougar Master - FIA | D52: 597570 | E52: 2021-05-10 | F52: 37916879000126 | G52: Ações | H52: Livre | I52: Dynamo Administração de Recursos Ltda | J52: Dynamo Administracao de Recursos Ltda | K52: Banco Bradesco S.A. | L52: 7 | M52: Não se Aplica | N52: Renda Variável | O52: Inv. Qualificado | P52: Até 40 % | Q52: S | R52: N | S52: D+001 | T52: D+001 | U52: D+002 | V52: 1000000 | W52: 0 | X52: 100000 | Z52: 2024-09-26 | AA52: 931.5184341 | AB52: 963.5237573 | AC52: 0.9667830472 | AD52: 2024-09-13 | AE52: 9611411990 | AF52: 9321895.81 | AG52: 7 | AI52: 0.1393989601 | AJ52: -0.136164564 | AK52: 19 | AL52: 21 | AM52: 19 | AN52: 21 | AO52: 20 | AP52: 20 | AR52: 0.04981320594 | AS52: 0.0299108585 | AT52: 0.4574102243 | AU52: 2.459146923 | AV52: 0.7726762225 | AW52: 4.540753426 | AX52: 0.01504435923 | AY52: 0.01627734889 | AZ52: -0.120081319 | BB52: 0 | BC52: 96350 | BD52: -96350 | BE52: 176350 | BF52: 754150 | BG52: -577800 | BH52: 214600 | BI52: 952050 | BJ52: -737450 | BL52: 0.1766389121 | BM52: 0.05007108303 | BN52: -0.01159298071
B53: 366889<BraNa> | C53: Eneva FIF Acoes Resp Limitada | D53: 366889 | E53: 2014-02-28 | F53: 19250704000140 | G53: Ações | H53: Fechados de Ações | I53: Lanx Capital Investimentos Ltda | J53: Intrag | K53: Itau Unibanco S.A. | L53: 13 | M53: IBOVESPA FECHAMENTO | N53: Renda Variável | O53: Inv. Profissional | P53: Até 40 % | Q53: Sim | R53: Não se Aplica | S53: D+000 | T53: D+000 | U53: D+002 | V53: 1 | W53: 1 | X53: 0 | Z53: 2024-09-26 | AA53: 5275.456202 | AB53: 5358.971604 | AC53: 0.9844157782 | AD53: 2024-09-17 | AE53: 4350009705 | AF53: 3968886.121 | AG53: 13 | AI53: 0.3216938607 | AJ53: -0.1700518379 | AK53: 71 | AL53: 56 | AM53: 58 | AN53: 69 | AO53: 64 | AP53: 63 | AR53: 0.06534273716 | AS53: 0.02808782337 | AT53: 0.3701803509 | AU53: 1.514869844 | AV53: 0.5975533422 | AW53: 2.576887711 | AX53: 0.02393094114 | AY53: 0.02654466759 | AZ53: -0.1174689524 | BB53: 0 | BC53: 0 | BD53: 0 | BE53: 3499.99905 | BF53: 0 | BG53: 3499.99905 | BH53: 5010.25721 | BI53: 0 | BJ53: 5010.25721 | BL53: 0.1774548523 | BM53: 0.0211616526 | BN53: 0.05932472266
B54: 355097<BraNa> | C54: FIA Alvorada | D54: 355097 | E54: 2013-12-02 | F54: 3524814000113 | G54: Ações | H54: Índice Ativo | I54: Fundação Dos Economiários Federais - Funcef | J54: Caixa | K54: Banco Bradesco S.A. | L54: 2 | M54: IBRX | N54: Não Aplicável | O54: Inv. Profissional | P54: Não se Aplica | Q54: Não | R54: Não se Aplica | S54: D+000 | T54: D+000 | U54: D+002 | Z54: 2024-09-26 | AA54: 1407.070231 | AB54: 1463.740372 | AC54: 0.9612840212 | AD54: 2024-08-28 | AE54: 3055134539 | AF54: 6172508.418 | AG54: 2 | AI54: 0.1535232658 | AJ54: -0.2946734865 | AK54: 74 | AL54: 55 | AM54: 68 | AN54: 61 | AO54: 74 | AP54: 55 | AR54: 0.04521249311 | AS54: 0.03409948883 | AT54: 0.2906096054 | AU54: 1.865499181 | AV54: 0.4745251803 | AW54: 3.072974576 | AX54: 0.01157396997 | AY54: 0.01293538172 | AZ54: -0.106504741 | BB54: 260000 | BC54: 918788.4159 | BD54: -658788.4159 | BE54: 460000 | BF54: 4578788.416 | BG54: -4118788.416 | BH54: 460000 | BI54: 5901988.416 | BJ54: -5441988.416 | BL54: 0.1426722541 | BM54: -0.01092333268 | BN54: -0.02981521844
B55: 382981<BraNa> | C55: FIA Aspen IE | D55: 382981 | E55: 2014-12-01 | F55: 18149466000119 | G55: Ações | H55: Invest. no Exterior | I55: Peninsula Patrimonial Gestão de Recursos Ltda. | J55: BTG Pactual Servicos Financeiros SA Dtvm | K55: Banco BTG Pactual S/A | L55: 1 | M55: Não se Aplica | N55: Renda Variável | O55: Inv. Profissional | P55: Até 100% | Q55: Sim | R55: Não se Aplica | S55: D+001 | T55: D+001 | U55: D+003 | V55: 1000000 | W55: 0 | X55: 0 | Z55: 2024-09-26 | AA55: 0.7367521 | AB55: 0.8030254 | AC55: 0.917470481 | AD55: 2024-03-27 | AE55: 1387136095 | AF55: 1413950.764 | AG55: 1 | AI55: 0.1759111544 | AJ55: -0.2535089703 | AK55: 61 | AL55: 56 | AM55: 52 | AN55: 65 | AO55: 49 | AP55: 68 | AR55: 0.0326210804 | AS55: 0.00929067507 | AT55: -0.5159850094 | AU55: 0.396809593 | AV55: -0.9532811719 | AW55: 0.6482988293 | AX55: 0.009692224283 | AY55: 0.01297207409 | AZ55: -0.1173307843 | BB55: 0 | BC55: 0 | BD55: 0 | BE55: 15835 | BF55: 0 | BG55: 15835 | BH55: 15835 | BI55: 0 | BJ55: 15835 | BL55: 0.03125083546 | BM55: -0.08021730655 | BN55: -0.001435597423
B56: 221041<BraNa> | C56: FIA Dividendos 114 | D56: 221041 | E56: 2008-11-04 | F56: 7792415000194 | G56: Ações | H56: Livre | I56: Fundacao Cesp | J56: Bem Dtvm | K56: Banco Bradesco S.A. | L56: 1 | M56: IBRX | N56: Não Aplicável | O56: Inv. Profissional | P56: Não se Aplica | Q56: Não | R56: Não se Aplica | S56: D+000 | T56: D+000 | U56: D+001 | Z56: 2024-09-26 | AA56: 712.344273 | AB56: 744.7310802 | AC56: 0.9565120779 | AD56: 2024-08-28 | AE56: 1473417465 | AF56: 1444813.54 | AG56: 1 | AI56: 0.1188344 | AJ56: -0.2699035509 | AK56: 110 | AL56: 80 | AM56: 103 | AN56: 87 | AO56: 98 | AP56: 92 | AR56: 0.04555141057 | AS56: 0.03930560327 | AT56: -0.09732298308 | AU56: 1.756980433 | AV56: -0.1511636017 | AW56: 2.847372899 | AX56: 0.0116118206 | AY56: 0.0126720869 | AZ56: -0.1302896948 | BB56: 6550 | BC56: 31050 | BD56: -24500 | BE56: 752428 | BF56: 402946.8936 | BG56: 349481.1064 | BH56: 766378 | BI56: 434946.8936 | BJ56: 331431.1064 | BL56: 0.08975255139 | BM56: -0.03867303155 | BN56: -0.03401550168
B57: 240974<BraNa> | C57: FIA Hs Ie | D57: 240974 | E57: 2010-01-04 | F57: 10141924000161 | G57: Ações | H57: Invest. no Exterior | I57: Quatrinvest Administradora de Recursos Ltda | J57: Credit Suisse Hedging Griffo Cor Val S.A | K57: Itau Unibanco S.A. | L57: 1 | M57: IBOVESPA FECHAMENTO | N57: Renda Variável | O57: Inv. Profissional | P57: Até 100% | Q57: Sim | R57: N | S57: D+000 | T57: D+001 | U57: D+003 | V57: 100000 | W57: 1 | X57: 1 | Z57: 2024-09-26 | AA57: 2.7017969 | AB57: 2.9328264 | AC57: 0.9212263297 | AD57: 2023-12-29 | AE57: 1073666854 | AF57: 1081200.991 | AG57: 1 | AI57: 0.1431339189 | AJ57: -0.2031043875 | AK57: 98 | AL57: 78 | AM57: 90 | AN57: 86 | AO57: 90 | AP57: 86 | AR57: 0.04562299842 | AS57: 0.02855331298 | AT57: -0.4300104244 | AU57: 1.09553002 | AV57: -0.6499680068 | AW57: 1.847318426 | AX57: 0.01138293931 | AY57: 0.01286531033 | AZ57: -0.1420499011 | BB57: 0 | BC57: 0 | BD57: 0 | BE57: 0 | BF57: 0 | BG57: 0 | BH57: 0 | BI57: 0 | BJ57: 0 | BL57: 0.04363006767 | BM57: -0.07877367034 | BN57: -0.02844350163
B58: 347523<BraNa> | C58: FIA Maina | D58: 347523 | E58: 2013-07-05 | F58: 2343288000122 | G58: Ações | H58: Livre | I58: Una Capital Ltda | J58: BTG Pactual Servicos Financeiros SA Dtvm | K58: Banco BTG Pactual S/A | L58: 140 | M58: Não se Aplica | N58: Renda Variável | O58: Inv. Qualificado | P58: Até 40 % | Q58: Não | R58: Não | S58: D+001 | T58: D+001 | U58: D+003 | V58: 100 | W58: 0 | X58: 100 | Z58: 2024-09-26 | AA58: 115.0758507 | AB58: 123.4720956 | AC58: 0.9319988467 | AD58: 2023-12-29 | AE58: 1250475200 | AF58: 1290446.23 | AG58: 140 | AI58: 0.1072308121 | AJ58: -0.2142484843 | AK58: 80 | AL58: 54 | AM58: 68 | AN58: 66 | AO58: 70 | AP58: 64 | AR58: 0.04625087757 | AS58: 0.02591765031 | AT58: -0.6189793118 | AU58: 0.1525066817 | AV58: -0.9436274894 | AW58: 0.2371450667 | AX58: 0.01402515438 | AY58: 0.01401972476 | AZ58: -0.1084578045 | BB58: 266.5 | BC58: 3679.88477 | BD58: -3413.38477 | BE58: 13744.23752 | BF58: 52475.89652 | BG58: -38731.659 | BH58: 15267.53051 | BI58: 63475.13867 | BJ58: -48207.60816 | BL58: 0.008606264291 | BM58: -0.06800115329 | BN58: -0.03409324476
B59: 361641<BraNa> | C59: FIA Mistyque Ie | D59: 361641 | E59: 2012-10-31 | F59: 2867883000167 | G59: Ações | H59: Invest. no Exterior | I59: BTG Pactual Wm Gestão de Recursos Ltda | J59: BTG Pactual Servicos Financeiros SA Dtvm | K59: Banco BTG Pactual S/A | L59: 1 | M59: Não se Aplica | N59: Renda Variável | O59: Inv. Profissional | P59: Até 100% | Q59: Sim | R59: Não se Aplica | S59: D+001 | T59: D+001 | U59: D+003 | Z59: 2024-09-26 | AA59: 52769.24366 | AB59: 54903.09932 | AC59: 0.9611341493 | AD59: 2024-08-21 | AE59: 1173476577 | AF59: 1137873.872 | AG59: 1 | AI59: 0.1592655122 | AJ59: -0.3181056515 | AK59: 80 | AL59: 63 | AM59: 74 | AN59: 69 | AO59: 78 | AP59: 65 | AR59: 0.05335173787 | AS59: 0.0347696265 | AT59: 0.1519638482 | AU59: 1.807900601 | AV59: 0.2437893024 | AW59: 2.99180521 | AX59: 0.01303720373 | AY59: 0.01453092197 | AZ59: -0.1070630105 | BB59: 0 | BC59: 0 | BD59: 0 | BE59: 0 | BF59: 0 | BG59: 0 | BH59: 0 | BI59: 50068.0938 | BJ59: -50068.0938 | BL59: 0.1238254646 | BM59: -0.001441206178 | BN59: -0.02534447501
B60: 515078<BraNa> | C60: FIA Petros Ativo | D60: 515078 | E60: 2019-10-15 | F60: 34081202000127 | G60: Ações | H60: Índice Ativo | I60: Fundação Petrobras de Seguridade Social - Petros | J60: Bem Dtvm | K60: Banco Bradesco S.A. | L60: 15 | M60: IBOVESPA | N60: Não Aplicável | O60: Inv. Profissional | P60: Até 40 % | Q60: Não | R60: Não se Aplica | S60: D+000 | T60: D+000 | U60: D+002 | Z60: 2024-09-26 | AA60: 134.5247098 | AB60: 140.0205911 | AC60: 0.9607494779 | AD60: 2024-08-28 | AE60: 1368250671 | AF60: 1315671.322 | AG60: 15 | AI60: 0.1436345123 | AJ60: -0.3103249503 | AK60: 33 | AL60: 26 | AM60: 31 | AN60: 28 | AO60: 30 | AP60: 29 | AR60: 0.04887812033 | AS60: 0.03614114596 | AT60: 0.2436675209 | AU60: 1.967559258 | AV60: 0.3987047633 | AW60: 3.253675229 | AX60: 0.01204121174 | AY60: 0.01384827798 | AZ60: -0.11829315 | BB60: 0 | BC60: 0 | BD60: 0 | BE60: 0 | BF60: 3601.35121 | BG60: -3601.35121 | BH60: 0 | BI60: 9174.30833 | BJ60: -9174.30833 | BL60: 0.1372719296 | BM60: -0.02144020872 | BN60: -0.03190301779
B61: 578118<BraNa> | C61: FIA Petros Selecao Alta Liquidez | D61: 578118 | E61: 2020-12-29 | F61: 39997959000189 | G61: Ações | H61: Livre | I61: Fundação Petrobras de Seguridade Social - Petros | J61: Bem Dtvm | K61: Banco Bradesco S.A. | L61: 15 | M61: OUTROS | N61: Não Aplicável | O61: Inv. Profissional | P61: Até 40 % | Q61: Não | R61: Não se Aplica | S61: D+000 | T61: D+000 | U61: D+002 | Z61: 2024-09-26 | AA61: 113.1797859 | AB61: 117.4522592 | AC61: 0.9636237453 | AD61: 2024-08-20 | AE61: 3256416601 | AF61: 3126192.636 | AG61: 15 | AI61: 0.1459533492 | AJ61: -0.1143901121 | AK61: 24 | AL61: 21 | AM61: 21 | AN61: 24 | AO61: 24 | AP61: 21 | AR61: 0.05133804239 | AS61: 0.03207385484 | AT61: 0.4166074361 | AU61: 1.688277806 | AV61: 0.686713382 | AW61: 2.907643916 | AX61: 0.01304759148 | AY61: 0.01525128573 | AZ61: -0.1112297567 | BB61: 0 | BC61: 0 | BD61: 0 | BE61: 0 | BF61: 8733.98346 | BG61: -8733.98346 | BH61: 0 | BI61: 18355.52185 | BJ61: -18355.52185 | BL61: 0.1667843089 | BM61: -0.01505154895 | BN61: -0.0239788086
B62: 294780<BraNa> | C62: FIA Wpa Global Ie | D62: 294780 | E62: 2012-01-11 | F62: 14713884000136 | G62: Ações | H62: Invest. no Exterior | I62: Milestones Administradora de Recursos Ltda. | J62: BTG Pactual Servicos Financeiros SA Dtvm | K62: Banco BTG Pactual S/A | L62: 2 | M62: Não se Aplica | N62: Renda Variável | O62: Inv. Profissional | P62: Até 100% | Q62: Sim | R62: Não se Aplica | S62: D+000 | T62: D+000 | U62: D+003 | V62: 20000 | W62: 5000 | X62: 5000 | Z62: 2024-09-26 | AA62: 3.2603867 | AB62: 3.3207346 | AC62: 0.9818269427 | AD62: 2024-08-20 | AE62: 2239494490 | AF62: 1961525.627 | AG62: 2 | AI62: 0.1717352207 | AJ62: -0.2020394989 | AK62: 87 | AL62: 65 | AM62: 79 | AN62: 73 | AO62: 76 | AP62: 76 | AR62: 0.03079080735 | AS62: 0.01983565463 | AT62: 0.5859574822 | AU62: 0.4221932816 | AV62: 0.9608969312 | AW62: 0.6671991551 | AX62: 0.009544001952 | AY62: 0.009030482202 | AZ62: -0.04888327775 | BB62: 0 | BC62: 0 | BD62: 0 | BE62: 290000 | BF62: 100000 | BG62: 190000 | BH62: 290000 | BI62: 150000 | BJ62: 140000 | BL62: 0.16367238 | BM62: 0.07841548749 | BN62: -0.0165161944
B63: 281875<BraNa> | C63: FIA Wpa I Ie | D63: 281875 | E63: 2011-07-25 | F63: 11274288000109 | G63: Ações | H63: Invest. no Exterior | I63: Milestones Administradora de Recursos Ltda. | J63: BTG Pactual Servicos Financeiros SA Dtvm | K63: Banco BTG Pactual S/A | L63: 8 | M63: IBOVESPA | N63: Renda Variável | O63: Inv. Profissional | P63: Até 100% | Q63: Sim | R63: Não se Aplica | S63: D+000 | T63: D+000 | U63: D+003 | V63: 20000 | W63: 5000 | X63: 1000 | Z63: 2024-09-26 | AA63: 3.96201696 | AB63: 4.24001194 | AC63: 0.9344353309 | AD63: 2024-08-20 | AE63: 1307260925 | AF63: 1169311.5 | AG63: 8 | AI63: 0.150537982 | AJ63: -0.3016490005 | AK63: 99 | AL63: 59 | AM63: 90 | AN63: 68 | AO63: 82 | AP63: 76 | AR63: 0.05685174579 | AS63: 0.04051993728 | AT63: -0.05107323659 | AU63: 1.354953776 | AV63: -0.08308504639 | AW63: 2.356993071 | AX63: 0.01504258313 | AY63: 0.0157092826 | AZ63: -0.1273210835 | BB63: 0 | BC63: 0 | BD63: 0 | BE63: 160366 | BF63: 0 | BG63: 160366 | BH63: 160386 | BI63: 89.7881 | BJ63: 160296.2119 | BL63: 0.08996692355 | BM63: -0.03260405575 | BN63: -0.04107471123
B64: 247170<BraNa> | C64: FICFI em Acoes Div 114 | D64: 247170 | E64: 2010-04-30 | F64: 11817139000149 | G64: Ações | H64: Livre | I64: Fundacao Cesp | J64: Bem Dtvm | K64: Banco Bradesco S.A. | L64: 11 | M64: IBOVESPA FECHAMENTO | N64: Não Aplicável | O64: Inv. Profissional | P64: Não se Aplica | Q64: Não | R64: Não se Aplica | S64: D+000 | T64: D+000 | U64: D+000 | Z64: 2024-09-26 | AA64: 3.0668753 | AB64: 3.2063695 | AC64: 0.9564946585 | AD64: 2024-08-28 | AE64: 1473451573 | AF64: 1444787.154 | AG64: 11 | AI64: 0.1188175063 | AJ64: -0.269889312 | AK64: 98 | AL64: 75 | AM64: 91 | AN64: 82 | AO64: 94 | AP64: 79 | AR64: 0.04554800626 | AS64: 0.03930476887 | AT64: -0.09912095527 | AU64: 1.754575918 | AV64: -0.1539407813 | AW64: 2.843188465 | AX64: 0.01161170011 | AY64: 0.01267174973 | AZ64: -0.1303644658 | BB64: 6550 | BC64: 31000.0081 | BD64: -24450.0081 | BE64: 752391.5 | BF64: 402651.4017 | BG64: 349740.0983 | BH64: 766341.5 | BI64: 434551.4017 | BJ64: 331790.0983 | BL64: 0.08951022588 | BM64: -0.03881899994 | BN64: -0.03403156656
B65: 332178<BraNa> | C65: Forluz FIA | D65: 332178 | E65: 2013-04-02 | F65: 17138135000110 | G65: Ações | H65: Livre | I65: Icatu Vanguarda Gestão de Recursos Ltda | J65: Intrag | K65: Itau Unibanco S.A. | L65: 3 | M65: IBOVESPA FECHAMENTO | N65: Não Aplicável | O65: Inv. Profissional | P65: Até 20 % | Q65: Não | R65: Não se Aplica | S65: D+000 | T65: D+000 | U65: D+002 | V65: 1000000 | W65: 0 | X65: 0 | Z65: 2024-09-26 | AA65: 212.9054753 | AB65: 223.6251448 | AC65: 0.9520641138 | AD65: 2024-08-28 | AE65: 1330458940 | AF65: 1412232.149 | AG65: 3 | AI65: 0.1316037324 | AJ65: -0.3177387954 | AK65: 79 | AL65: 58 | AM65: 72 | AN65: 65 | AO65: 64 | AP65: 73 | AR65: 0.04552126629 | AS65: 0.03453387396 | AT65: 0.05648577409 | AU65: 1.438107123 | AV65: 0.0905107574 | AW65: 2.345956854 | AX65: 0.01225891141 | AY65: 0.01357912528 | AZ65: -0.1176620988 | BB65: 0 | BC65: 0 | BD65: 0 | BE65: 66300 | BF65: 167314 | BG65: -101014 | BH65: 116300 | BI65: 275314 | BJ65: -159014 | BL65: 0.1098681057 | BM65: -0.0345723344 | BN65: -0.03525725805
B66: 263834<BraNa> | C66: Fortaleza FIA I Ie | D66: 263834 | E66: 2010-12-15 | F66: 12029928000188 | G66: Ações | H66: Invest. no Exterior | I66: Quatrinvest Administradora de Recursos Ltda | J66: Credit Suisse Hedging Griffo Cor Val S.A | K66: Itau Unibanco S.A. | L66: 5 | M66: IBOVESPA FECHAMENTO | N66: Renda Variável | O66: Inv. Profissional | P66: Até 100% | Q66: Sim | R66: Não se Aplica | S66: D+000 | T66: D+001 | U66: D+003 | V66: 100000 | W66: 1 | X66: 1 | Z66: 2024-09-26 | AA66: 4.2754517 | AB66: 4.5201999 | AC66: 0.9458545628 | AD66: 2023-12-28 | AE66: 1331228176 | AF66: 1350678.435 | AG66: 5 | AI66: 0.1364552507 | AJ66: -0.2138041997 | AK66: 94 | AL66: 71 | AM66: 84 | AN66: 81 | AO66: 84 | AP66: 81 | AR66: 0.05194303714 | AS66: 0.03323739133 | AT66: -0.04810800188 | AU66: 1.401203097 | AV66: -0.07774090573 | AW66: 2.39648772 | AX66: 0.01369096431 | AY66: 0.01469445216 | AZ66: -0.1338222232 | BB66: 0 | BC66: 2442.3 | BD66: -2442.3 | BE66: 52 | BF66: 58949.43391 | BG66: -58897.43391 | BH66: 52 | BI66: 89202.03391 | BJ66: -89150.03391 | BL66: 0.09255227157 | BM66: -0.05410052993 | BN66: -0.0314366744
B67: 606294<BraNa> | C67: Fp Fof Acoes Fc de FIA | D67: 606294 | E67: 2021-08-13 | F67: 36615983000118 | G67: Ações | H67: Livre | I67: Fundação Petrobras de Seguridade Social - Petros | J67: Bem Dtvm | K67: Banco Bradesco S.A. | L67: 15 | M67: OUTROS | N67: Renda Variável | O67: Inv. Profissional | P67: Até 40 % | Q67: Não | R67: Não se Aplica | S67: D+001 | T67: D+001 | U67: D+001 | Z67: 2024-09-26 | AA67: 87.843612 | AB67: 92.14276 | AC67: 0.9533425307 | AD67: 2024-08-20 | AE67: 2792840581 | AF67: 2774662.943 | AG67: 15 | AI67: 0.1258523617 | AJ67: -0.1052118808 | AK67: 19 | AL67: 18 | AM67: 16 | AN67: 21 | AO67: 16 | AP67: 21 | AR67: 0.04890700684 | AS67: 0.02924457717 | AT67: -0.1320350232 | AU67: 1.124555082 | AV67: -0.210317317 | AW67: 1.871868357 | AX67: 0.01380158205 | AY67: 0.01494681702 | AZ67: -0.1226460298 | BB67: 0 | BC67: 0 | BD67: 0 | BE67: 0 | BF67: 4708.3321 | BG67: -4708.3321 | BH67: 0 | BI67: 217888.3321 | BJ67: -217888.3321 | BL67: 0.07868946314 | BM67: -0.04407108578 | BN67: -0.02673071781
B68: 459925<BraNa> | C68: Fp Ibovespa FIA | D68: 459925 | E68: 2018-03-02 | F68: 29045373000160 | G68: Ações | H68: Índice Ativo | I68: Fundação Petrobras de Seguridade Social - Petros | J68: Bem Dtvm | K68: Banco Bradesco S.A. | L68: 14 | M68: IBOVESPA | N68: Não Aplicável | O68: Inv. Profissional | P68: Até 40 % | Q68: Não | R68: Não se Aplica | S68: D+000 | T68: D+000 | U68: D+002 | Z68: 2024-09-26 | AA68: 160.8146594 | AB68: 167.8532734 | AC68: 0.9580668648 | AD68: 2024-08-28 | AE68: 2222668079 | AF68: 2133308.646 | AG68: 14 | AI68: 0.1512862405 | AJ68: -0.3208524925 | AK68: 44 | AL68: 34 | AM68: 41 | AN68: 37 | AO68: 51 | AP68: 27 | AR68: 0.04728304175 | AS68: 0.03758078668 | AT68: 0.2873727054 | AU68: 1.827140684 | AV68: 0.4699425056 | AW68: 2.983523302 | AX68: 0.0121157823 | AY68: 0.01387233057 | AZ68: -0.1106004304 | BB68: 0 | BC68: 0 | BD68: 0 | BE68: 0 | BF68: 5660.12459 | BG68: -5660.12459 | BH68: 0 | BI68: 10042.06552 | BJ68: -10042.06552 | BL68: 0.14375764 | BM68: -0.01454847688 | BN68: -0.03461250152
B69: 193781<BraNa> | C69: Geracao L.Par FIA | D69: 193781 | E69: 2007-07-25 | F69: 8935128000159 | G69: Ações | H69: Livre | I69: Plural Investimentos Gestão de Recursos Ltda. | J69: Brasil Plural Banco | K69: Brasil Plural S.A. Banco Multiplo | L69: 19 | M69: IBOVESPA | N69: Renda Variável | O69: Não | P69: Até 20 % | Q69: Sim | R69: Não se Aplica | S69: D+001 | T69: D+001 | U69: D+003 | V69: 1 | W69: 1 | X69: 1 | Z69: 2024-09-26 | AA69: 135.6220682 | AB69: 144.0393509 | AC69: 0.9415626171 | AD69: 2024-02-27 | AE69: 4356946671 | AF69: 4514856.829 | AG69: 19 | AI69: 14.51127062 | AJ69: -0.3294429765 | AK69: 108 | AL69: 98 | AM69: 100 | AN69: 106 | AO69: 109 | AP69: 97 | AR69: 0.05279307911 | AS69: 0.02181807228 | AT69: 0.3607289441 | AU69: 0.7976746188 | AV69: 0.5999874815 | AW69: 1.262828541 | AX69: 0.01514229194 | AY69: 0.01490756168 | AZ69: -0.1279356356 | BB69: 120 | BC69: 200598.2091 | BD69: -200478.2091 | BE69: 1720 | BF69: 290312.5883 | BG69: -288592.5883 | BH69: 6510 | BI69: 296938.7592 | BJ69: -290428.7592 | BL69: 0.1569616416 | BM69: -0.05527402048 | BN69: -0.0117770203
B70: 214019<BraNa> | C70: Guepardo Institucional FIC FIA | D70: 214019 | E70: 2008-07-24 | F70: 8830947000131 | G70: Ações | H70: Livre | I70: Guepardo Investimentos Ltda | J70: BTG Pactual Servicos Financeiros SA Dtvm | K70: Banco BTG Pactual S/A | L70: 20138 | M70: Não se Aplica | N70: Renda Variável | O70: Não | P70: Até 20 % | Q70: Não | R70: Não se Aplica | S70: D+001 | T70: D+030 | U70: D+032 | V70: 5000 | W70: 1000 | X70: 1000 | Z70: 2024-09-26 | AA70: 6.631406 | AB70: 7.09135766 | AC70: 0.9351391254 | AD70: 2024-08-21 | AE70: 2198172148 | AF70: 1849625.863 | AG70: 20138 | AI70: 0.265447567 | AJ70: -0.3435621165 | AK70: 114 | AL70: 80 | AM70: 104 | AN70: 90 | AO70: 107 | AP70: 87 | AR70: 0.04909183919 | AS70: 0.0387300927 | AT70: 0.04423541817 | AU70: 0.832994739 | AV70: 0.0713234362 | AW70: 1.361357501 | AX70: 0.01370645858 | AY70: 0.01513914941 | AZ70: -0.1134381627 | BB70: 32526.29204 | BC70: 20485.85842 | BD70: 12040.43362 | BE70: 779792.9862 | BF70: 203758.3038 | BG70: 576034.6823 | BH70: 1004630.615 | BI70: 235512.1901 | BJ70: 769118.4252 | BL70: 0.1065179661 | BM70: -0.01462184316 | BN70: -0.04714022129
B71: 307408<BraNa> | C71: Guepardo Institucional Master FI Finnceiro em Açõe | D71: 307408 | E71: 2012-06-29 | F71: 14213077000154 | G71: Ações | H71: Livre | I71: Guepardo Investimentos Ltda | J71: BTG Pactual Servicos Financeiros SA Dtvm | K71: Banco BTG Pactual S/A | L71: 4 | M71: Não se Aplica | N71: Renda Variável | O71: Não | P71: Não se Aplica | Q71: Não | R71: Não se Aplica | S71: D+001 | T71: D+001 | U71: D+003 | Z71: 2024-09-26 | AA71: 5.12608248 | AB71: 5.49942804 | AC71: 0.9321119292 | AD71: 2024-08-21 | AE71: 2921576192 | AF71: 2460245.058 | AG71: 4 | AI71: 0.2676121686 | AJ71: -0.3424502343 | AK71: 86 | AL71: 61 | AM71: 80 | AN71: 67 | AO71: 79 | AP71: 68 | AR71: 0.05326127368 | AS71: 0.04079747279 | AT71: 0.1461267357 | AU71: 0.9508150629 | AV71: 0.2355311724 | AW71: 1.577659067 | AX71: 0.01448359992 | AY71: 0.01608760153 | AZ71: -0.121711164 | BB71: 49931.72542 | BC71: 25561.20487 | BD71: 24370.52055 | BE71: 989499.5199 | BF71: 263437.3608 | BG71: 726062.1591 | BH71: 1273710.599 | BI71: 306710.4687 | BJ71: 967000.13 | BL71: 0.1228416856 | BM71: 0.001050181605 | BN71: -0.04821459861
B72: 487996<BraNa> | C72: Honor Acoes I Ie FI | D72: 487996 | E72: 2019-01-24 | F72: 30830229000114 | G72: Ações | H72: Invest. no Exterior | I72: Pragma Gestão de Patrimônio Ltda | J72: Intrag | K72: Itau Unibanco S.A. | L72: 1 | M72: IBOVESPA | N72: Renda Variável | O72: Inv. Profissional | P72: Até 100% | Q72: Sim | R72: Não se Aplica | S72: D+001 | T72: D+090 | U72: D+093 | V72: 5000 | W72: 100 | X72: 5000 | Z72: 2024-09-26 | AA72: 16.6328235 | AB72: 16.9470502 | AC72: 0.9814583248 | AD72: 2024-09-11 | AE72: 1049244448 | AF72: 938064.4245 | AG72: 1 | AI72: 0.1212089838 | AJ72: -0.0907928114 | AK72: 40 | AL72: 28 | AM72: 36 | AN72: 32 | AO72: 36 | AP72: 32 | AR72: 0.03381424645 | AS72: 0.0245814357 | AT72: 0.6743240237 | AU72: 2.330010288 | AV72: 1.611440068 | AW72: 4.462695114 | AX72: 0.007995187214 | AY72: 0.01227725681 | AZ72: -0.04979156089 | BB72: 0 | BC72: 0 | BD72: 0 | BE72: 0 | BF72: 0 | BG72: 0 | BH72: 0 | BI72: 0 | BJ72: 0 | BL72: 0.192075349 | BM72: 0.1963812338 | BN72: -0.01649779337
B73: 245224<BraNa> | C73: Honor Master FIA | D73: 245224 | E73: 2010-03-29 | F73: 11389643000195 | G73: Ações | H73: Livre | I73: Pragma Gestão de Patrimônio Ltda | J73: Intrag | K73: Itau Unibanco S.A. | L73: 18 | M73: IBOVESPA | N73: Renda Variável | O73: Inv. Profissional | P73: Até 40 % | Q73: Sim | R73: Não se Aplica | S73: D+001 | T73: D+090 | U73: D+092 | V73: 5000 | W73: 100 | X73: 5000 | Z73: 2024-09-26 | AA73: 39.3145971 | AB73: 40.8657995 | AC73: =IFERROR(AA73/AB73,"") -> 0.9620415502 | AD73: 2024-08-21 | AE73: 1480440744 | AF73: 1652128.057 | AG73: 18 | AI73: 0.1433522931 | AJ73: -0.3045735822 | AK73: 110 | AL73: 64 | AM73: 98 | AN73: 76 | AO73: 97 | AP73: 77 | AR73: 0.05043623409 | AS73: 0.02971962298 | AT73: -0.1038760502 | AU73: 1.824105317 | AV73: -0.1681254391 | AW73: 3.156630733 | AX73: 0.01363541294 | AY73: 0.01501344871 | AZ73: -0.1243807608 | BB73: 2047 | BC73: 65000 | BD73: -62953 | BE73: 29948 | BF73: 369096.7518 | BG73: -339148.7518 | BH73: 58998 | BI73: 424273.1192 | BJ73: -365275.1192 | BL73: 0.08300001301 | BM73: -0.02441971101 | BN73: -0.02100783578
B74: 423701<BraNa> | C74: Itau Acoes Dunamis Fc | D74: 423701 | E74: 2016-09-12 | F74: 24571992000175 | G74: Ações | H74: Livre | I74: Itau Unibanco Asset Management Ltda. | J74: Itau Unibanco SA | K74: Itau Unibanco S.A. | L74: 12979 | M74: IBOVESPA FECHAMENTO | N74: Renda Variável | O74: Não | P74: Até 20 % | Q74: Não | R74: Não se Aplica | S74: D+000 | T74: D+021 | U74: D+023 | V74: 1 | W74: 1 | X74: 1 | Z74: 2024-09-26 | AA74: 26.90537 | AB74: 27.41101 | AC74: 0.9815533977 | AD74: 2024-08-21 | AE74: 1283840946 | AF74: 1249550.885 | AG74: 12979 | AI74: 0.1320301814 | AJ74: -0.32444642 | AK74: 60 | AL74: 36 | AM74: 56 | AN74: 40 | AO74: 62 | AP74: 34 | AR74: 0.04738889958 | AS74: 0.02952544335 | AT74: 1.430142785 | AU74: 3.473382743 | AV74: 2.450960746 | AW74: 6.196413564 | AX74: 0.01242994364 | AY74: 0.01328631428 | AZ74: -0.06733807596 | BB74: 99262.44532 | BC74: 15516.30769 | BD74: 83746.13763 | BE74: 136581.0297 | BF74: 372025.3311 | BG74: -235444.3013 | BH74: 137458.6718 | BI74: 563652.9221 | BJ74: -426194.2503 | BL74: 0.3047019882 | BM74: 0.1106975151 | BN74: -0.01051327599
B75: 294519<BraNa> | C75: Itau Acoes Fund Of Funds Multiges X FI | D75: 294519 | E75: 2011-12-29 | F75: 14096710000171 | G75: Ações | H75: Livre | I75: Itau Dtvm S.A. | J75: Itau Unibanco SA | K75: Itau Unibanco S.A. | L75: 243 | M75: IBOVESPA | N75: Renda Variável | O75: Inv. Qualificado | P75: Até 40 % | Q75: Sim | R75: Não se Aplica | S75: D+001 | T75: D+030 | U75: D+032 | V75: 1 | W75: 1 | X75: 1 | Z75: 2024-09-26 | AA75: 36.795007 | AB75: 38.38152 | AC75: 0.9586646647 | AD75: 2024-08-20 | AE75: 1095496778 | AF75: 1337031.678 | AG75: 243 | AI75: 0.1385835969 | AJ75: -0.3079966908 | AK75: 99 | AL75: 54 | AM75: 87 | AN75: 66 | AO75: 91 | AP75: 62 | AR75: 0.04636813531 | AS75: 0.02996512185 | AT75: -0.1074563217 | AU75: 1.407061945 | AV75: -0.1685381245 | AW75: 2.321589067 | AX75: 0.01300929084 | AY75: 0.01382371579 | AZ75: -0.1110903268 | BB75: 0.07826 | BC75: 62061.37295 | BD75: -62061.29469 | BE75: 21328.87221 | BF75: 447320.0683 | BG75: -425991.1961 | BH75: 35651.48973 | BI75: 539644.4654 | BJ75: -503992.9757 | BL75: 0.08551358427 | BM75: -0.02726386283 | BN75: -0.02614367685
B76: 424821<BraNa> | C76: Itau Dunamis Master FIA | D76: 424821 | E76: 2016-07-21 | F76: 18138837000167 | G76: Ações | H76: Livre | I76: Itau Unibanco Asset Management Ltda. | J76: Itau Unibanco SA | K76: Itau Unibanco S.A. | L76: 5 | M76: IBOVESPA FECHAMENTO | N76: Renda Variável | O76: Não | P76: Até 20 % | Q76: Não | R76: Não se Aplica | S76: D+000 | T76: D+001 | U76: D+003 | V76: 1 | W76: 1 | X76: 1 | Z76: 2024-09-26 | AA76: 34.468653 | AB76: 35.039663 | AC76: 0.9837038958 | AD76: 2024-08-21 | AE76: 1484939236 | AF76: 1498904.581 | AG76: 5 | AI76: 0.1336112776 | AJ76: -0.3233631329 | AK76: 63 | AL76: 35 | AM76: 58 | AN76: 40 | AO76: 64 | AP76: 34 | AR76: 0.04730597056 | AS76: 0.02924034576 | AT76: 1.613810383 | AU76: 3.716487034 | AV76: 2.787338692 | AW76: 6.684427706 | AX76: 0.01242026112 | AY76: 0.01327764307 | AZ76: -0.06412730168 | BB76: 100012.2567 | BC76: 23234.68618 | BD76: 76777.5705 | BE76: 150231.1106 | BF76: 511402.3861 | BG76: -361171.2755 | BH76: 156259.3523 | BI76: 734497.5946 | BJ76: -578238.2423 | BL76: 0.3305852669 | BM76: 0.1272662346 | BN76: -0.008871193881
B77: 069450<BraNa> | C77: Itau Index Acoes Ibovespa FI | D77: 69450 | E77: 1999-09-28 | F77: 3370003000105 | G77: Ações | H77: Índices | I77: Itau Unibanco Asset Management Ltda. | J77: Itau Unibanco SA | K77: Itau Unibanco S.A. | L77: 21 | M77: IBOVESPA FECHAMENTO | N77: Renda Variável | O77: Não | P77: Não se Aplica | Q77: Não | R77: Não se Aplica | S77: D+000 | T77: D+000 | U77: D+002 | V77: 1 | W77: 0 | X77: 1 | Z77: 2024-09-26 | AA77: 139.171073 | AB77: 145.215015 | AC77: 0.958379359 | AD77: 2024-08-28 | AE77: 1576953449 | AF77: 1641807.279 | AG77: 21 | AI77: 0.2456655263 | AJ77: -0.2993659069 | AK77: 169 | AL77: 131 | AM77: 155 | AN77: 145 | AO77: 239 | AP77: 61 | AR77: 0.04642810198 | AS77: 0.03555780847 | AT77: 0.2787620937 | AU77: 1.855550736 | AV77: 0.4549800336 | AW77: 3.057544988 | AX77: 0.011808885 | AY77: 0.01316096642 | AZ77: -0.111077784 | BB77: 42560.49641 | BC77: 29557.36752 | BD77: 13003.12889 | BE77: 986643.7602 | BF77: 1172004.083 | BG77: -185360.3233 | BH77: 1060723.96 | BI77: 1551395.876 | BJ77: -490671.9157 | BL77: 0.1413943723 | BM77: -0.0160834926 | BN77: -0.03221790393
B78: 230154<BraNa> | C78: Itau Index Acoes Ibrx FI | D78: 230154 | E78: 2009-06-30 | F78: 10263584000141 | G78: Ações | H78: Índices | I78: Itau Unibanco Asset Management Ltda. | J78: Itau Unibanco SA | K78: Itau Unibanco S.A. | L78: 47 | M78: IBRX | N78: Renda Variável | O78: Inv. Qualificado | P78: Não se Aplica | Q78: Não | R78: Não se Aplica | S78: D+000 | T78: D+000 | U78: D+002 | V78: 1 | W78: 1 | X78: 1 | Z78: 2024-09-26 | AA78: 35.711701 | AB78: 37.209263 | AC78: 0.9597529787 | AD78: 2024-08-28 | AE78: 1008194815 | AF78: 1030688.783 | AG78: 47 | AI78: 0.1553389461 | AJ78: -0.3007155893 | AK78: 104 | AL78: 79 | AM78: 95 | AN78: 88 | AO78: 109 | AP78: 74 | AR78: 0.04586838612 | AS78: 0.03539487149 | AT78: 0.3114495789 | AU78: 1.898158626 | AV78: 0.5084230759 | AW78: 3.131085533 | AX78: 0.01178709428 | AY78: 0.01313243195 | AZ78: -0.1081844722 | BB78: 21339.09935 | BC78: 20598.81817 | BD78: 740.28118 | BE78: 516966.5158 | BF78: 551578.9478 | BG78: -34612.43206 | BH78: 588145.9837 | BI78: 871280.4489 | BJ78: -283134.4653 | BL78: 0.1459268493 | BM78: -0.01056072906 | BN78: -0.03104581047
B79: 129550<BraNa> | C79: Itau Private Mult Acoes FICFI | D79: 129550 | E79: 2004-06-29 | F79: 6288668000162 | G79: Ações | H79: Índice Ativo | I79: Itau Dtvm S.A. | J79: Itau Unibanco SA | K79: Itau Unibanco S.A. | L79: 2921 | M79: IBOVESPA FECHAMENTO | N79: Renda Variável | O79: Inv. Qualificado | P79: Até 20 % | Q79: Sim | R79: Não se Aplica | S79: D+001 | T79: D+030 | U79: D+032 | V79: 50000 | W79: 5000 | X79: 5000 | Z79: 2024-09-26 | AA79: 93.999097 | AB79: 98.730374 | AC79: 0.9520788101 | AD79: 2024-08-21 | AE79: 1597886649 | AF79: 1725370.301 | AG79: 2921 | AI79: 0.1579059991 | AJ79: -0.3132839162 | AK79: 144 | AL79: 99 | AM79: 126 | AN79: 117 | AO79: 132 | AP79: 111 | AR79: 0.04482894499 | AS79: 0.03276808201 | AT79: -0.003734366408 | AU79: 1.23280469 | AV79: -0.005987449884 | AW79: 2.037211877 | AX79: 0.01294731278 | AY79: 0.0139619314 | AZ79: -0.1074272738 | BB79: 444.25618 | BC79: 38668.76835 | BD79: -38224.51217 | BE79: 64009.65838 | BF79: 268961.4125 | BG79: -204951.7542 | BH79: 109905.1266 | BI79: 353140.8458 | BJ79: -243235.7192 | BL79: 0.1005965314 | BM79: -0.02796737422 | BN79: -0.03238189791
B80: 427756<BraNa> | C80: Itau Vertice Ibovespa Equities FIA | D80: 427756 | E80: 2016-10-28 | F80: 24546223000117 | G80: Ações | H80: Índices | I80: Itau Unibanco Asset Management Ltda. | J80: Itau Unibanco SA | K80: Itau Unibanco S.A. | L80: 254 | M80: IBOVESPA FECHAMENTO | N80: Renda Variável | O80: Não | P80: Não se Aplica | Q80: Não | R80: Não se Aplica | S80: D+000 | T80: D+000 | U80: D+002 | V80: 1 | W80: 0 | X80: 1 | Z80: 2024-09-26 | AA80: 21.35052 | AB80: 22.253657 | AC80: 0.9594162434 | AD80: 2024-08-28 | AE80: 1570009180 | AF80: 1625370.617 | AG80: 254 | AI80: 0.1613399531 | AJ80: -0.301861667 | AK80: 56 | AL80: 39 | AM80: 51 | AN80: 44 | AO80: 63 | AP80: 32 | AR80: 0.04652657909 | AS80: 0.03576540815 | AT80: 0.2922778008 | AU80: 1.86627203 | AV80: 0.4792178561 | AW80: 3.108639684 | AX80: 0.01223554754 | AY80: 0.01356799254 | AZ80: -0.1105026697 | BB80: 628227.345 | BC80: 441183.2087 | BD80: 187044.1363 | BE80: 3709314.582 | BF80: 3638870.144 | BG80: 70444.43815 | BH80: 4607150.297 | BI80: 5212659.611 | BJ80: -605509.3135 | BL80: 0.143980689 | BM80: -0.01356442931 | BN80: -0.03076697423
B81: 568627<BraNa> | C81: Jequitiba FIA Ie | D81: 568627 | E81: 2020-12-18 | F81: 38658204000197 | G81: Ações | H81: Invest. no Exterior | I81: Itau Dtvm S.A. | J81: Itau Unibanco SA | K81: Itau Unibanco S.A. | L81: 1 | M81: IBOVESPA FECHAMENTO | N81: Renda Variável | O81: Inv. Profissional | P81: Até 100% | Q81: Sim | R81: Não se Aplica | S81: D+000 | T81: D+000 | U81: D+002 | V81: 1000000 | W81: 100 | X81: 100 | Z81: 2024-09-26 | AA81: 0.897243 | AB81: 0.953651 | AC81: 0.9408504788 | AD81: 2024-03-13 | AE81: 1257004315 | AF81: 1014638.052 | AG81: 1 | AI81: 0.3520773715 | AJ81: -0.1108354584 | AK81: 17 | AL81: 28 | AM81: 16 | AN81: 29 | AO81: 16 | AP81: 29 | AR81: 0.08813110612 | AS81: 0.0274560496 | AT81: 0.6317299235 | AU81: 1.360009652 | AV81: 1.371762602 | AW81: 2.321354885 | AX81: 0.02365718575 | AY81: 0.03767069165 | AZ81: -0.1421369033 | BB81: 9000 | BC81: 0 | BD81: 9000 | BE81: 253300 | BF81: 142500 | BG81: 110800 | BH81: 253300 | BI81: 142500 | BJ81: 110800 | BL81: 0.2846220698 | BM81: 0.2216229979 | BN81: -0.01699793374
B82: 431737<BraNa> | C82: Kairos FIA - Ie | D82: 431737 | E82: 2016-12-15 | F82: 26123764000168 | G82: Ações | H82: Fechados de Ações | I82: Pragma Gestão de Patrimônio Ltda | J82: Intrag | K82: Itau Unibanco S.A. | L82: 2 | M82: IBOVESPA | N82: Renda Variável | O82: Inv. Profissional | P82: Até 100% | Q82: Sim | R82: Não se Aplica | S82: D+000 | T82: D+000 | U82: D+001 | Z82: 2024-09-25 | AA82: 127.1595147 | AB82: 129.3147031 | AC82: 0.9833337714 | AD82: 2024-09-10 | AE82: 3354893575 | AF82: 2920928.321 | AG82: 2 | AI82: 0.1165069087 | AJ82: -0.3265816092 | AK82: 58 | AL82: 35 | AM82: 55 | AN82: 38 | AO82: 44 | AP82: 49 | AR82: 0.04276728713 | AS82: 0.01602831062 | AT82: 0.7865407852 | AU82: 0.5674326263 | AV82: 1.833741269 | AW82: 0.9254723811 | AX82: 0.01292203118 | AY82: 0.01687582884 | AZ82: -0.09779124602 | BB82: 0 | BC82: 0 | BD82: 0 | BE82: 0 | BF82: 0 | BG82: 0 | BH82: 0 | BI82: 0 | BJ82: 0 | BL82: 0.2379785187 | BM82: 0.316234499 | BN82: -0.01557748058
B83: 112380<BraNa> | C83: Lab FIA Ie | D83: 112380 | E83: 2002-11-29 | F83: 5006152000115 | G83: Ações | H83: Invest. no Exterior | I83: BTG Pactual Wm Gestão de Recursos Ltda | J83: BTG Pactual Servicos Financeiros SA Dtvm | K83: Banco BTG Pactual S/A | L83: 8 | M83: Não se Aplica | N83: Renda Variável | O83: Inv. Profissional | P83: Até 100% | Q83: Sim | R83: Não se Aplica | S83: D+001 | T83: D+001 | U83: D+003 | Z83: 2024-09-26 | AA83: 25.4083989 | AB83: 26.0998097 | AC83: 0.9735089716 | AD83: 2024-05-03 | AE83: 1566253830 | AF83: 1517382.123 | AG83: 8 | AI83: 0.1954105096 | AJ83: -0.299331139 | AK83: 160 | AL83: 102 | AM83: 145 | AN83: 117 | AO83: 143 | AP83: 119 | AR83: 0.04018800778 | AS83: 0.02620056295 | AT83: 0.3684219858 | AU83: 0.2999658533 | AV83: 0.6150078086 | AW83: 0.4949552381 | AX83: 0.01062849385 | AY83: 0.01117851433 | AZ83: -0.07038836379 | BB83: 18 | BC83: 350.44709 | BD83: -332.44709 | BE83: 54 | BF83: 10620.67313 | BG83: -10566.67313 | BH83: 54 | BI83: 13648.83497 | BJ83: -13594.83497 | BL83: 0.148778724 | BM83: 0.02683600309 | BN83: -0.02465038077
B84: 315265<BraNa> | C84: Lince Plus FIF Acoes - Resp Limitada | D84: 315265 | E84: 2012-09-25 | F84: 7707684000105 | G84: Ações | H84: Fechados de Ações | I84: Fernando de Almeida Nobre Neto | J84: Intrag | K84: Itau Unibanco S.A. | L84: 4 | M84: OUTROS | N84: Renda Variável | O84: Inv. Profissional | P84: Até 20 % | Q84: Sim | R84: Não se Aplica | S84: D+000 | T84: D+000 | U84: D+002 | V84: 1000000 | W84: 100 | X84: 0 | Z84: 2024-09-26 | AA84: 94.8267887 | AB84: 96.5957224 | AC84: 0.981687246 | AD84: 2024-09-18 | AE84: 1173810995 | AF84: 1141677.977 | AG84: 4 | AI84: 0.1643033638 | AJ84: -0.2684890606 | AK84: 80 | AL84: 64 | AM84: 72 | AN84: 72 | AO84: 81 | AP84: 63 | AR84: 0.03637252047 | AS84: 0.01239868205 | AT84: 0.04030335235 | AU84: 1.291621498 | AV84: 0.06529405146 | AW84: 2.180309006 | AX84: 0.0079262793 | AY84: 0.01022269672 | AZ84: -0.06674860113 | BB84: 0 | BC84: 0 | BD84: 0 | BE84: 0 | BF84: 42682.89369 | BG84: -42682.89369 | BH84: 0 | BI84: 42682.89369 | BJ84: -42682.89369 | BL84: 0.1102256978 | BM84: 0.0137642318 | BN84: -0.003311180076
B85: 645559<BraNa> | C85: Maste Priva Mult Acoes FIF Cic Resp Lim | D85: 645559 | E85: 2022-03-16 | F85: 42337174000194 | G85: Ações | H85: Índice Ativo | I85: Itau Dtvm S.A. | J85: Itau Unibanco SA | K85: Itau Unibanco S.A. | L85: 2 | M85: IBOVESPA FECHAMENTO | N85: Renda Variável | O85: Inv. Qualificado | P85: Até 40 % | Q85: S | R85: N | S85: D+001 | T85: D+000 | U85: D+002 | V85: 1 | W85: 1 | X85: 1 | Z85: 2024-09-26 | AA85: 97.633549 | AB85: 102.390638 | AC85: 0.9535398051 | AD85: 2024-08-21 | AE85: 1650230494 | AF85: 1750718.992 | AG85: 2 | AI85: 0.1178064255 | AJ85: -0.1048529268 | AK85: 15 | AL85: 15 | AM85: 14 | AN85: 16 | AO85: 16 | AP85: 14 | AR85: 0.04484999561 | AS85: 0.03281749361 | AT85: 0.1091297659 | AU85: 1.371858597 | AV85: 0.1759795595 | AW85: 2.280813441 | AX85: 0.01294078163 | AY85: 0.0139794643 | AZ85: -0.1011661711 | BB85: 444.25618 | BC85: 38787.47727 | BD85: -38343.22109 | BE85: 94351.65838 | BF85: 274510.8526 | BG85: -180159.1943 | BH85: 152610.503 | BI85: 361471.3536 | BJ85: -208860.8506 | BL85: 0.1173787068 | BM85: -0.01708677607 | BN85: -0.03129794035
B86: 607940<BraNa> | C86: Monteneg FI Financeiro Acoes | D86: 607940 | E86: 2021-08-04 | F86: 42449510000190 | G86: Ações | H86: Livre | I86: Wnt Gestora de Recursos Ltda | J86: Trustee Dtvm Ltda | K86: Trustee Distribuidora de Titulos e Valores Mobiliarios Ltda. | L86: 3 | M86: IBOVESPA | N86: Renda Variável | O86: Inv. Profissional | P86: Até 100% | Q86: S | R86: N | S86: D+000 | T86: D+000 | U86: D+000 | V86: 10000 | W86: 1000 | X86: 10000 | Z86: 2024-09-26 | AA86: 2530.649721 | AB86: 3975.715374 | AC86: 0.6365268846 | AD86: 2024-01-01 | AE86: 1954632005 | AF86: 1521656.931 | AG86: 3 | AI86: 0.8453518068 | AJ86: -0.3923987465 | AK86: 18 | AL86: 19 | AM86: 14 | AN86: 23 | AO86: 17 | AP86: 20 | AR86: 0.0977155037 | AS86: 0.03742670591 | AT86: -0.700836071 | AU86: 0.5943005121 | AV86: -1.130966565 | AW86: 2.278099506 | AX86: 0.04340679718 | AY86: 0.03662081455 | AZ86: -0.413511511 | BB86: 0 | BC86: 125189.9999 | BD86: -125189.9999 | BE86: 863382.9291 | BF86: 646805.9992 | BG86: 216576.9299 | BH86: 1302674.33 | BI86: 646805.9992 | BJ86: 655868.3313 | BL86: -0.2306834383 | BM86: -0.3634731153 | BN86: -0.05011750888
B87: 296880<BraNa> | C87: Nucleo Master FIA | D87: 296880 | E87: 2012-01-31 | F87: 14138786000112 | G87: Ações | H87: Livre | I87: Nucleo Capital Ltda | J87: BTG Pactual Servicos Financeiros SA Dtvm | K87: Banco BTG Pactual S/A | L87: 14 | M87: Não se Aplica | N87: Renda Variável | O87: Inv. Qualificado | P87: Até 40 % | Q87: Sim | R87: Não se Aplica | S87: D+000 | T87: D+000 | U87: D+002 | Z87: 2024-09-26 | AA87: 5.58039032 | AB87: 6.69311419 | AC87: 0.8337509508 | AD87: 2023-12-27 | AE87: 1615382018 | AF87: 2181360.63 | AG87: 14 | AI87: 0.1853686277 | AJ87: -0.3523483143 | AK87: 101 | AL87: 51 | AM87: 90 | AN87: 62 | AO87: 91 | AP87: 61 | AR87: 0.06646781597 | AS87: 0.02981965415 | AT87: -0.8220161488 | AU87: 0.4635669336 | AV87: -1.271146647 | AW87: 0.7317684516 | AX87: 0.01646966485 | AY87: 0.01876049858 | AZ87: -0.2221659033 | BB87: 2513.66871 | BC87: 122882.498 | BD87: -120368.8292 | BE87: 60007.95569 | BF87: 661144.8301 | BG87: -601136.8744 | BH87: 109468.2624 | BI87: 795259.7761 | BJ87: -685791.5137 | BL87: -0.07000798359 | BM87: -0.1633812445 | BN87: -0.03227326232
B88: 308341<BraNa> | C88: Oceana Long Biased Master FIA | D88: 308341 | E88: 2012-07-13 | F88: 15174615000101 | G88: Ações | H88: Livre | I88: Oceana Investimentos Administradora de Carteira de Valores Mobiliários Ltda | J88: BNY Mellon Servicos Financeiros Dtvm SA | K88: BNY Mellon Banco S.A. | L88: 24 | M88: Não se Aplica | N88: Renda Variável | O88: Não | P88: Até 20 % | Q88: Sim | R88: Não se Aplica | S88: D+001 | T88: D+000 | U88: D+002 | V88: 1000 | W88: 1000 | X88: 1000 | Z88: 2024-09-26 | AA88: 6.19048389 | AB88: 6.41746714 | AC88: 0.9646303993 | AD88: 2024-08-19 | AE88: 2461832989 | AF88: 2583260.814 | AG88: 24 | AI88: 0.1010854996 | AJ88: -0.2101229924 | AK88: 99 | AL88: 47 | AM88: 87 | AN88: 59 | AO88: 88 | AP88: 58 | AR88: 0.03123256206 | AS88: 0.01756059578 | AT88: 0.136606044 | AU88: 1.165905518 | AV88: 0.2244772936 | AW88: 2.017055161 | AX88: 0.01099022012 | AY88: 0.01047630256 | AZ88: -0.07819068115 | BB88: 26906.53081 | BC88: 11787.20942 | BD88: 15119.32139 | BE88: 371564.0492 | BF88: 626619.4321 | BG88: -255055.3829 | BH88: 444637.8201 | BI88: 804884.1357 | BJ88: -360246.3155 | BL88: 0.1208502388 | BM88: 0.002642641175 | BN88: -0.01419951635
B89: 447366<BraNa> | C89: Oceana Selection Master FIA | D89: 447366 | E89: 2017-08-18 | F89: 27227810000131 | G89: Ações | H89: Valor/Cresc. | I89: Oceana Investimentos Administradora de Carteira de Valores Mobiliários Ltda | J89: BNY Mellon Servicos Financeiros Dtvm SA | K89: BNY Mellon Banco S.A. | L89: 8 | M89: Não se Aplica | N89: Renda Variável | O89: Não | P89: Não se Aplica | Q89: Não | R89: Não se Aplica | S89: D+001 | T89: D+000 | U89: D+002 | Z89: 2024-09-26 | AA89: 2.44439281 | AB89: 2.61086885 | AC89: 0.9362373028 | AD89: 2024-03-20 | AE89: 1062769031 | AF89: 1096914.074 | AG89: 8 | AI89: 0.1376784152 | AJ89: -0.3010083216 | AK89: 51 | AL89: 34 | AM89: 46 | AN89: 39 | AO89: 50 | AP89: 35 | AR89: 0.04919155136 | AS89: 0.02879635596 | AT89: -0.02292562662 | AU89: 0.9318650868 | AV89: -0.03695780201 | AW89: 1.611942604 | AX89: 0.01644125151 | AY89: 0.01649045306 | AZ89: -0.1396206477 | BB89: 29234.03693 | BC89: 39024.60048 | BD89: -9790.56355 | BE89: 307445.4504 | BF89: 315853.2652 | BG89: -8407.81485 | BH89: 394979.4151 | BI89: 394261.8767 | BJ89: 717.5384199 | BL89: 0.09318143338 | BM89: -0.05502361174 | BN89: -0.03223503762
B90: 367125<BraNa> | C90: Oceana Valor Master FIA | D90: 367125 | E90: 2014-05-14 | F90: 18454944000102 | G90: Ações | H90: Índice Ativo | I90: Oceana Investimentos Administradora de Carteira de Valores Mobiliários Ltda | J90: BNY Mellon Servicos Financeiros Dtvm SA | K90: BNY Mellon Banco S.A. | L90: 7 | M90: IBOVESPA | N90: Renda Variável | O90: Não | P90: Não se Aplica | Q90: Não | R90: Não se Aplica | S90: D+001 | T90: D+000 | U90: D+002 | Z90: 2024-09-26 | AA90: 4.19979254 | AB90: 4.39467478 | AC90: 0.955654912 | AD90: 2024-08-28 | AE90: 1547456701 | AF90: 1523594.028 | AG90: 7 | AI90: 0.1733629415 | AJ90: -0.2874181604 | AK90: 74 | AL90: 50 | AM90: 70 | AN90: 54 | AO90: 80 | AP90: 44 | AR90: 0.04236578648 | AS90: 0.02735875433 | AT90: 0.2212816623 | AU90: 1.358397398 | AV90: 0.3606011312 | AW90: 2.306107665 | AX90: 0.01207127986 | AY90: 0.0132965254 | AZ90: -0.1119092285 | BB90: 38771.38329 | BC90: 19630.72348 | BD90: 19140.65981 | BE90: 254701.9782 | BF90: 258183.2491 | BG90: -3481.27098 | BH90: 320716.1799 | BI90: 302158.0652 | BJ90: 18558.11469 | BL90: 0.1334534598 | BM90: -0.03081496724 | BN90: -0.02968048133
B91: 739111<BraNa> | C91: Opp Global II FIF em Acoes Resp Limit | D91: 739111 | E91: 2023-12-26 | F91: 53294516000152 | G91: Ações | H91: - | I91: Opportunity Private Equity Gestora de Recursos Ltda | J91: Brl Dtvm | K91: Brl Trust Dtvm S.A. | L91: 4 | M91: Não se Aplica | N91: Renda Variável | O91: Inv. Profissional | P91: Até 100% | Q91: S | R91: N | S91: D+000 | T91: D+001 | U91: D+002 | V91: 0 | W91: 0 | X91: 0 | Z91: 2024-09-26 | AA91: 23207.60234 | AE91: 1478067575 | AG91: 4 | AI91: 0.2577569475 | AJ91: -0.1381376374 | AK91: 7 | AL91: 2 | AM91: 7 | AN91: 2 | AO91: 6 | AP91: 3 | AS91: 0.06570255546 | AU91: 1.020547447 | AW91: 2.023800932 | AX91: 0.045001734 | AZ91: -0.1604937949 | BB91: 0 | BC91: 0 | BD91: 0 | BE91: 0 | BF91: 0 | BG91: 0 | BH91: 936508.2437 | BI91: 0 | BJ91: 936508.2437 | BM91: 0.5905220512 | BN91: 0.1271385969
B92: 149209<BraNa> | C92: Opp I FIA Bdr Nivel I Ie | D92: 149209 | E92: 2005-06-03 | F92: 83181000167 | G92: Ações | H92: Fechados de Ações | I92: Opportunity Hdf Administradora de Recursos Ltda. | J92: BNY Mellon Servicos Financeiros Dtvm SA | K92: BNY Mellon Banco S.A. | L92: 4 | M92: Não se Aplica | N92: Renda Variável | O92: Inv. Profissional | P92: Até 100% | Q92: Sim | R92: Não se Aplica | S92: D+000 | T92: D+000 | U92: D+002 | V92: 0 | W92: 1000000 | X92: 1000000 | Z92: 2024-09-25 | AA92: 1027.601974 | AB92: 1038.907696 | AC92: 0.9891176837 | AD92: 2024-08-20 | AE92: 21230790530 | AF92: 19493814.74 | AG92: 4 | AI92: 0.3237624627 | AJ92: -0.2859644726 | AK92: 132 | AL92: 99 | AM92: 119 | AN92: 112 | AO92: 132 | AP92: 99 | AR92: 0.02597645137 | AS92: 0.01181322154 | AT92: 1.145006014 | AU92: 0.2693978052 | AV92: 1.952671382 | AW92: 0.4175361559 | AX92: 0.01061152742 | AY92: 0.0101801799 | AZ92: -0.05831998255 | BB92: 0 | BC92: 0 | BD92: 0 | BE92: 0 | BF92: 0 | BG92: 0 | BH92: 0 | BI92: 0 | BJ92: 0 | BL92: 0.2305710608 | BM92: 0.1175739017 | BN92: 0.002462988925
B93: 270563<BraNa> | C93: Opp Log FIA Bdr Nivel I Ie | D93: 270563 | E93: 2011-03-03 | F93: 13277011000165 | G93: Ações | H93: Fechados de Ações | I93: Opportunity Hdf Administradora de Recursos Ltda. | J93: BNY Mellon Servicos Financeiros Dtvm SA | K93: BNY Mellon Banco S.A. | L93: 10 | M93: Não se Aplica | N93: Renda Variável | O93: Inv. Profissional | P93: Até 100% | Q93: S | R93: N | S93: D+000 | T93: D+000 | U93: D+002 | V93: 1000000 | W93: 0 | X93: 1000000 | Z93: 2024-09-25 | AA93: 260.0293645 | AB93: 262.9559355 | AC93: 0.9888704889 | AD93: 2024-07-12 | AE93: 4016823637 | AF93: 3543830.536 | AG93: 10 | AI93: 0.1534509498 | AJ93: -0.2996876336 | AK93: 92 | AL93: 70 | AM93: 87 | AN93: 75 | AO93: 94 | AP93: 68 | AR93: 0.04271560395 | AS93: 0.01902815684 | AT93: 1.328881901 | AU93: 0.7930573611 | AV93: 2.309250346 | AW93: 1.289814785 | AX93: 0.014722697 | AY93: 0.01480574038 | AZ93: -0.0832519167 | BB93: 0 | BC93: 0 | BD93: 0 | BE93: 0 | BF93: 0 | BG93: 0 | BH93: 0 | BI93: 0 | BJ93: 0 | BL93: 0.3093294165 | BM93: 0.1491169057 | BN93: 0.01613851392
B94: 723436<BraNa> | C94: Opportun Slq III FIF Acoes Resp Lim | D94: 723436 | E94: 2023-09-25 | F94: 52127348000148 | G94: Ações | H94: Invest. no Exterior | I94: Opportunity Gestora de Recursos Ltda | J94: BNY Mellon Servicos Financeiros Dtvm SA | K94: BNY Mellon Banco S.A. | L94: 3 | M94: Não se Aplica | N94: Renda Variável | O94: Inv. Profissional | P94: Até 100% | Q94: S | R94: N | S94: D+000 | T94: D+001 | U94: D+003 | Z94: 2024-09-26 | AA94: 1.30466037 | AB94: 1.33108404 | AC94: 0.9801487591 | AD94: 2024-07-11 | AE94: 3768932358 | AF94: 3105996.975 | AG94: 3 | AI94: 0.1004591406 | AJ94: -0.03408675454 | AK94: 8 | AL94: 4 | AM94: 6 | AN94: 6 | AO94: 7 | AP94: 5 | AR94: 0.03432326846 | AS94: 0.02187795858 | AT94: 1.414495181 | AU94: 0.6102813392 | AV94: 2.372504411 | AW94: 0.9375029035 | AX94: 0.01441562529 | AY94: 0.01344883754 | AZ94: -0.09042882071 | BB94: 0 | BC94: 3500 | BD94: -3500 | BE94: 0 | BF94: 59800 | BG94: -59800 | BH94: 3034945.37 | BI94: 60936.81726 | BJ94: 2974008.553 | BL94: 0.30466037 | BM94: 0.148706173 | BN94: -0.003297446138
B95: 453811<BraNa> | C95: Opportunity Acoes FIA - Bdr Nivel I | D95: 453811 | E95: 2017-11-17 | F95: 28260437000183 | G95: Ações | H95: Livre | I95: Opportunity Hdf Administradora de Recursos Ltda. | J95: BNY Mellon Servicos Financeiros Dtvm SA | K95: BNY Mellon Banco S.A. | L95: 4 | M95: Não se Aplica | N95: Renda Variável | O95: Inv. Profissional | P95: Até 40 % | Q95: Sim | R95: Não se Aplica | S95: D+000 | T95: D+000 | U95: D+002 | V95: 1000000 | W95: 0 | X95: 1000000 | Z95: 2024-09-26 | AA95: 2.66573506 | AB95: 2.74367121 | AC95: 0.9715942094 | AD95: 2024-07-11 | AE95: 15675314191 | AF95: 14006497.3 | AG95: 4 | AI95: 0.1751753444 | AJ95: -0.338773664 | AK95: 52 | AL95: 30 | AM95: 49 | AN95: 33 | AO95: 49 | AP95: 33 | AR95: 0.03668801066 | AS95: 0.02527877638 | AT95: 1.327150685 | AU95: 0.5651207225 | AV95: 2.203302745 | AW95: 0.8702239294 | AX95: 0.01667256016 | AY95: 0.015258101 | AZ95: -0.1045900759 | BB95: 0 | BC95: 0 | BD95: 0 | BE95: 0 | BF95: 41930 | BG95: -41930 | BH95: 0 | BI95: 42230 | BJ95: -42230 | BL95: 0.3145491885 | BM95: 0.1687845546 | BN95: -0.005857227798
B96: 426717<BraNa> | C96: Opportunity Capital FIA | D96: 426717 | E96: 2016-10-24 | F96: 26101666000120 | G96: Ações | H96: Livre | I96: Opportunity Gestão de Investimentos e Recursos Ltda | J96: BNY Mellon Servicos Financeiros Dtvm SA | K96: BNY Mellon Banco S.A. | L96: 1 | M96: Não se Aplica | N96: Renda Variável | O96: Não | P96: Até 20 % | Q96: Sim | R96: Não se Aplica | S96: D+000 | T96: D+000 | U96: D+002 | Z96: 2024-09-26 | AA96: 4.48062148 | AB96: 4.55275203 | AC96: 0.9841567145 | AD96: 2024-08-30 | AE96: 1531032381 | AF96: 1579844.875 | AG96: 1 | AI96: 0.1590474094 | AJ96: -0.2269965727 | AK96: 57 | AL96: 38 | AM96: 55 | AN96: 40 | AO96: 58 | AP96: 37 | AR96: 0.03327555958 | AS96: 0.02114090337 | AT96: 0.1896063679 | AU96: 0.9939066718 | AV96: 0.2987201255 | AW96: 1.587668013 | AX96: 0.01227360786 | AY96: 0.01365488054 | AZ96: -0.1049714679 | BB96: 0 | BC96: 0 | BD96: 0 | BE96: 80000 | BF96: 315000 | BG96: -235000 | BH96: 80000 | BI96: 315000 | BJ96: -235000 | BL96: 0.1291636342 | BM96: 0.03316181975 | BN96: -0.01584328545
B97: 453498<BraNa> | C97: Opportunity Log II FIA Bdr Niv I Ie | D97: 453498 | E97: 2017-11-24 | F97: 28637867000171 | G97: Ações | H97: Fechados de Ações | I97: Opportunity Hdf Administradora de Recursos Ltda. | J97: BNY Mellon Servicos Financeiros Dtvm SA | K97: BNY Mellon Banco S.A. | L97: 5 | M97: Não se Aplica | N97: Renda Variável | O97: Inv. Profissional | P97: Até 100% | Q97: S | R97: N | S97: D+000 | T97: D+000 | U97: D+003 | V97: 1000000 | W97: 0 | X97: 1000000 | Z97: 2024-09-25 | AA97: 3.29257871 | AB97: 3.31818913 | AC97: 0.9922818082 | AD97: 2024-08-20 | AE97: 5638030321 | AF97: 5225794.696 | AG97: 5 | AI97: 0.2825513392 | AJ97: -0.261690731 | AK97: 53 | AL97: 29 | AM97: 48 | AN97: 34 | AO97: 49 | AP97: 33 | AR97: 0.02234190178 | AS97: 0.008121361983 | AT97: 1.058627601 | AU97: 0.1850282677 | AV97: 1.784137789 | AW97: 0.2825773508 | AX97: 0.008499582309 | AY97: 0.008440591486 | AZ97: -0.04517319792 | BB97: 0 | BC97: 0 | BD97: 0 | BE97: 0 | BF97: 0 | BG97: 0 | BH97: 0 | BI97: 0 | BJ97: 0 | BL97: 0.2032745703 | BM97: 0.1013989315 | BN97: 0.003032540411
B98: 268550<BraNa> | C98: Opportunity Logica Master FIA | D98: 268550 | E98: 2011-03-03 | F98: 9720835000190 | G98: Ações | H98: Livre | I98: Opportunity Hdf Administradora de Recursos Ltda. | J98: BNY Mellon Servicos Financeiros Dtvm SA | K98: BNY Mellon Banco S.A. | L98: 15 | M98: Não se Aplica | N98: Renda Variável | O98: Inv. Qualificado | P98: Até 40 % | Q98: Sim | R98: Não se Aplica | S98: D+001 | T98: D+000 | U98: D+002 | Z98: 2024-09-26 | AA98: 2.51027369 | AB98: 2.58459337 | AC98: 0.971245117 | AD98: 2024-07-11 | AE98: 5010271543 | AF98: 4336050.521 | AG98: 15 | AI98: 0.1762786018 | AJ98: -0.3351575633 | AK98: 91 | AL98: 71 | AM98: 85 | AN98: 77 | AO98: 93 | AP98: 69 | AR98: 0.036554374 | AS98: 0.02476296807 | AT98: 1.331632607 | AU98: 0.567427763 | AV98: 2.208572482 | AW98: 0.8725546648 | AX98: 0.01659162851 | AY98: 0.01526092721 | AZ98: -0.1042168424 | BB98: 3759 | BC98: 6215.709 | BD98: -2456.709 | BE98: 270914.2 | BF98: 60180.31498 | BG98: 210733.885 | BH98: 288656.7 | BI98: 87887.88856 | BJ98: 200768.8114 | BL98: 0.3153103053 | BM98: 0.1685500336 | BN98: -0.006131425303
B99: 725153<BraNa> | C99: Opportunity Slq FIA - Bdr Nivel I - Ie | D99: 725153 | E99: 2023-09-28 | F99: 52298374000139 | G99: Ações | H99: Invest. no Exterior | I99: Opportunity Gestora de Recursos Ltda | J99: BNY Mellon Servicos Financeiros Dtvm SA | K99: BNY Mellon Banco S.A. | L99: 9 | M99: Não se Aplica | N99: Renda Variável | O99: Inv. Profissional | P99: Até 100% | Q99: S | R99: N | S99: D+000 | T99: D+001 | U99: D+003 | Z99: 2024-09-25 | AA99: 1.25289694 | AE99: 23231650468 | AG99: 9 | AI99: 0.08707066738 | AJ99: -0.03547716801 | AK99: 7 | AL99: 5 | AM99: 6 | AN99: 6 | AO99: 7 | AP99: 5 | AR99: 0.0313604572 | AS99: 0.01788709566 | AT99: 1.190404833 | AU99: 0.3664784914 | AV99: 1.997056111 | AW99: 0.5616185268 | AX99: 0.01244659619 | AY99: 0.01201700852 | AZ99: -0.07741710237 | BB99: 220 | BC99: 10.05025 | BD99: 209.94975 | BE99: 133020 | BF99: 10.05025 | BG99: 133009.9497 | BH99: 18351405.73 | BI99: 10.05025 | BJ99: 18351395.68 | BM99: 0.1347026986 | BN99: -0.002992684436
B100: 226084<BraNa> | C100: Orbix Acoes FI Ie | D100: 226084 | E100: 2009-04-08 | F100: 9327501000151 | G100: Ações | H100: Invest. no Exterior | I100: Pragma Gestão de Patrimônio Ltda | J100: Intrag | K100: Itau Unibanco S.A. | L100: 2 | M100: CDI | N100: Renda Variável | O100: Inv. Profissional | P100: Até 100% | Q100: Sim | R100: Não se Aplica | S100: D+000 | T100: D+000 | U100: D+001 | V100: 0 | W100: 1 | X100: 1 | Z100: 2024-09-25 | AA100: 61.1213429 | AB100: 62.083622 | AC100: 0.9845002745 | AD100: 2024-09-10 | AE100: 4499492721 | AF100: 4047952.995 | AG100: 2 | AI100: 0.0902937032 | AJ100: -0.06477760177 | AK100: 134 | AL100: 51 | AM100: 106 | AN100: 79 | AO100: 96 | AP100: 89 | AR100: 0.03097649371 | AS100: 0.01449950113 | AT100: 0.5557768628 | AU100: 0.3213431447 | AV100: 1.238334024 | AW100: 0.5414222509 | AX100: 0.01072747667 | AY100: 0.01255139249 | AZ100: -0.07404899394 | BB100: 0 | BC100: 0 | BD100: 0 | BE100: 0 | BF100: 0 | BG100: 0 | BH100: 0 | BI100: 0 | BJ100: 0 | BL100: 0.1777494122 | BM100: 0.2271101731 | BN100: -0.01476370744
B101: 491799<BraNa> | C101: Perfin Ares 2 FIA | D101: 491799 | E101: 2019-02-01 | F101: 32274282000101 | G101: Ações | H101: Fechados de Ações | I101: Perfin Administração de Recursos Ltda | J101: BTG Pactual Servicos Financeiros SA Dtvm | K101: Banco Bradesco S.A. | L101: 2 | M101: Não se Aplica | N101: Renda Variável | O101: Inv. Qualificado | P101: Não se Aplica | Q101: Sim | R101: Não se Aplica | S101: D+000 | T101: D+000 | U101: D+001 | Z101: 2024-09-26 | AA101: 306.6566651 | AB101: 356.8457643 | AC101: 0.8593535241 | AD101: 2024-04-01 | AE101: 1278556223 | AF101: 1369640.16 | AG101: 2 | AI101: 1.036851906 | AJ101: -0.2411924666 | AK101: 30 | AL101: 37 | AM101: 12 | AN101: 55 | AO101: 30 | AP101: 37 | AR101: 0.06510610629 | AS101: 0.07026114305 | AT101: -0.2355082925 | AU101: -1.745116349 | AV101: -0.4576817705 | AW101: -1.905654391 | AX101: 0.02764495058 | AY101: 0.02514891641 | AZ101: -0.1406464759 | BB101: 0 | BC101: 0 | BD101: 0 | BE101: 1849.99998 | BF101: 0 | BG101: 1849.99998 | BH101: 1849.99998 | BI101: 0 | BJ101: 1849.99998 | BL101: 0.01834689776 | BM101: 0.01740945354 | BN101: -1.090882506e-05
B102: 545139<BraNa> | C102: Porto e Fc em Acoes Ie | D102: 545139 | E102: 2020-07-10 | F102: 37319949000169 | G102: Ações | H102: Fechados de Ações | I102: Bw Gestão de Investimentos Ltda. | J102: Intrag | K102: Itau Unibanco S.A. | L102: 3 | M102: IBOVESPA | N102: Renda Variável | O102: Inv. Profissional | P102: Até 100% | Q102: Sim | R102: Não se Aplica | S102: D+000 | T102: D+000 | U102: D+001 | V102: 1000000 | W102: 1000 | X102: 0 | Z102: 2024-09-26 | AA102: 1.1598933 | AB102: 1.1782876 | AC102: 0.9843889556 | AD102: 2024-09-17 | AE102: 3443367254 | AF102: 2983362.483 | AG102: 3 | AI102: 0.2432487027 | AJ102: -0.1295778352 | AK102: 27 | AL102: 23 | AM102: 22 | AN102: 28 | AO102: 23 | AP102: 27 | AR102: 0.06530773608 | AS102: 0.02809547991 | AT102: 0.3704136022 | AU102: 1.507367105 | AV102: 0.597916414 | AW102: 2.563376142 | AX102: 0.02392789417 | AY102: 0.02654651377 | AZ102: -0.1166075445 | BB102: 1000 | BC102: 0 | BD102: 1000 | BE102: 353540.3569 | BF102: 0 | BG102: 353540.3569 | BH102: 354140.3569 | BI102: 0 | BJ102: 354140.3569 | BL102: 0.1775207862 | BM102: 0.02157545654 | BN102: 0.05922817353
B103: 699438<BraNa> | C103: Previ Renda Variavel Ativa FIA | D103: 699438 | E103: 2023-03-31 | F103: 49766905000166 | G103: Ações | H103: Livre | I103: BB Gestao de Recursos Dtvm S.A | J103: BB Asset Management | K103: Banco do Brasil S.A. | L103: 1 | M103: OUTROS | N103: Não Aplicável | O103: Inv. Profissional | P103: Não se Aplica | Q103: Não | R103: Não se Aplica | S103: D+001 | T103: D+000 | U103: D+002 | V103: 0.01 | W103: 0.01 | X103: 0.01 | Z103: 2024-09-26 | AA103: 1.192520725 | AB103: 1.24547639 | AC103: 0.9574815987 | AD103: 2024-08-28 | AE103: 5738640014 | AF103: 1771430.947 | AG103: 1 | AI103: 0.1215904483 | AJ103: -0.04777166032 | AK103: 10 | AL103: 8 | AM103: 8 | AN103: 10 | AO103: 8 | AP103: 10 | AR103: 0.04635560099 | AS103: 0.03492842279 | AT103: 0.2031976039 | AU103: 2.007590219 | AV103: 0.321127012 | AW103: 3.3086184 | AX103: 0.01174912658 | AY103: 0.01384531175 | AZ103: -0.1155659642 | BB103: 44.88326 | BC103: 0 | BD103: 44.88326 | BE103: 15673037.91 | BF103: 5324394.292 | BG103: 10348643.62 | BH103: 15673037.91 | BI103: 5324394.292 | BJ103: 10348643.62 | BL103: 0.1312842948 | BM103: -0.01765553296 | BN103: -0.03244379373
B104: 562289<BraNa> | C104: Previ Rv Global FIA Ie | D104: 562289 | E104: 2020-11-25 | F104: 35302796000111 | G104: Ações | H104: Invest. no Exterior | I104: BB Gestao de Recursos Dtvm S.A | J104: BB Asset Management | K104: Banco do Brasil S.A. | L104: 2 | M104: OUTROS | N104: Não Aplicável | O104: Inv. Profissional | P104: Até 100% | Q104: Não | R104: Não se Aplica | S104: D+001 | T104: D+001 | U104: D+006 | V104: 0.01 | W104: 0.01 | X104: 0.01 | Z104: 2024-09-26 | AA104: 1.262882126 | AB104: 1.28695656 | AC104: 0.9812935147 | AD104: 2024-08-30 | AE104: 1678657541 | AF104: 1423651.063 | AG104: 2 | AI104: 0.1076682306 | AJ104: -0.1553739965 | AK104: 29 | AL104: 17 | AM104: 25 | AN104: 21 | AO104: 24 | AP104: 22 | AR104: 0.03513930933 | AS104: 0.0249111667 | AT104: 2.166518652 | AU104: 0.5867902487 | AV104: 3.673522139 | AW104: 0.9422725056 | AX104: 0.01869610502 | AY104: 0.01458480277 | AZ104: -0.07041851262 | BB104: 0 | BC104: 0 | BD104: 0 | BE104: 932 | BF104: 0 | BG104: 932 | BH104: 932 | BI104: 0 | BJ104: 932 | BL104: 0.4366052982 | BM104: 0.3184168084 | BN104: -0.01870648532
B105: 455040<BraNa> | C105: Progresso FIA Ie | D105: 455040 | E105: 2017-12-15 | F105: 29044668000112 | G105: Ações | H105: Invest. no Exterior | I105: BTG Pactual Wm Gestão de Recursos Ltda | J105: BTG Pactual Servicos Financeiros SA Dtvm | K105: Banco BTG Pactual S/A | L105: 1 | M105: CDI | N105: Renda Variável | O105: Inv. Profissional | P105: Até 100% | Q105: Sim | R105: Não se Aplica | S105: D+000 | T105: D+000 | U105: D+002 | Z105: 2024-09-26 | AA105: 4.6222682 | AB105: 4.8591787 | AC105: 0.9512447443 | AD105: 2024-03-13 | AE105: 2293609992 | AF105: 2075769.137 | AG105: 1 | AI105: 0.2880240202 | AJ105: -0.3474978916 | AK105: 46 | AL105: 35 | AM105: 45 | AN105: 36 | AO105: 47 | AP105: 34 | AR105: 0.05883562501 | AS105: 0.01776547794 | AT105: 0.1209997527 | AU105: 0.5983739869 | AV105: 0.2535168898 | AW105: 1.036135162 | AX105: 0.01360626987 | AY105: 0.02297575121 | AZ105: -0.09211996836 | BB105: 0 | BC105: 0 | BD105: 0 | BE105: 255200 | BF105: 187500 | BG105: 67700 | BH105: 276800 | BI105: 191500 | BJ105: 85300 | BL105: 0.1143589476 | BM105: 0.1110076976 | BN105: -0.007953616989
B106: 340197<BraNa> | C106: Quartier FI Cotas FIA | D106: 340197 | E106: 2013-07-10 | F106: 18248733000105 | G106: Ações | H106: Livre | I106: Atmos Capital Gestão de Recursos Ltda | J106: BTG Pactual Servicos Financeiros SA Dtvm | K106: Banco BTG Pactual S/A | L106: 29 | M106: Não se Aplica | N106: Renda Variável | O106: Inv. Qualificado | P106: Até 40 % | Q106: Sim | R106: Não se Aplica | S106: D+001 | T106: D+060 | U106: D+062 | V106: 20000 | W106: 10000 | X106: 20000 | Z106: 2024-09-26 | AA106: 628.4892886 | AB106: 657.4065791 | AC106: 0.9560130802 | AD106: 2024-08-21 | AE106: 1018191566 | AF106: 935800.2152 | AG106: 29 | AI106: 0.2239524526 | AJ106: -0.3112026304 | AK106: 90 | AL106: 44 | AM106: 79 | AN106: 55 | AO106: 72 | AP106: 62 | AR106: 0.04498697659 | AS106: 0.03853328868 | AT106: 0.4841202683 | AU106: 1.44139853 | AV106: 0.7936384204 | AW106: 2.367748235 | AX106: 0.01556472147 | AY106: 0.01636326906 | AZ106: -0.07706999147 | BB106: 76 | BC106: 0 | BD106: 76 | BE106: 30327.80432 | BF106: 10.97145 | BG106: 30316.83287 | BH106: 53848.00972 | BI106: 15842.65198 | BJ106: 38005.35774 | BL106: 0.1815280565 | BM106: 0.0594435914 | BN106: -0.02309938327
B107: 298761<BraNa> | C107: Real Investor Fc FIA - Bdr Nivel I | D107: 298761 | E107: 2012-02-29 | F107: 10500884000105 | G107: Ações | H107: Livre | I107: Real Investor Asset Management Ltda | J107: BNY Mellon Servicos Financeiros Dtvm SA | K107: BNY Mellon Banco S.A. | L107: 29830 | M107: IBOVESPA FECHAMENTO | N107: Renda Variável | O107: Não | P107: Até 20 % | Q107: Sim | R107: Não se Aplica | S107: D+001 | T107: D+027 | U107: D+029 | V107: 5000 | W107: 1000 | X107: 5000 | Z107: 2024-09-26 | AA107: 20.91104755 | AB107: 22.00314346 | AC107: 0.9503663687 | AD107: 2024-08-28 | AE107: 2013014501 | AF107: 1843001.228 | AG107: 29830 | AI107: 0.1855139346 | AJ107: -0.3170379575 | AK107: 95 | AL107: 56 | AM107: 84 | AN107: 67 | AO107: 88 | AP107: 63 | AR107: 0.04542161388 | AS107: 0.03989432405 | AT107: 0.1589239268 | AU107: 0.701608937 | AV107: 0.2599166928 | AW107: 1.149125862 | AX107: 0.01282334863 | AY107: 0.01372094205 | AZ107: -0.09366414801 | BB107: 34979.35032 | BC107: 33867.19163 | BD107: 1112.15869 | BE107: 479750.377 | BF107: 259881.318 | BG107: 219869.059 | BH107: 581500.8432 | BI107: 368486.8999 | BJ107: 213013.9433 | BL107: 0.1247365581 | BM107: -0.02057772389 | BN107: -0.04130152182
B108: 572497<BraNa> | C108: Real Investor Master FIA - Bdr Nivel I | D108: 572497 | E108: 2021-01-06 | F108: 36352539000157 | G108: Ações | H108: Livre | I108: Real Investor Asset Management Ltda | J108: BNY Mellon Servicos Financeiros Dtvm SA | K108: BNY Mellon Banco S.A. | L108: 2 | M108: Não se Aplica | N108: Renda Variável | O108: Não | P108: Até 20 % | Q108: Sim | R108: Não se Aplica | S108: D+001 | T108: D+000 | U108: D+002 | V108: 5000 | W108: 1000 | X108: 5000 | Z108: 2024-09-26 | AA108: 1.51642295 | AB108: 1.59644156 | AC108: 0.9498768937 | AD108: 2024-09-05 | AE108: 2030396827 | AF108: 1849768.963 | AG108: 2 | AI108: 0.1110745985 | AJ108: -0.1113609894 | AK108: 27 | AL108: 17 | AM108: 23 | AN108: 21 | AO108: 28 | AP108: 16 | AR108: 0.04600963933 | AS108: 0.04083920342 | AT108: 0.290921507 | AU108: 0.8490540035 | AV108: 0.4793096854 | AW108: 1.402335596 | AX108: 0.01315861555 | AY108: 0.01418451119 | AZ108: -0.09571125798 | BB108: 17159.411 | BC108: 16531 | BD108: 628.411 | BE108: 287618.4962 | BF108: 84424.508 | BG108: 203193.9881 | BH108: 339009.4666 | BI108: 158118.8996 | BJ108: 180890.567 | BL108: 0.1447839686 | BM108: -0.00661187921 | BN108: -0.04099070889
B109: 380202<BraNa> | C109: Rt Constellation FIF Acoes Resp Lim | D109: 380202 | E109: 2014-10-17 | F109: 13412410000191 | G109: Ações | H109: Livre | I109: Itau Unibanco Asset Management Ltda. | J109: Itau Unibanco SA | K109: Itau Unibanco S.A. | L109: 8 | M109: IBOVESPA | N109: Não Aplicável | O109: Inv. Profissional | P109: Até 40 % | Q109: Não | R109: Não se Aplica | S109: D+000 | T109: D+000 | U109: D+002 | V109: 100 | W109: 1 | X109: 1 | Z109: 2024-09-26 | AA109: 25.978751 | AB109: 27.076018 | AC109: 0.9594745801 | AD109: 2024-08-28 | AE109: 1108436676 | AF109: 1397978.054 | AG109: 8 | AI109: 0.1418241469 | AJ109: -0.3102982269 | AK109: 69 | AL109: 50 | AM109: 62 | AN109: 57 | AO109: 63 | AP109: 56 | AR109: 0.04410690311 | AS109: 0.03248022944 | AT109: 0.1678473955 | AU109: 1.510405472 | AV109: 0.272932004 | AW109: 2.484154829 | AX109: 0.0116410046 | AY109: 0.01299308269 | AZ109: -0.1096386636 | BB109: 34999.99994 | BC109: 0 | BD109: 34999.99994 | BE109: 863337.6848 | BF109: 1220369.37 | BG109: -357031.6852 | BH109: 898667.6848 | BI109: 1508422.37 | BJ109: -609754.6852 | BL109: 0.1257587591 | BM109: -0.02452575798 | BN109: -0.03149359219
B110: 387673<BraNa> | C110: Samambai Master FIF Acoes Resp Lim | D110: 387673 | E110: 2011-08-22 | F110: 10643191000163 | G110: Ações | H110: Invest. no Exterior | I110: Ronaldo Cezar Coelho | J110: Intrag | K110: Itau Unibanco S.A. | L110: 1 | M110: IBOVESPA FECHAMENTO | N110: Renda Variável | O110: Inv. Profissional | P110: Até 100% | Q110: Sim | R110: Não se Aplica | S110: D+000 | T110: D+001 | U110: D+003 | V110: 1000000 | W110: 100 | X110: 300000 | Z110: 2024-09-26 | AA110: 54.1824456 | AB110: 59.0215487 | AC110: 0.9180112483 | AD110: 2024-09-05 | AE110: 4275710212 | AF110: 4190364.762 | AG110: 1 | AI110: 0.2420146699 | AJ110: -0.32923031 | AK110: 97 | AL110: 60 | AM110: 84 | AN110: 73 | AO110: 82 | AP110: 75 | AR110: 0.06478515064 | AS110: 0.06606415864 | AT110: 0.4863286675 | AU110: 2.8743101 | AV110: 0.8000775073 | AW110: 5.031497649 | AX110: 0.02236038507 | AY110: 0.02348025175 | AZ110: -0.182998545 | BB110: 0 | BC110: 8000 | BD110: -8000 | BE110: 165000 | BF110: 198500 | BG110: -33500 | BH110: 166100 | BI110: 314500 | BJ110: -148400 | BL110: 0.202617462 | BM110: -0.03311073304 | BN110: -0.03416161972
B111: 406627<BraNa> | C111: Santa Rita FIA Ie | D111: 406627 | E111: 2015-04-01 | F111: 8831574000113 | G111: Ações | H111: Fechados de Ações | I111: BTG Pactual Wm Gestão de Recursos Ltda | J111: BTG Pactual Servicos Financeiros SA Dtvm | K111: Banco BTG Pactual S/A | L111: 1 | M111: Não se Aplica | N111: Renda Variável | O111: Inv. Profissional | P111: Até 100% | Q111: Não | R111: Não se Aplica | S111: D+000 | T111: D+000 | U111: D+005 | Z111: 2024-09-26 | AA111: 4.5180616 | AB111: 4.7552358 | AC111: 0.950123567 | AD111: 2024-03-27 | AE111: 2014317838 | AF111: 2029083.535 | AG111: 1 | AI111: 0.1340133861 | AJ111: -0.2442999156 | AK111: 58 | AL111: 55 | AM111: 50 | AN111: 63 | AO111: 46 | AP111: 67 | AR111: 0.02435981903 | AS111: 0.008265085486 | AT111: -0.659541195 | AU111: 0.5508830591 | AV111: -1.161772719 | AW111: 0.8767011088 | AX111: 0.007146080964 | AY111: 0.00952129943 | AZ111: -0.08539158037 | BB111: 0 | BC111: 0 | BD111: 0 | BE111: 0 | BF111: 0 | BG111: 0 | BH111: 0 | BI111: 0 | BJ111: 0 | BL111: 0.03936003716 | BM111: -0.04500368296 | BN111: -0.0005591527643
B112: 323624<BraNa> | C112: Santos FIA | D112: 323624 | E112: 2012-12-31 | F112: 15831754000160 | G112: Ações | H112: Fechados de Ações | I112: Sueste Capital Gestão de Recursos Ltda | J112: Oliveira Trust Dtvm | K112: Oliveira Trust Dtvm S.A. | L112: 3 | M112: Não se Aplica | N112: Não Aplicável | O112: Inv. Profissional | P112: Não se Aplica | Q112: Não | R112: Não | S112: D+000 | T112: D+000 | U112: D+000 | V112: 1000000 | W112: 0 | X112: 0 | Z112: 2024-09-25 | AA112: 108.2085893 | AB112: 109.1538957 | AC112: 0.9913396919 | AD112: 2023-09-26 | AE112: 36952003890 | AF112: 37174621.03 | AG112: 3 | AI112: 20.42644533 | AJ112: -0.1837238504 | AK112: 42 | AL112: 93 | AM112: 16 | AN112: 125 | AO112: 69 | AP112: 72 | AR112: 0.001210132991 | AS112: 0.0008985506119 | AT112: -22.79607535 | AU112: -24.25208802 | AV112: -14.15132105 | AW112: -15.58106596 | AX112: 0.0003960922309 | AY112: 0.0004827216153 | AZ112: -0.009620746498 | BB112: 0 | BC112: 0 | BD112: 0 | BE112: 0 | BF112: 0 | BG112: 0 | BH112: 0 | BI112: 613780.7508 | BJ112: -613780.7508 | BL112: -0.008673731467 | BM112: -0.002117104264 | BN112: -0.000513485802
B113: 502911<BraNa> | C113: Sharp Long Biased Master FIA | D113: 502911 | E113: 2018-12-20 | F113: 32064571000186 | G113: Ações | H113: Livre | I113: Sharp Capital Gestora de Recursos Ltda | J113: BTG Pactual Servicos Financeiros SA Dtvm | K113: Banco BTG Pactual S/A | L113: 30 | M113: Não se Aplica | N113: Renda Variável | O113: Inv. Qualificado | P113: Até 40 % | Q113: Sim | R113: Não se Aplica | S113: D+000 | T113: D+000 | U113: D+002 | Z113: 2024-09-26 | AA113: 2.94314173 | AB113: 3.14757873 | AC113: 0.9350494404 | AD113: 2024-08-19 | AE113: 3384293934 | AF113: 3639129.455 | AG113: 30 | AI113: 0.1113027302 | AJ113: -0.1046557276 | AK113: 48 | AL113: 21 | AM113: 40 | AN113: 29 | AO113: 43 | AP113: 26 | AR113: 0.02896028088 | AS113: 0.02420664158 | AT113: -0.2375529636 | AU113: 0.130304981 | AV113: -0.3706395995 | AW113: 0.2079810863 | AX113: 0.01141976113 | AY113: 0.01149905768 | AZ113: -0.06743865854 | BB113: 24286.10369 | BC113: 103094.5 | BD113: -78808.39631 | BE113: 506848.7329 | BF113: 945151.5963 | BG113: -438302.8634 | BH113: 844449.612 | BI113: 1167849.096 | BJ113: -323399.4843 | BL113: 0.0751937294 | BM113: 0.00147132975 | BN113: -0.02777990586
B114: 505943<BraNa> | C114: Sintra FIF Acoes Resp Limitada | D114: 505943 | E114: 2019-08-21 | F114: 33033134000168 | G114: Ações | H114: Invest. no Exterior | I114: Bw Gestão de Investimentos Ltda. | J114: Intrag | K114: Itau Unibanco S.A. | L114: 4 | M114: CDI | N114: Renda Variável | O114: Inv. Profissional | P114: Até 100% | Q114: S | R114: N | S114: D+000 | T114: D+000 | U114: D+002 | Z114: 2024-09-26 | AA114: 1.9336731 | AB114: 2.6853418 | AC114: 0.7200845345 | AD114: 2024-07-02 | AE114: 6564319986 | AF114: 5865727.894 | AG114: 4 | AI114: 0.439342574 | AJ114: -0.2990782688 | AK114: 38 | AL114: 23 | AM114: 37 | AN114: 24 | AO114: 34 | AP114: 27 | AR114: 0.1305316724 | AS114: 0.06548101318 | AT114: -0.421340071 | AU114: -1.544333019 | AV114: -0.5568660933 | AW114: -1.734422943 | AX114: 0.04427212599 | AY114: 0.05118546404 | AZ114: -0.4617362077 | BB114: 0 | BC114: 0 | BD114: 0 | BE114: 1260742.205 | BF114: 133682.7085 | BG114: 1127059.497 | BH114: 1260742.205 | BI114: 265277.3352 | BJ114: 995464.8701 | BL114: -0.2326059425 | BM114: 0.07833252017 | BN114: -0.006954649545
B115: 314269<BraNa> | C115: Spx Falcon Master FIA | D115: 314269 | E115: 2012-09-17 | F115: 15831948000166 | G115: Ações | H115: Livre | I115: Spx Gestão de Recursos Ltda | J115: Intrag | K115: Itau Unibanco S.A. | L115: 30 | M115: IBOVESPA | N115: Renda Variável | O115: Inv. Qualificado | P115: Até 40 % | Q115: Sim | R115: Não se Aplica | S115: D+001 | T115: D+000 | U115: D+002 | Z115: 2024-09-26 | AA115: 6.1553954 | AB115: 6.4449057 | AC115: 0.9550792031 | AD115: 2024-08-23 | AE115: 4851103433 | AF115: 4672901.11 | AG115: 30 | AI115: 0.09672502366 | AJ115: -0.1925445037 | AK115: 97 | AL115: 47 | AM115: 83 | AN115: 61 | AO115: 81 | AP115: 63 | AR115: 0.02999745356 | AS115: 0.01927754117 | AT115: 0.1809852614 | AU115: 0.3544883413 | AV115: 0.2952692452 | AW115: 0.5862933112 | AX115: 0.01052181529 | AY115: 0.01081052413 | AZ115: -0.06381367564 | BB115: 125373.6556 | BC115: 175672.1255 | BD115: -50298.46992 | BE115: 1513331.365 | BF115: 1389349.367 | BG115: 123981.9977 | BH115: 1797944.06 | BI115: 1672898.731 | BJ115: 125045.3285 | BL115: 0.1260952059 | BM115: 0.009222603547 | BN115: -0.02742256755
B116: 206891<BraNa> | C116: Squadra Long Biased FI Cotas de FIA | D116: 206891 | E116: 2008-03-31 | F116: 9285146000103 | G116: Ações | H116: Livre | I116: Squadra Investimentos - Gestão de Recursos Ltda. | J116: BTG Pactual Servicos Financeiros SA Dtvm | K116: Banco BTG Pactual S/A | L116: 427 | M116: Não se Aplica | N116: Renda Variável | O116: Inv. Qualificado | P116: Até 40 % | Q116: Sim | R116: Não se Aplica | S116: D+001 | T116: D+015 | U116: D+017 | V116: 100000 | W116: 10000 | X116: 100000 | Z116: 2024-09-26 | AA116: 1139.615711 | AB116: 1240.401652 | AC116: 0.9187473342 | AD116: 2024-08-20 | AE116: 1022423691 | AF116: 1100623.059 | AG116: 427 | AI116: 0.177196814 | AJ116: -0.2752003081 | AK116: 136 | AL116: 62 | AM116: 115 | AN116: 83 | AO116: 112 | AP116: 86 | AR116: 0.03766710795 | AS116: 0.0401819396 | AT116: -0.2380819667 | AU116: 0.2400355962 | AV116: -0.365829993 | AW116: 0.3726860973 | AX116: 0.01395265818 | AY116: 0.01255838727 | AZ116: -0.1055215825 | BB116: 0 | BC116: 4240.78942 | BD116: -4240.78942 | BE116: 0 | BF116: 97924.72117 | BG116: -97924.72117 | BH116: 0 | BI116: 120088.2049 | BJ116: -120088.2049 | BL116: 0.07115350491 | BM116: -0.03451499294 | BN116: -0.05248206532
B117: 313092<BraNa> | C117: Squadra Long Only Str Fc de FIA | D117: 313092 | E117: 2012-09-11 | F117: 16478741000112 | G117: Ações | H117: Livre | I117: Squadra Investimentos - Gestão de Recursos Ltda. | J117: BTG Pactual Servicos Financeiros SA Dtvm | K117: Banco BTG Pactual S/A | L117: 324 | M117: Não se Aplica | N117: Renda Variável | O117: Não | P117: Até 20 % | Q117: Sim | R117: Não se Aplica | S117: D+001 | T117: D+015 | U117: D+017 | V117: 100000 | W117: 10000 | X117: 100000 | Z117: 2024-09-26 | AA117: 356.5143427 | AB117: 391.3942124 | AC117: 0.9108830212 | AD117: 2024-08-20 | AE117: 1487301358 | AF117: 1628682.194 | AG117: 324 | AI117: 0.1881076106 | AJ117: -0.3376784294 | AK117: 88 | AL117: 56 | AM117: 78 | AN117: 66 | AO117: 78 | AP117: 66 | AR117: 0.05013804283 | AS117: 0.0492434715 | AT117: -0.1800995988 | AU117: 0.4727471885 | AV117: -0.2774455257 | AW117: 0.736710385 | AX117: 0.01511449819 | AY117: 0.01567385642 | AZ117: -0.1216836996 | BB117: 16821.4721 | BC117: 26449.15372 | BD117: -9627.68162 | BE117: 158432.0337 | BF117: 325418.501 | BG117: -166986.4673 | BH117: 197547.9857 | BI117: 365483.0246 | BJ117: -167935.0389 | BL117: 0.068522977 | BM117: -0.05566448049 | BN117: -0.06052268762
B118: 206911<BraNa> | C118: Squadra Master Long Biased FIA | D118: 206911 | E118: 2008-03-31 | F118: 9412648000140 | G118: Ações | H118: Livre | I118: Squadra Investimentos - Gestão de Recursos Ltda. | J118: BTG Pactual Servicos Financeiros SA Dtvm | K118: Banco BTG Pactual S/A | L118: 11 | M118: Não se Aplica | N118: Renda Variável | O118: Inv. Qualificado | P118: Até 40 % | Q118: Sim | R118: Não se Aplica | S118: D+001 | T118: D+000 | U118: D+002 | Z118: 2024-09-26 | AA118: 2002.407791 | AB118: 2177.363044 | AC118: 0.9196481023 | AD118: 2024-08-20 | AE118: 4054636808 | AF118: 4022187.015 | AG118: 11 | AI118: 0.2053016405 | AJ118: -0.2805851415 | AK118: 137 | AL118: 61 | AM118: 119 | AN118: 79 | AO118: 117 | AP118: 81 | AR118: 0.0387234563 | AS118: 0.04068567548 | AT118: -0.04799267324 | AU118: 0.3817569921 | AV118: -0.07451827852 | AW118: 0.5966849269 | AX118: 0.01408343691 | AY118: 0.01291726541 | AZ118: -0.1033918407 | BB118: 71999 | BC118: 38440 | BD118: 33559 | BE118: 570011 | BF118: 503099 | BG118: 66912 | BH118: 804854 | BI118: 572677 | BJ118: 232177 | BL118: 0.0959729189 | BM118: -0.02215842274 | BN118: -0.05178849206
B119: 206903<BraNa> | C119: Squadra Master Long Only FIA | D119: 206903 | E119: 2008-03-31 | F119: 9288254000121 | G119: Ações | H119: Livre | I119: Squadra Investimentos - Gestão de Recursos Ltda. | J119: BTG Pactual Servicos Financeiros SA Dtvm | K119: Banco BTG Pactual S/A | L119: 9 | M119: Não se Aplica | N119: Renda Variável | O119: Não | P119: Até 20 % | Q119: Sim | R119: Não se Aplica | S119: D+001 | T119: D+000 | U119: D+002 | Z119: 2024-09-26 | AA119: 1519.455698 | AB119: 1664.750436 | AC119: 0.9127228116 | AD119: 2024-08-20 | AE119: 2689561500 | AF119: 2857527.129 | AG119: 9 | AI119: 0.2333563275 | AJ119: -0.3421179281 | AK119: 128 | AL119: 70 | AM119: 113 | AN119: 85 | AO119: 120 | AP119: 78 | AR119: 0.0505634215 | AS119: 0.0498641273 | AT119: 0.002207430301 | AU119: 0.681649772 | AV119: 0.003431004207 | AW119: 1.07237526 | AX119: 0.01524319695 | AY119: 0.01580715377 | AZ119: -0.1182216926 | BB119: 38964 | BC119: 46945 | BD119: -7981 | BE119: 197059 | BF119: 448905 | BG119: -251846 | BH119: 289035 | BI119: 519754 | BJ119: -230719 | BL119: 0.09867840197 | BM119: -0.03681273734 | BN119: -0.059204996
B120: 207004<BraNa> | C120: Squadra Private FICFI Acoes | D120: 207004 | E120: 2008-03-31 | F120: 9412843000170 | G120: Ações | H120: Livre | I120: Squadra Investimentos - Gestão de Recursos Ltda. | J120: BTG Pactual Servicos Financeiros SA Dtvm | K120: Banco BTG Pactual S/A | L120: 13 | M120: Não se Aplica | N120: Renda Variável | O120: Inv. Qualificado | P120: Até 40 % | Q120: Sim | R120: Não | S120: D+001 | T120: D+060 | U120: D+062 | V120: 20000 | W120: 10000 | X120: 20000 | Z120: 2024-09-26 | AA120: 1844.630291 | AB120: 2003.92593 | AC120: 0.9205082202 | AD120: 2024-08-20 | AE120: 1310483037 | AF120: 1302905.13 | AG120: 13 | AI120: 0.2012004336 | AJ120: -0.2752128344 | AK120: 138 | AL120: 60 | AM120: 120 | AN120: 78 | AO120: 116 | AP120: 82 | AR120: 0.03833866567 | AS120: 0.04028159119 | AT120: -0.04855941921 | AU120: 0.3809823784 | AV120: -0.07539605174 | AW120: 0.5954498063 | AX120: 0.01394494381 | AY120: 0.01278903502 | AZ120: -0.1022152752 | BB120: 650 | BC120: 0 | BD120: 650 | BE120: 23333.47688 | BF120: 0 | BG120: 23333.47688 | BH120: 23533.47688 | BI120: 0 | BJ120: 23533.47688 | BL120: 0.0961305166 | BM120: -0.0211934068 | BN120: -0.05120982586
B121: 725188<BraNa> | C121: Stavanger FIA IE | D121: 725188 | E121: 2023-08-21 | F121: 51861489000127 | G121: Ações | H121: Invest. no Exterior | I121: Vgr Gestão de Recursos Ltda. | J121: BTG Pactual Servicos Financeiros SA Dtvm | K121: Banco BTG Pactual S/A | L121: 1 | M121: Não se Aplica | N121: Renda Variável | O121: Inv. Profissional | P121: Até 100% | Q121: Sim | R121: Não | S121: D+000 | T121: D+000 | U121: D+005 | V121: 0 | W121: 0 | X121: 0 | Z121: 2024-09-26 | AA121: 1.08593602 | AB121: 1.15124338 | AC121: 0.9432723253 | AD121: 2024-04-09 | AE121: 1150997820 | AF121: 929791.665 | AG121: 1 | AI121: 0.2154149974 | AJ121: -0.04618908035 | AK121: 10 | AL121: 3 | AM121: 9 | AN121: 4 | AO121: 8 | AP121: 5 | AR121: 0.07416293124 | AS121: 0.02541742647 | AT121: 2.102305849 | AU121: -0.4664199976 | AV121: 5.228655459 | AW121: -0.7091562689 | AX121: 0.01058938348 | AY121: 0.02069730763 | AZ121: -0.07913721076 | BB121: 0 | BC121: 0 | BD121: 0 | BE121: 561529.563 | BF121: 0 | BG121: 561529.563 | BH121: 763749.563 | BI121: 0 | BJ121: 763749.563 | BL121: 0.5486877207 | BM121: 0.01505623663 | BN121: -0.04076275055
B122: 457744<BraNa> | C122: Tarpon Gt Master FIA | D122: 457744 | E122: 2018-01-04 | F122: 27389566000103 | G122: Ações | H122: Livre | I122: Tpe Gestora de Recursos Ltda. | J122: Daycoval | K122: .Banco Daycoval S/A | L122: 7 | M122: Não se Aplica | N122: Renda Variável | O122: Não | P122: Até 20 % | Q122: Não | R122: Não se Aplica | S122: D+001 | T122: D+000 | U122: D+002 | V122: 1000 | W122: 1000 | X122: 1000 | Z122: 2024-09-26 | AA122: 6.34984005 | AB122: 6.51899435 | AC122: 0.9740520867 | AD122: 2024-09-16 | AE122: 2139203180 | AF122: 2013828.856 | AG122: 7 | AI122: 0.2434953764 | AJ122: -0.289324729 | AK122: 51 | AL122: 29 | AM122: 47 | AN122: 33 | AO122: 44 | AP122: 36 | AR122: 0.05328362797 | AS122: 0.01596159643 | AT122: 0.4956657739 | AU122: 1.66977231 | AV122: 0.7962631448 | AW122: 2.903580537 | AX122: 0.01806222793 | AY122: 0.01762826599 | AZ122: -0.1268251211 | BB122: 14449 | BC122: 8977 | BD122: 5472 | BE122: 171902.7833 | BF122: 271520.5 | BG122: -99617.7167 | BH122: 256396.6449 | BI122: 313315 | BJ122: -56918.35514 | BL122: 0.1877874814 | BM122: 0.05274068586 | BN122: 0.00351345231
B123: 668605<BraNa> | C123: Tb Master FIA Bdr Nivel I | D123: 668605 | E123: 2022-08-31 | F123: 47512697000143 | G123: Ações | H123: Livre | I123: Tb Capital Gestão de Recursos Ltda. | J123: BTG Pactual Servicos Financeiros SA Dtvm | K123: Banco BTG Pactual S/A | L123: 12 | M123: Não se Aplica | N123: Renda Variável | O123: Inv. Qualificado | P123: Até 40 % | Q123: S | R123: N | S123: D+001 | T123: D+000 | U123: D+002 | V123: 0 | W123: 0 | X123: 0 | Z123: 2024-09-26 | AA123: 169.9635969 | AB123: 171.7651023 | AC123: 0.9895118078 | AD123: 2024-09-19 | AE123: 1097518153 | AF123: 893834.8854 | AG123: 12 | AI123: 0.1075281681 | AJ123: -0.05950402309 | AK123: 16 | AL123: 9 | AM123: 14 | AN123: 11 | AO123: 15 | AP123: 10 | AR123: 0.04131280535 | AS123: 0.01287558315 | AT123: 1.189723184 | AU123: 0.7410036662 | AV123: 1.960435993 | AW123: 1.186360857 | AX123: 0.01841536261 | AY123: 0.01647166656 | AZ123: -0.09013233496 | BB123: 29243.1404 | BC123: 3493.60203 | BD123: 25749.53837 | BE123: 409941.83 | BF123: 253027.5577 | BG123: 156914.2723 | BH123: 526615.3008 | BI123: 267803.7916 | BJ123: 258811.5092 | BL123: 0.3052265495 | BM123: 0.1369575942 | BN123: 0.003434344311
B124: 234540<BraNa> | C124: Tempo Capital Princip FIF Acoes Resp Lim | D124: 234540 | E124: 2009-09-18 | F124: 11046362000130 | G124: Ações | H124: Livre | I124: Tempo Capital Gestao de Recursos Ltda | J124: BNY Mellon Servicos Financeiros Dtvm SA | K124: BNY Mellon Banco S.A. | L124: 8 | M124: Não se Aplica | N124: Renda Variável | O124: Inv. Qualificado | P124: Até 40 % | Q124: N | R124: N | S124: D+001 | T124: D+000 | U124: D+002 | Z124: 2024-09-26 | AA124: 778.8945209 | AB124: 801.8629428 | AC124: 0.9713561749 | AD124: 2024-09-05 | AE124: 1993361840 | AF124: 1872730.801 | AG124: 8 | AI124: 0.1621329031 | AJ124: -0.303475642 | AK124: 100 | AL124: 80 | AM124: 93 | AN124: 87 | AO124: 110 | AP124: 70 | AR124: 0.03830595896 | AS124: 0.02755679552 | AT124: 1.159725539 | AU124: 1.763693774 | AV124: 1.937675441 | AW124: 2.963716535 | AX124: 0.01267336382 | AY124: 0.01161082175 | AZ124: -0.05501581027 | BB124: 7586 | BC124: 8000.89406 | BD124: -414.89406 | BE124: 150981 | BF124: 206142.4971 | BG124: -55161.49711 | BH124: 183106.6 | BI124: 249802.5022 | BJ124: -66695.90218 | BL124: 0.2480812705 | BM124: 0.05624282599 | BN124: -0.009625375235
B125: 448321<BraNa> | C125: Tempranillo FIA Ie | D125: 448321 | E125: 2017-08-30 | F125: 28247030000116 | G125: Ações | H125: Invest. no Exterior | I125: BTG Pactual Wm Gestão de Recursos Ltda | J125: BTG Pactual Servicos Financeiros SA Dtvm | K125: Banco BTG Pactual S/A | L125: 1 | M125: Não se Aplica | N125: Renda Variável | O125: Inv. Profissional | P125: Até 100% | Q125: Sim | R125: Não se Aplica | S125: D+000 | T125: D+000 | U125: D+005 | Z125: 2024-09-26 | AA125: 26.2043304 | AB125: 30.0738335 | AC125: 0.8713332273 | AD125: 2024-01-15 | AE125: 4971241498 | AF125: 5156348.416 | AG125: 1 | AI125: 0.4037092959 | AJ125: -0.4044512752 | AK125: 49 | AL125: 36 | AM125: 45 | AN125: 40 | AO125: 51 | AP125: 34 | AR125: 0.06174735475 | AS125: 0.05493537198 | AT125: -0.15768874 | AU125: -0.2797152253 | AV125: -0.2625471024 | AW125: -0.4197746608 | AX125: 0.0185929081 | AY125: 0.02174844003 | AZ125: -0.1685862562 | BB125: 0 | BC125: 0 | BD125: 0 | BE125: 0 | BF125: 0 | BG125: 0 | BH125: 0 | BI125: 0 | BJ125: 0 | BL125: 0.05095545241 | BM125: -0.1123265726 | BN125: -0.05949898214
B126: 148695<BraNa> | C126: Tnad FIC FIA | D126: 148695 | E126: 2005-08-15 | F126: 7377703000182 | G126: Ações | H126: Livre | I126: Dynamo Administração de Recursos Ltda | J126: Dynamo Administracao de Recursos Ltda | K126: Banco Bradesco S.A. | L126: 6 | M126: OUTROS | N126: Indefinido | O126: Inv. Qualificado | P126: Até 40 % | Q126: Sim | R126: Não | S126: D+001 | T126: D+030 | U126: D+032 | V126: 500000 | W126: 100000 | X126: 100000 | Z126: 2024-09-26 | AA126: 176.093023 | AB126: 182.2472338 | AC126: 0.966231527 | AD126: 2024-09-13 | AE126: 1002652164 | AF126: 952840.014 | AG126: 6 | AI126: 0.1540653215 | AJ126: -0.3157643951 | AK126: 153 | AL126: 76 | AM126: 134 | AN126: 95 | AO126: 129 | AP126: 100 | AR126: 0.0497973387 | AS126: 0.02981261141 | AT126: 0.3318542518 | AU126: 2.284219935 | AV126: 0.557056207 | AW126: 4.186562708 | AX126: 0.01502822333 | AY126: 0.0162584511 | AZ126: -0.1237671625 | BB126: 0 | BC126: 0 | BD126: 0 | BE126: 0 | BF126: 16212.13014 | BG126: -16212.13014 | BH126: 0 | BI126: 16212.13014 | BJ126: -16212.13014 | BL126: 0.1549018629 | BM126: 0.03573263173 | BN126: -0.0129044753
B127: 314501<BraNa> | C127: Veritas FIA Ie | D127: 314501 | E127: 2012-09-27 | F127: 10918523000175 | G127: Ações | H127: Fechados de Ações | I127: BTG Pactual Wm Gestão de Recursos Ltda | J127: BTG Pactual Servicos Financeiros SA Dtvm | K127: Banco BTG Pactual S/A | L127: 2 | M127: Não se Aplica | N127: Renda Variável | O127: Inv. Profissional | P127: Até 100% | Q127: Sim | R127: Não se Aplica | S127: D+000 | T127: D+000 | U127: D+005 | Z127: 2024-09-26 | AA127: 5.7212861 | AB127: 5.9911651 | AC127: 0.9549538369 | AD127: 2024-03-20 | AE127: 3248864299 | AF127: 3137036.408 | AG127: 2 | AI127: 0.3687679603 | AJ127: -0.4135464998 | AK127: 85 | AL127: 59 | AM127: 78 | AN127: 66 | AO127: 67 | AP127: 77 | AR127: 0.04240997991 | AS127: 0.01127683412 | AT127: -0.1098738123 | AU127: -0.195749003 | AV127: -0.2188065814 | AW127: -0.338378326 | AX127: 0.01109951016 | AY127: 0.01671988542 | AZ127: -0.06620346057 | BB127: 0 | BC127: 0 | BD127: 0 | BE127: 4900 | BF127: 0 | BG127: 4900 | BH127: 4900 | BI127: 0 | BJ127: 4900 | BL127: 0.07764626626 | BM127: 0.06020788301 | BN127: -0.01525720777
B128: 367222<BraNa> | C128: Western Asset FIA Bdr Nivel I | D128: 367222 | E128: 2014-05-06 | F128: 19831126000136 | G128: Ações | H128: Livre | I128: Western Asset Management Company Dtvm Limitada | J128: BNP Paribas | K128: Banco BNP Paribas Brasil S/A | L128: 62114 | M128: Não se Aplica | N128: Renda Variável | O128: Não | P128: Até 20 % | Q128: Não | R128: Não se Aplica | S128: D+001 | T128: D+001 | U128: D+004 | V128: 500 | W128: 100 | X128: 500 | Z128: 2024-09-26 | AA128: 8824.23077 | AB128: 8888.34574 | AC128: 0.9927866251 | AD128: 2024-09-12 | AE128: 1760103854 | AF128: 1563547.704 | AG128: 62114 | AI128: 0.1980855876 | AJ128: -0.1639248284 | AK128: 83 | AL128: 41 | AM128: 76 | AN128: 48 | AO128: 64 | AP128: 60 | AR128: 0.03893814356 | AS128: 0.01169076715 | AT128: 2.531344038 | AU128: 0.6644795785 | AV128: 4.503080607 | AW128: 1.087557438 | AX128: 0.01959229352 | AY128: 0.01682129815 | AZ128: -0.07631352991 | BB128: 35491.61513 | BC128: 110228.9981 | BD128: -74737.38298 | BE128: 356466.6087 | BF128: 510698.1633 | BG128: -154231.5545 | BH128: 381355.2147 | BI128: 676616.5302 | BJ128: -295261.3155 | BL128: 0.548428573 | BM128: 0.381218949 | BN128: -0.005067699093
B129: 584894<BraNa> | C129: Whg Global Long Biased Brl Fc FIA Ie | D129: 584894 | E129: 2021-04-19 | F129: 41409761000189 | G129: Ações | H129: Invest. no Exterior | I129: Wealth High Governance Asset Management Ltda. | J129: Intrag | K129: Itau Unibanco S.A. | L129: 1112 | M129: CDI | N129: Renda Variável | O129: Inv. Qualificado | P129: > 67% | Q129: S | R129: Não | S129: D+001 | T129: D+025 | U129: D+030 | V129: 5000 | W129: 5000 | X129: 5000 | Z129: 2024-09-26 | AA129: 1.6271952 | AB129: 1.6923076 | AC129: 0.9615244888 | AD129: 2024-05-29 | AE129: 1275119796 | AF129: 1231200.821 | AG129: 1112 | AI129: 0.1027079138 | AJ129: -0.06812088315 | AK129: 27 | AL129: 14 | AM129: 25 | AN129: 16 | AO129: 22 | AP129: 19 | AR129: 0.04554019984 | AS129: 0.01581973484 | AT129: 0.06002374274 | AU129: 0.04638290167 | AV129: 0.09037806172 | AW129: 0.06893543302 | AX129: 0.0206332162 | AY129: 0.01798058324 | AZ129: -0.1141733926 | BB129: 10971.4347 | BC129: 16716.90477 | BD129: -5745.47007 | BE129: 214494.4573 | BF129: 178024.6978 | BG129: 36469.75943 | BH129: 255921.2314 | BI129: 246672.1559 | BJ129: 9249.07555 | BL129: 0.1059308435 | BM129: 0.02568144479 | BN129: -0.005042064489
B130: 585602<BraNa> | C130: Whg Global Long Biased Brl Master FIA Ie | D130: 585602 | E130: 2021-04-19 | F130: 40921195000127 | G130: Ações | H130: Invest. no Exterior | I130: Wealth High Governance Asset Management Ltda. | J130: Intrag | K130: Itau Unibanco S.A. | L130: 3 | M130: CDI | N130: Renda Variável | O130: Inv. Qualificado | P130: > 67% | Q130: S | R130: N | S130: D+001 | T130: D+001 | U130: D+006 | Z130: 2024-09-26 | AA130: 1.8220564 | AB130: 1.8900066 | AC130: 0.9640476388 | AD130: 2024-05-29 | AE130: 1325333772 | AF130: 1255274.515 | AG130: 3 | AI130: 0.1080738689 | AJ130: -0.06664443836 | AK130: 27 | AL130: 14 | AM130: 25 | AN130: 16 | AO130: 22 | AP130: 19 | AR130: 0.04600288972 | AS130: 0.01592767035 | AT130: 0.1871987273 | AU130: 0.1558858005 | AV130: 0.2834823389 | AW130: 0.2328501679 | AX130: 0.0207351493 | AY130: 0.01848094981 | AZ130: -0.1148203398 | BB130: 10981.4347 | BC130: 13486.27741 | BD130: -2504.84271 | BE130: 268558.4686 | BF130: 200917.3258 | BG130: 67641.14274 | BH130: 311985.2427 | BI130: 330188.276 | BJ130: -18203.03328 | BL130: 0.1301680015 | BM130: 0.04180469294 | BN130: -0.003673879855
B131: 266345<BraNa> | C131: Wpa III Master FIA Ie | D131: 266345 | E131: 2010-12-21 | F131: 12565093000180 | G131: Ações | H131: Invest. no Exterior | I131: Milestones Administradora de Recursos Ltda. | J131: BTG Pactual Servicos Financeiros SA Dtvm | K131: Banco BTG Pactual S/A | L131: 1 | M131: IBOVESPA | N131: Renda Variável | O131: Inv. Profissional | P131: Até 100% | Q131: Sim | R131: Não se Aplica | S131: D+000 | T131: D+001 | U131: D+003 | Z131: 2024-09-26 | AA131: 3.85727773 | AB131: 4.00154007 | AC131: 0.9639482955 | AD131: 2024-08-20 | AE131: 1100589613 | AF131: 973426.8357 | AG131: 1 | AI131: 0.1227055478 | AJ131: -0.2397484886 | AK131: 106 | AL131: 59 | AM131: 90 | AN131: 75 | AO131: 88 | AP131: 77 | AR131: 0.03929638227 | AS131: 0.02477470819 | AT131: 0.1553168048 | AU131: 0.8677247044 | AV131: 0.2556294711 | AW131: 1.424369713 | AX131: 0.01053189922 | AY131: 0.01051469397 | AZ131: -0.0547686476 | BB131: 0 | BC131: 0 | BD131: 0 | BE131: 190000 | BF131: 0 | BG131: 190000 | BH131: 190000 | BI131: 0 | BJ131: 190000 | BL131: 0.1229719036 | BM131: 0.02222092361 | BN131: -0.02327953602
AC137: =IFERROR(AA137/AB137,"") -> 
AC201: =IFERROR(AA201/AB201,"") -> 
AC265: =IFERROR(AA265/AB265,"") -> 
AC329: =IFERROR(AA329/AB329,"") -> 
AC393: =IFERROR(AA393/AB393,"") -> 
AC457: =IFERROR(AA457/AB457,"") -> 
AC521: =IFERROR(AA521/AB521,"") -> 
AC585: =IFERROR(AA585/AB585,"") -> 
AC649: =IFERROR(AA649/AB649,"") -> 
AC713: =IFERROR(AA713/AB713,"") -> 
AC777: =IFERROR(AA777/AB777,"") -> 
AC841: =IFERROR(AA841/AB841,"") -> 
AC905: =IFERROR(AA905/AB905,"") -> 
AC969: =IFERROR(AA969/AB969,"") -> 
... 19 more rows

Sheet Base Gráfico
D1: Planilha Auxiliar Não Modificar
B3: Inicio: | C3: ='Lâmina Comparativa'!O31 -> 12M | E3: Gráfico VBA: | F3: =AtualizarLimitesGrafico("Lâmina Comparativa","Comparativo",F4,F5) -> Comparativo, Min:86, Max:126
B4: Final: | C4: ='Lâmina Comparativa'!$D$4 -> 2024-09-25 | E4: Mínimo: | F4: =ROUNDDOWN(MIN(C9:J681),0) -> 86
B5: Cotas Diárias | E5: Máximo: | F5: =ROUNDUP(MAX(C9:J681),0) -> 126
C7: =IFERROR(LEFT(_xll.ECONOMATICA(C8,"name"),12),"") -> Absolute Pac | D7: =IFERROR(LEFT(_xll.ECONOMATICA(D8,"name"),12),"") -> Real Investo | E7: =IFERROR(LEFT(_xll.ECONOMATICA(E8,"name"),12),"") -> Nucleo Maste | F7: =IFERROR(LEFT(_xll.ECONOMATICA(F8,"name"),12),"") -> Absolute Pac | G7: =IFERROR(LEFT(_xll.ECONOMATICA(G8,"name"),12),"") -> Alaska Insti | H7: =IFERROR(LEFT(_xll.ECONOMATICA(H8,"name"),12),"") -> Atena FIA Ie | I7: CDI | J7: Ibovespa
B8: Data | C8: =IFERROR('Lâmina Comparativa'!H8,"") -> 488542 | D8: =IFERROR('Lâmina Comparativa'!H9,"") -> 298761 | E8: =IFERROR('Lâmina Comparativa'!H10,"") -> 296880 | F8: =IFERROR('Lâmina Comparativa'!H11,"") -> 485675 | G8: =IFERROR('Lâmina Comparativa'!H12,"") -> 435325 | H8: =IFERROR('Lâmina Comparativa'!H13,"") -> 226106 | I8: CDI acumulado | J8: Ibov
B9: =IFERROR(_xll.ECONOMATICA(C8,"close",,$C$4,$C$3,,,,"true","false",,{"def.defdef=7"}),"") -> 2023-09-25 | C9: 100 | D9: =IFERROR(_xll.ECONOMATICA(D8,"close",,$C$4,$C$3,,,,"false","false",,{"def.defdef=7"}),"") -> 100 | E9: =IFERROR(_xll.ECONOMATICA(E8,"close",,$C$4,$C$3,,,,"false","false",,{"def.defdef=7"}),"") -> 100 | F9: =IFERROR(_xll.ECONOMATICA(F8,"close",,$C$4,$C$3,,,,"false","false",,{"def.defdef=7"}),"") -> 100 | G9: =IFERROR(_xll.ECONOMATICA(G8,"close",,$C$4,$C$3,,,,"false","false",,{"def.defdef=7"}),"") -> 100 | H9: =IFERROR(_xll.ECONOMATICA(H8,"close",,$C$4,$C$3,,,,"false","false",,{"def.defdef=7"}),"") -> 100 | I9: =IFERROR(_xll.ECONOMATICA(I8,"close",,$C$4,$C$3,,,,"false","false",,{"def.defdef=7"}),"") -> 100 | J9: =IFERROR(_xll.ECONOMATICA(J8,"close",,$C$4,$C$3,,,,"false","false",,{"def.defdef=7"}),"") -> 100
B10: 2023-09-26 | C10: 98.569893 | D10: 98.54417348 | E10: 97.97463206 | F10: 98.56187086 | G10: 98.05089407 | H10: 100.1539602 | I10: 100.0472792 | J10: 98.50663289
B11: 2023-09-27 | C11: 98.18571676 | D11: 98.17191638 | E11: 97.66078854 | F11: 98.17003566 | G11: 97.90852696 | H11: 101.0365293 | I11: 100.0945808 | J11: 98.62189746
B12: 2023-09-28 | C12: 99.46201953 | D12: 99.52926405 | E12: 98.96395037 | F12: 99.43904512 | G12: 99.13978503 | H12: 100.6345977 | I12: 100.1419047 | J12: 99.83277925
B13: 2023-09-29 | C13: 100.1365801 | D13: 99.78744276 | E13: 100.1460079 | F13: 100.1058262 | G13: 100.0441722 | H13: 100.6570882 | I13: 100.1892511 | J13: 100.552566
B14: 2023-10-02 | C14: 98.82957934 | D14: 98.90983451 | E14: 98.08651711 | F14: 98.79134899 | G14: 98.1656417 | H14: 100.5059834 | I14: 100.2366198 | J14: 99.25145316
B15: 2023-10-03 | C15: 96.72404477 | D15: 97.50577867 | E15: 95.834114 | F15: 96.67786681 | G15: 96.62720407 | H15: 101.6666979 | I15: 100.2840108 | J15: 97.83862115
B16: 2023-10-04 | C16: 97.15603168 | D16: 97.96532242 | E16: 96.68319949 | F16: 97.1025535 | G16: 96.86026955 | H16: 102.1722524 | I16: 100.3314244 | J16: 98.00114919
B17: 2023-10-05 | C17: 96.6053382 | D17: 97.26580171 | E17: 94.51852365 | F17: 96.545186 | G17: 96.3275525 | H17: 102.3116355 | I17: 100.3788603 | J17: 97.72220066
B18: 2023-10-06 | C18: 96.6212222 | D18: 97.53179197 | E18: 93.90383476 | F18: 96.55370165 | G18: 96.45673537 | H18: 101.9339284 | I18: 100.4263186 | J18: 98.4861023
B19: 2023-10-09 | C19: 98.02120773 | D19: 97.94128529 | E19: 94.73343978 | F19: 97.94266638 | G19: 97.7319199 | H19: 101.7963295 | I19: 100.4737994 | J19: 99.33703465
B20: 2023-10-10 | C20: 100.1273997 | D20: 99.42962728 | E20: 96.76694158 | F20: 100.0340029 | G20: 99.5613278 | H20: 102.0668241 | I20: 100.5213026 | J20: 100.7007485
B21: 2023-10-11 | C21: 99.86521678 | D21: 99.77637549 | E21: 94.964047 | F21: 99.76522248 | G21: 99.65204193 | H21: 101.807559 | I21: 100.5688283 | J21: 100.9714331
B22: 2023-10-12
B23: 2023-10-13 | C23: 98.3787393 | D23: 98.57874059 | E23: 92.70396033 | F23: 98.27654143 | G23: 98.3065341 | H23: 100.9533114 | I23: 100.6163765 | J23: 99.85289577
B24: 2023-10-16 | C24: 99.11619716 | D24: 99.13645795 | E24: 93.18212078 | F24: 99.00391259 | G24: 98.92653687 | H24: 99.68176067 | I24: 100.6639472 | J24: 100.5255485
B25: 2023-10-17 | C25: 97.94313133 | D25: 98.14103479 | E25: 92.71450033 | F25: 97.82764683 | G25: 98.21423811 | H25: 99.31735206 | I25: 100.7115402 | J25: 99.98604265
B26: 2023-10-18 | C26: 95.97697058 | D26: 96.54412303 | E26: 90.42544744 | F26: 95.85792912 | G26: 96.77187149 | H26: 98.15051178 | I26: 100.7591559 | J26: 98.39122167
B27: 2023-10-19 | C27: 96.36798725 | D27: 96.76285515 | E27: 90.25745513 | F27: 96.24109948 | G27: 96.36090699 | H27: 96.09363788 | I27: 100.806794 | J27: 98.34348375
B28: 2023-10-20 | C28: 96.10070518 | D28: 96.62101308 | E28: 89.87376276 | F28: 95.96688056 | G28: 95.64339314 | H28: 95.8284894 | I28: 100.8544546 | J28: 97.61109397
B29: 2023-10-23 | C29: 97.11169176 | D29: 97.41609454 | E29: 91.60485931 | F29: 96.96895664 | G29: 95.96938798 | H29: 96.19720512 | I29: 100.9021378 | J29: 97.29126542
B30: 2023-10-24 | C30: 97.3212344 | D30: 98.47010305 | E30: 93.12899095 | F30: 97.17040749 | G30: 96.76521949 | H30: 96.62436484 | I30: 100.9498435 | J30: 98.13438234
B31: 2023-10-25 | C31: 96.38839333 | D31: 97.57475718 | E31: 91.60201237 | F31: 96.23201131 | G31: 96.05103637 | H31: 95.85527545 | I31: 100.9975719 | J31: 97.33047193
B32: 2023-10-26 | C32: 97.73147335 | D32: 99.05405847 | E32: 92.93826343 | F32: 97.56477601 | G32: 97.70898928 | H32: 95.98649595 | I32: 101.0453227 | J32: 99.00991688
B33: 2023-10-27 | C33: 96.58695185 | D33: 97.88048156 | E33: 91.52826849 | F33: 96.41553235 | G33: 96.46438941 | H33: 95.11584078 | I33: 101.0930961 | J33: 97.73709827
B34: 2023-10-30 | C34: 95.63513959 | D34: 96.56660066 | E34: 89.85620831 | F34: 95.45762751 | G34: 95.25790851 | H34: 95.22960089 | I34: 101.1408922 | J34: 97.07302013
B35: 2023-10-31 | C35: 96.33638136 | D35: 96.97843645 | E35: 90.36389377 | F35: 96.15064665 | G35: 95.55329033 | H35: 95.0569647 | I35: 101.1887109 | J35: 97.60107884
B36: 2023-11-01 | C36: 97.74229161 | D36: 98.50123663 | E36: 92.00675758 | F36: 97.54495218 | G36: 96.96294529 | H36: 93.98362846 | I36: 101.2365521 | J36: 99.24808891
B37: 2023-11-02
B38: 2023-11-03 | C38: 100.357749 | D38: 101.4258469 | E38: 95.58742521 | F38: 100.1380682 | G38: 100.340241 | H38: 94.63744792 | I38: 101.2826281 | J38: 101.9282877
B39: 2023-11-06 | C39: 99.65976543 | D39: 100.6544921 | E39: 94.48775274 | F39: 99.43714811 | G39: 99.46613594 | H39: 94.08886066 | I39: 101.3287249 | J39: 102.1623019
B40: 2023-11-07 | C40: 100.5419551 | D40: 101.5040953 | E40: 96.00415348 | F40: 100.3046352 | G40: 101.4097936 | H40: 94.54820567 | I40: 101.3748428 | J40: 102.8841589
B41: 2023-11-08 | C41: 99.79172754 | D41: 101.870011 | E41: 95.24356905 | F41: 99.553309 | G41: 101.594124 | H41: 95.0262633 | I41: 101.4209817 | J41: 102.8053232
B42: 2023-11-09 | C42: 99.04724813 | D42: 101.7353545 | E42: 94.76081513 | F42: 98.80710131 | G42: 101.6318869 | H42: 95.10572427 | I42: 101.4671415 | J42: 102.6823726
B43: 2023-11-10 | C43: 100.0809125 | D43: 103.2210814 | E43: 95.7763882 | F43: 99.82350117 | G43: 103.9335641 | H43: 96.0215496 | I43: 101.5133224 | J43: 104.0056464
B44: 2023-11-13 | C44: 100.1148131 | D44: 103.1818488 | E44: 96.65480672 | F44: 99.84976423 | G44: 103.6909067 | H44: 95.81458385 | I44: 101.5595244 | J44: 103.8693768
B45: 2023-11-14 | C45: 102.7456753 | D45: 104.7503354 | E45: 100.2492631 | F45: 102.3304022 | G45: 106.0489478 | H45: 96.41986658 | I45: 101.6057473 | J45: 106.2464303
B46: 2023-11-15
B47: 2023-11-16 | C47: 103.6344932 | D47: 106.0458572 | E47: 103.1877106 | F47: 103.1054399 | G47: 108.8924992 | H47: 97.4364377 | I47: 101.6519913 | J47: 107.5174978
B48: 2023-11-17 | C48: 103.5872187 | D48: 105.6933492 | E48: 104.1755517 | F48: 103.061814 | G48: 108.5926743 | H48: 97.88604033 | I48: 101.6982564 | J48: 107.6330643
B49: 2023-11-20 | C49: 104.3190208 | D49: 105.9973297 | E49: 104.3208956 | F49: 103.6967969 | G49: 109.4624057 | H49: 98.94578447 | I49: 101.7445424 | J49: 108.6542883
B50: 2023-11-21 | C50: 103.6538275 | D50: 104.72028 | E50: 103.6562354 | F50: 103.1152897 | G50: 108.5777664 | H50: 98.52822576 | I50: 101.7908496 | J50: 108.3687321
B51: 2023-11-22 | C51: 103.9184624 | D51: 104.8582113 | E51: 104.0531069 | F51: 103.3438951 | G51: 108.5983243 | H51: 98.77412035 | I51: 101.8371779 | J51: 108.7217805
B52: 2023-11-23 | C52: 104.6509458 | D52: 105.5935148 | E52: 104.2460685 | F52: 103.9773886 | G52: 109.4366831 | H52: 99.32530845 | I52: 101.8835272 | J52: 109.1879886
B53: 2023-11-24 | C53: 104.3496779 | D53: 104.9984513 | E53: 104.1442625 | F53: 103.7143052 | G53: 107.9472263 | H53: 98.63115312 | I53: 101.9298976 | J53: 108.2749125
B54: 2023-11-27 | C54: 104.5489713 | D54: 105.1365093 | E54: 104.1498783 | F54: 103.8850026 | G54: 108.6604452 | H54: 99.12264692 | I54: 101.9762892 | J54: 108.4596705
B55: 2023-11-28 | C55: 104.995627 | D55: 105.903941 | E55: 105.4694001 | F55: 104.2689816 | G55: 109.8026656 | H55: 99.22127197 | I55: 102.0227018 | J55: 109.1557004
B56: 2023-11-29 | C56: 105.2637105 | D56: 106.096459 | E56: 104.9746317 | F56: 104.4893701 | G56: 109.4745185 | H56: 98.86093641 | I56: 102.0691357 | J56: 108.8342156
B57: 2023-11-30 | C57: 106.3439029 | D57: 106.8039615 | E57: 106.2125119 | F57: 105.3623769 | G57: 111.0442404 | H57: 99.91255254 | I57: 102.1155906 | J57: 109.8395932
B58: 2023-12-01 | C58: 107.7399095 | D58: 107.8775376 | E58: 107.5037032 | F58: 106.4785774 | G58: 112.2590213 | H58: 100.0311682 | I58: 102.1620666 | J58: 110.5760977
B59: 2023-12-04 | C59: 106.4270698 | D59: 107.0175263 | E59: 106.3834342 | F59: 105.4304144 | G59: 110.3542389 | H59: 100.8037964 | I59: 102.2085638 | J59: 109.3838401
B60: 2023-12-05 | C60: 106.749832 | D60: 107.7147301 | E60: 105.3591793 | F60: 105.6901417 | G60: 110.7867632 | H60: 101.1295726 | I60: 102.2550821 | J60: 109.4704998
B61: 2023-12-06 | C61: 106.5135543 | D61: 106.8911622 | E61: 104.7493038 | F61: 105.5017323 | G61: 109.7947374 | H61: 101.2154979 | I61: 102.3016216 | J61: 108.3658164
B62: 2023-12-07 | C62: 106.967912 | D62: 107.2482719 | E62: 105.3007455 | F62: 105.8662441 | G62: 110.7149936 | H62: 101.1383006 | I62: 102.3481823 | J62: 108.699585
B63: 2023-12-08 | C63: 107.2222651 | D63: 107.6836839 | E63: 106.0804865 | F63: 106.0701954 | G63: 111.1933256 | H63: 100.7036635 | I63: 102.3947642 | J63: 109.6346755
B64: 2023-12-11 | C64: 107.2443134 | D64: 107.4079322 | E64: 105.2356543 | F64: 106.088863 | G64: 110.7383843 | H64: 100.7367999 | I64: 102.4413672 | J64: 109.481852
B65: 2023-12-12 | C65: 107.1549998 | D65: 107.3198948 | E65: 105.118202 | F65: 106.0153135 | G65: 110.6579364 | H65: 101.0906721 | I65: 102.4879915 | J65: 109.0389952
B66: 2023-12-13 | C66: 109.0022691 | D66: 109.7376523 | E66: 108.4892955 | F66: 107.4875638 | G66: 113.7485096 | H66: 102.3946937 | I66: 102.5346371 | J66: 111.6804102
B67: 2023-12-14 | C67: 109.2909596 | D67: 110.7875373 | E67: 109.0862322 | F67: 107.718319 | G67: 114.6905872 | H67: 100.4640586 | I67: 102.5794849 | J67: 112.8682598
B68: 2023-12-15 | C68: 108.9344347 | D68: 110.4925594 | E68: 107.6265214 | F68: 107.4350358 | G68: 114.0218526 | H68: 105.7196234 | I68: 102.6243524 | J68: 112.3118723
B69: 2023-12-18 | C69: 109.5328672 | D69: 110.8678682 | E69: 109.5727092 | F69: 107.9137204 | G69: 114.4895874 | H69: 105.6146976 | I69: 102.6692395 | J69: 113.0767833
B70: 2023-12-19 | C70: 110.4176234 | D70: 111.7961373 | E70: 110.0895806 | F70: 108.6203927 | G70: 114.8125163 | H70: 105.4432895 | I70: 102.7141463 | J70: 113.7384892
B71: 2023-12-20 | C71: 109.6514945 | D71: 111.3280781 | E71: 109.8207824 | F71: 108.0121574 | G71: 114.3073084 | H71: 105.6688012 | I71: 102.7590727 | J71: 112.8355489
B72: 2023-12-21 | C72: 110.5116386 | D72: 112.1495225 | E72: 111.2592256 | F72: 108.6991774 | G72: 115.3487405 | H72: 105.8213477 | I72: 102.8040187 | J72: 114.0241145
B73: 2023-12-22 | C73: 110.7568263 | D73: 112.7176647 | E73: 111.1462808 | F73: 108.8964042 | G73: 115.7672645 | H73: 105.1166578 | I73: 102.8489843 | J73: 114.5166069
B74: 2023-12-25
B75: 2023-12-26 | C75: 111.1082036 | D75: 113.2053951 | E75: 111.016284 | F75: 109.1782768 | G75: 116.2620485 | H75: 104.8289572 | I75: 102.8939698 | J75: 115.1894494
B76: 2023-12-27 | C76: 111.7075921 | D76: 113.9283404 | E76: 111.5431431 | F76: 109.6576619 | G76: 117.2231967 | H76: 105.2851619 | I76: 102.9389748 | J76: 115.7594751
B77: 2023-12-28 | C77: 111.584546 | D77: 114.8450828 | E77: 111.4654344 | F77: 109.5615565 | G77: 116.8032168 | H77: 105.2187996 | I77: 102.9839995 | J77: 115.75216
B78: 2023-12-29 | C78: 111.5196183 | D78: 114.8367344 | E78: 111.1607898 | F78: 109.5234746 | G78: 116.7961552 | H78: 105.205034 | I78: 103.029044
B79: 2024-01-01
B80: 2024-01-02 | C80: 109.4889131 | D80: 112.6015038 | E80: 108.5330332 | F80: 107.4941683 | G80: 115.3199961 | H80: 105.3198188 | I80: 103.0741081 | J80: 114.4680409
B81: 2024-01-03 | C81: 109.7691305 | D81: 112.4346509 | E81: 107.8147968 | F81: 107.7648132 | G81: 115.725068 | H81: 105.4707069 | I81: 103.1191919 | J81: 114.5864972
B82: 2024-01-04 | C82: 108.7953704 | D82: 110.7719055 | E82: 106.2203886 | F82: 106.7873874 | G82: 113.6114238 | H82: 104.3767539 | I82: 103.1642954 | J82: 113.1993543
B83: 2024-01-05 | C83: 109.8505878 | D83: 111.7588969 | E83: 107.6315972 | F83: 107.8140705 | G83: 114.1640369 | H83: 104.053578 | I83: 103.2094186 | J83: 113.8868787
B84: 2024-01-08 | C84: 111.3833846 | D84: 112.5182236 | E84: 109.6407309 | F84: 109.3080856 | G84: 115.2030206 | H84: 104.3686792 | I84: 103.2545617 | J84: 114.2350533
B85: 2024-01-09 | C85: 111.1407482 | D85: 112.5704027 | E85: 108.5501278 | F85: 109.0625572 | G85: 114.4632221 | H85: 104.7111726 | I85: 103.2997245 | J85: 113.3897194
B86: 2024-01-10 | C86: 111.173019 | D86: 112.2891339 | E86: 108.4015748 | F86: 109.0859978 | G86: 113.8752567 | H86: 104.679649 | I86: 103.344907 | J86: 112.8673972
B87: 2024-01-11 | C87: 110.9618943 | D87: 111.9101084 | E87: 106.7426665 | F87: 108.8709744 | G87: 113.7909456 | H87: 104.3271763 | I87: 103.3901092 | J87: 112.701479
B88: 2024-01-12 | C88: 111.7276538 | D88: 112.1394499 | E88: 107.9960399 | F88: 109.6127376 | G88: 114.6235568 | H88: 106.1750111 | I88: 103.4353313 | J88: 112.9938414
B89: 2024-01-15 | C89: 111.9649621 | D89: 112.932693 | E89: 108.3712857 | F89: 109.8367515 | G89: 115.0587029 | H89: 106.1274904 | I89: 103.4805732 | J89: 113.45383
B90: 2024-01-16 | C90: 110.8513081 | D90: 111.2536104 | E90: 108.2710624 | F90: 108.7379393 | G90: 112.3731954 | H90: 106.3314029 | I90: 103.5258348 | J90: 111.532866
B91: 2024-01-17 | C91: 110.0583008 | D91: 110.5816395 | E91: 106.902812 | F91: 107.952414 | G91: 111.6685885 | H91: 107.5270309 | I91: 103.5711162 | J91: 110.8684601
B92: 2024-01-18 | C92: 109.9723303 | D92: 109.8774588 | E92: 104.8428143 | F92: 107.8599269 | G92: 109.978154 | H92: 107.3290687 | I92: 103.6164175 | J92: 109.8263259
B93: 2024-01-19 | C93: 110.9117518 | D93: 110.3158275 | E93: 105.3340526 | F93: 108.770574 | G93: 110.4216978 | H93: 107.5260049 | I93: 103.6617385 | J93: 110.1022897
B94: 2024-01-22 | C94: 110.2892542 | D94: 109.2872551 | E94: 104.3122987 | F94: 108.1534094 | G94: 108.9829959 | H94: 107.7262621 | I94: 103.7070794 | J94: 109.2102445
B95: 2024-01-23 | C95: 111.7310966 | D95: 110.7458336 | E95: 104.8712108 | F95: 109.5549934 | G95: 110.8693948 | H95: 107.6027083 | I95: 103.75244 | J95: 110.6430464
B96: 2024-01-24 | C96: 111.5549164 | D96: 110.8536116 | E96: 104.5622957 | F96: 109.374777 | G96: 110.4968108 | H96: 105.783887 | I96: 103.7978205 | J96: 110.2576062
B97: 2024-01-25 | C97: 111.8853111 | D97: 110.9467569 | E97: 105.2600866 | F97: 109.6890114 | G97: 111.7177049 | H97: 105.8095569 | I97: 103.8432209 | J97: 110.5621403
B98: 2024-01-26 | C98: 111.9865632 | D98: 110.7391922 | E98: 105.4191582 | F98: 109.7797096 | G98: 112.3195352 | H98: 105.6491362 | I98: 103.8886411 | J98: 111.2510277
B99: 2024-01-29 | C99: 111.3852514 | D99: 110.212832 | E99: 104.626897 | F99: 109.1846056 | G99: 111.176316 | H99: 105.9243206 | I99: 103.9340811 | J99: 110.8501982
B100: 2024-01-30 | C100: 110.5836048 | D100: 109.1969365 | E100: 102.6319768 | F100: 108.3925412 | G100: 109.8881236 | H100: 105.4596414 | I100: 103.9795412 | J100: 109.9005724
B101: 2024-01-31 | C101: 111.416593 | D101: 110.4922376 | E101: 101.9932221 | F101: 109.1970432 | G101: 110.6391086 | H101: 105.5529014 | I101: 104.0250211 | J101: 110.2028982
B102: 2024-02-01 | C102: 112.3761602 | D102: 110.5292044 | E102: 102.8091122 | F102: 110.1222409 | G102: 111.2636017 | H102: 105.2447756 | I102: 104.0686673 | J102: 110.8315309
B103: 2024-02-02 | C103: 111.7114959 | D103: 109.6912459 | E103: 101.0700186 | F103: 109.4683603 | G103: 109.0199553 | H103: 105.6461149 | I103: 104.1123318 | J103: 109.7111735
B104: 2024-02-05 | C104: 111.304614 | D104: 109.4630793 | E104: 99.76145923 | F104: 109.0637682 | G104: 108.065122 | H104: 105.5249716 | I104: 104.1560147 | J104: 110.0659213
B105: 2024-02-06 | C105: 113.2118811 | D105: 111.0957436 | E105: 99.72650898 | F105: 110.8843128 | G105: 110.126754 | H105: 106.6463636 | I105: 104.1997159 | J105: 112.5009694
B106: 2024-02-07 | C106: 113.8172606 | D106: 111.1864651 | E106: 99.46420391 | F106: 111.3608028 | G106: 110.5052022 | H106: 106.5889389 | I106: 104.2434354 | J106: 112.0986303
B107: 2024-02-08 | C107: 112.8750969 | D107: 108.7617736 | E107: 98.52035187 | F107: 110.5633849 | G107: 108.7303211 | H107: 106.445124 | I107: 104.2871732 | J107: 110.6037105
B108: 2024-02-09 | C108: 113.1777677 | D108: 108.7467951 | E108: 98.53811231 | F108: 110.8482257 | G108: 107.7730078 | H108: 106.0359256 | I108: 104.3309294 | J108: 110.4387584
B109: 2024-02-12
B110: 2024-02-13
B111: 2024-02-14 | C111: 112.4953722 | D111: 107.6251235 | E111: 97.14916306 | F111: 110.1802231 | G111: 106.6626326 | H111: 106.0841271 | I111: 104.3747039 | J111: 109.5697367
B112: 2024-02-15 | C112: 112.875257 | D112: 108.27118 | E112: 97.88488828 | F112: 110.5398442 | G112: 107.5760068 | H112: 105.9151346 | I112: 104.4184968 | J112: 110.2476256
B113: 2024-02-16 | C113: 113.3897168 | D113: 109.5830008 | E113: 97.67386618 | F113: 111.0280732 | G113: 108.876167 | H113: 105.8488125 | I113: 104.4623081 | J113: 111.0427544
B114: 2024-02-19 | C114: 113.502266 | D114: 109.7932081 | E114: 97.82924681 | F114: 111.1291852 | G114: 109.597229 | H114: 105.3886291 | I114: 104.5061378 | J114: 111.3100488
B115: 2024-02-20 | C115: 114.7155307 | D115: 111.199512 | E115: 97.72769612 | F115: 112.0977996 | G115: 108.8712765 | H115: 105.8704441 | I115: 104.5499858 | J115: 112.0694821
B116: 2024-02-21 | C116: 114.5309021 | D116: 111.5156394 | E116: 97.0391542 | F116: 111.9591387 | G116: 108.7928076 | H116: 105.9131421 | I116: 104.5938523 | J116: 112.1690899
B117: 2024-02-22 | C117: 114.9949467 | D117: 112.0996632 | E117: 97.80083471 | F117: 112.3288245 | G117: 109.220057 | H117: 106.3857678 | I117: 104.6377371 | J117: 112.3493536
B118: 2024-02-23 | C118: 114.0947187 | D118: 111.279247 | E118: 96.64353693 | F118: 111.6283583 | G118: 108.236391 | H118: 106.3813411 | I118: 104.6816403 | J118: 111.6404273
B119: 2024-02-26 | C119: 113.8504442 | D119: 111.2277211 | E119: 96.99891952 | F119: 111.4261484 | G119: 108.6182708 | H119: 106.2772025 | I119: 104.725562 | J119: 111.804603
B120: 2024-02-27 | C120: 115.7846794 | D120: 114.8243279 | E120: 98.81986385 | F120: 112.9658488 | G120: 111.3375236 | H120: 106.3961886 | I120: 104.7695022 | J120: 113.5991486
B121: 2024-02-28 | C121: 115.0963099 | D121: 114.6919047 | E121: 98.45969614 | F121: 112.4370889 | G121: 109.3941558 | H121: 107.2042139 | I121: 104.8134608 | J121: 112.2759266
B122: 2024-02-29 | C122: 114.828781 | D122: 114.1148652 | E122: 97.4856173 | F122: 112.2333867 | G122: 108.6386175 | H122: 106.7189558 | I122: 104.8574378 | J122: 111.2964883
B123: 2024-03-01 | C123: 115.1380429 | D123: 114.4174561 | E123: 98.10835006 | F123: 112.4831165 | G123: 109.6484534 | H123: 107.0867888 | I123: 104.9014333 | J123: 111.4348109
B124: 2024-03-04 | C124: 114.2954611 | D124: 113.7429538 | E124: 96.42924793 | F124: 111.8143336 | G124: 108.6940802 | H124: 106.0805169 | I124: 104.9454473 | J124: 110.7103487
B125: 2024-03-05 | C125: 114.5040639 | D125: 114.2076348 | E125: 96.02811426 | F125: 111.9956626 | G125: 108.7787158 | H125: 106.7272468 | I125: 104.9894797 | J125: 110.5012214
B126: 2024-03-06 | C126: 115.0393508 | D126: 114.7806508 | E126: 96.6741067 | F126: 112.4241799 | G126: 108.8644764 | H126: 107.085448 | I126: 105.0335305 | J126: 111.1845276
B127: 2024-03-07 | C127: 114.5500158 | D127: 114.8266232 | E127: 96.54782045 | F127: 112.0371845 | G127: 108.7238424 | H127: 107.1362424 | I127: 105.0775998 | J127: 110.7096759
B128: 2024-03-08 | C128: 114.9133624 | D128: 114.818517 | E128: 96.70493194 | F128: 112.3373234 | G128: 106.5404389 | H128: 108.6518905 | I128: 105.1216877 | J128: 109.6150248
B129: 2024-03-11 | C129: 114.2440352 | D129: 114.7613624 | E129: 97.16286098 | F129: 111.727429 | G129: 105.5746429 | H129: 108.4261031 | I129: 105.165794 | J129: 108.7979162
B130: 2024-03-12 | C130: 115.68461 | D130: 114.8385228 | E130: 98.63265155 | F130: 112.9628847 | G130: 107.2213022 | H130: 109.6469031 | I130: 105.2099188 | J130: 110.1300578
B131: 2024-03-13 | C131: 116.3611951 | D131: 114.8421599 | E131: 99.16571602 | F131: 113.4997842 | G131: 107.8296774 | H131: 110.3230815 | I131: 105.2540621 | J131: 110.4218077
B132: 2024-03-14 | C132: 116.1816006 | D132: 114.8024347 | E132: 98.74913424 | F132: 113.366291 | G132: 107.0341578 | H132: 110.2596001 | I132: 105.2982239 | J132: 110.1491478
B133: 2024-03-15 | C133: 115.2300936 | D133: 114.3289501 | E133: 97.27193958 | F133: 112.6235304 | G133: 105.0900559 | H133: 109.8335926 | I133: 105.3424043 | J133: 109.3312369
B134: 2024-03-18 | C134: 114.9574855 | D134: 114.1663086 | E134: 97.24617561 | F134: 112.3756283 | G134: 106.394927 | H134: 110.4975684 | I134: 105.3866033 | J134: 109.5144336
B135: 2024-03-19 | C135: 115.5180827 | D135: 114.3086586 | E135: 96.96861824 | F135: 112.8517098 | G135: 106.1459074 | H135: 110.8865753 | I135: 105.4308208 | J135: 110.0101609
B136: 2024-03-20 | C136: 117.1049342 | D136: 115.1893412 | E136: 98.62073232 | F136: 114.0978978 | G136: 108.4365369 | H136: 110.9237356 | I136: 105.4750568 | J136: 111.3869005
B137: 2024-03-21 | C137: 116.8248795 | D137: 114.804732 | E137: 98.28983897 | F137: 113.8793709 | G137: 106.0853463 | H137: 110.8927599 | I137: 105.5174235 | J137: 110.553376
B138: 2024-03-22 | C138: 116.0193552 | D138: 114.0840237 | E138: 96.65530601 | F138: 113.2474506 | G138: 105.5421045 | H138: 110.3621471 | I138: 105.5598072 | J138: 109.5773365
B139: 2024-03-25 | C139: 115.932668 | D139: 113.7519995 | E139: 95.99910838 | F139: 113.1792158 | G139: 104.9835736 | H139: 110.1850732 | I139: 105.602208 | J139: 109.4948432
B140: 2024-03-26 | C140: 115.8906928 | D140: 113.7548635 | E140: 96.11692996 | F140: 113.1461875 | G140: 103.5411376 | H140: 110.8743848 | I140: 105.6446259 | J140: 109.4357962
B141: 2024-03-27 | C141: 116.4579421 | D141: 114.6573542 | E141: 96.85016837 | F141: 113.5965233 | G141: 104.3237975 | H141: 109.9495688 | I141: 105.6870608 | J141: 110.1497085
B142: 2024-03-28 | C142: 116.6531569 | D142: 114.7662549 | E142: 97.23408872 | F142: 113.7505922 | G142: 104.5740901 | H142: 110.8590341 | I142: 105.7295127 | J142: 110.5081139
B143: 2024-03-29
B144: 2024-04-01 | C144: 115.9652576 | D144: 114.2468448 | E144: 97.4826267 | F144: 113.2085198 | G144: 103.753056 | H144: 110.6978306 | I144: 105.7719817 | J144: 109.5457211
B145: 2024-04-02 | C145: 115.8942713 | D145: 114.2878249 | E145: 97.62834059 | F145: 113.15257 | G145: 104.0508642 | H145: 110.2103042 | I145: 105.8144678 | J145: 110.0271288
B146: 2024-04-03 | C146: 115.7301337 | D146: 114.1557401 | E146: 97.44320613 | F146: 113.022132 | G146: 102.9682691 | H146: 110.5476254 | I146: 105.8569709 | J146: 109.8286119
B147: 2024-04-04 | C147: 116.0431278 | D147: 114.089213 | E147: 97.7912468 | F147: 113.2713355 | G147: 103.3706091 | H147: 110.6234889 | I147: 105.899491 | J147: 109.9227593
B148: 2024-04-05 | C148: 115.7655225 | D148: 113.8372693 | E148: 97.81518408 | F148: 113.0461705 | G148: 102.3871195 | H148: 110.7962328 | I148: 105.9420282 | J148: 109.3774739
B149: 2024-04-08 | C149: 116.459796 | D149: 114.8589627 | E149: 99.16644346 | F149: 113.6021472 | G149: 105.0780407 | H149: 110.5930293 | I149: 105.9845825 | J149: 111.1560004
B150: 2024-04-09 | C150: 117.2153171 | D150: 115.168314 | E150: 99.91883554 | F150: 114.1960617 | G150: 106.0729719 | H150: 114.0203793 | I150: 106.0271539 | J150: 112.047278
B151: 2024-04-10 | C151: 115.3206552 | D151: 114.2114833 | E151: 98.11592147 | F151: 112.5929146 | G151: 105.0023889 | H151: 114.4250863 | I151: 106.0697424 | J151: 110.4629466
B152: 2024-04-11 | C152: 114.5194428 | D152: 113.88887 | E152: 97.97767749 | F152: 111.8096776 | G152: 104.0513621 | H152: 114.1495703 | I152: 106.112348 | J152: 109.8958625
B153: 2024-04-12 | C153: 113.7228622 | D153: 112.0255006 | E153: 96.14173601 | F153: 111.0278091 | G153: 101.8823434 | H153: 114.1043654 | I153: 106.1549707 | J153: 108.6448253
B154: 2024-04-15 | C154: 112.3167371 | D154: 110.711785 | E154: 93.9822841 | F154: 109.6471377 | G154: 100.5331992 | H154: 114.5105109 | I154: 106.1976106 | J154: 108.1167234
B155: 2024-04-16 | C155: 111.8111763 | D155: 109.9064424 | E155: 92.85581457 | F155: 109.1451363 | G155: 99.42865665 | H155: 114.746713 | I155: 106.2402675 | J155: 107.3013056
B156: 2024-04-17 | C156: 111.4103037 | D156: 109.5655738 | E156: 92.12932629 | F156: 108.74538 | G156: 99.49528055 | H156: 113.9976155 | I156: 106.2829416 | J156: 107.1137095
B157: 2024-04-18 | C157: 111.3700277 | D157: 108.9671222 | E157: 92.19883083 | F157: 108.6977937 | G157: 99.1435317 | H157: 114.1362609 | I157: 106.3256329 | J157: 107.1353011
B158: 2024-04-19 | C158: 112.3685933 | D158: 109.5480213 | E158: 92.32629015 | F158: 109.662758 | G158: 100.575695 | H158: 113.4859588 | I158: 106.3683413 | J158: 107.9359249
B159: 2024-04-22 | C159: 112.9933658 | D159: 109.6315296 | E159: 92.55185011 | F159: 110.261527 | G159: 101.2037646 | H159: 113.3723814 | I159: 106.4110668 | J159: 108.3231248
B160: 2024-04-23 | C160: 112.9242598 | D160: 109.4121219 | E160: 93.20195905 | F160: 110.186195 | G160: 100.0018434 | H160: 113.1114905 | I160: 106.4538095 | J160: 107.9564296
B161: 2024-04-24 | C161: 112.1638097 | D161: 109.3796851 | E161: 92.79987429 | F161: 109.4383349 | G161: 99.96886389 | H161: 112.875034 | I161: 106.4965693 | J161: 107.6050116
B162: 2024-04-25 | C162: 111.8110663 | D162: 108.4481255 | E162: 92.44915134 | F162: 109.0860269 | G162: 100.0337137 | H162: 113.4179452 | I162: 106.5393464 | J162: 107.5229669
B163: 2024-04-26 | C163: 113.5907336 | D163: 110.150084 | E163: 94.48108743 | F163: 110.8077668 | G163: 101.8069657 | H163: 113.5618406 | I163: 106.5821406 | J163: 109.1453057
B164: 2024-04-29 | C164: 113.5843836 | D164: 110.7370386 | E164: 95.04724813 | F164: 110.7935277 | G164: 102.9918237 | H164: 113.6053021 | I164: 106.624952 | J164: 109.8574237
B165: 2024-04-30 | C165: 112.441189 | D165: 109.431615 | E165: 94.14710049 | F165: 109.6751579 | G165: 100.8952143 | H165: 113.9685724 | I165: 106.6677806 | J165: 108.6259337
B166: 2024-05-01
B167: 2024-05-02 | C167: 113.9204612 | D167: 110.6847784 | E167: 95.20648546 | F167: 111.102168 | G167: 102.8391052 | H167: 113.2576691 | I167: 106.7106265 | J167: 109.6594157
B168: 2024-05-03 | C168: 115.5251065 | D168: 112.0000504 | E168: 97.58498866 | F168: 112.6408747 | G168: 104.8384839 | H168: 113.3621922 | I168: 106.7534895 | J168: 110.8553826
B169: 2024-05-06 | C169: 115.1263694 | D169: 111.4151435 | E169: 97.38376197 | F169: 112.2497895 | G169: 104.2613614 | H169: 113.3932096 | I169: 106.7963697 | J169: 110.8183068
B170: 2024-05-07 | C170: 115.5094506 | D170: 110.7970976 | E170: 99.06447497 | F170: 112.609771 | G170: 105.4295784 | H170: 113.4203317 | I170: 106.8392672 | J170: 111.4607847
B171: 2024-05-08 | C171: 115.3926442 | D171: 111.1706776 | E171: 99.78794049 | F171: 112.4900108 | G171: 106.1323923 | H171: 110.9317518 | I171: 106.8821819 | J171: 111.6940484
B172: 2024-05-09 | C172: 114.5685228 | D172: 110.0538532 | E172: 99.29262472 | F172: 111.6897996 | G172: 105.3220058 | H172: 111.0680805 | I172: 106.9241541 | J172: 110.5790565
B173: 2024-05-10 | C173: 114.5964644 | D173: 109.6580007 | E173: 98.29225245 | F173: 111.7092053 | G173: 103.2857434 | H173: 111.2957946 | I173: 106.9661428 | J173: 110.0711661
B174: 2024-05-13 | C174: 114.3638697 | D174: 109.5620564 | E174: 98.01074056 | F174: 111.476521 | G174: 103.8022102 | H174: 111.9276866 | I174: 107.008148 | J174: 110.5501153
B175: 2024-05-14 | C175: 114.6277389 | D175: 110.295175 | E175: 99.16150119 | F175: 111.7234877 | G175: 103.619449 | H175: 110.3618496 | I175: 107.0501696 | J175: 110.8612658
B176: 2024-05-15 | C176: 115.3809621 | D176: 111.6126159 | E176: 99.24442601 | F176: 112.4400825 | G176: 103.5046541 | H176: 111.2919737 | I176: 107.0922078 | J176: 110.4403888
B177: 2024-05-16 | C177: 115.6779124 | D177: 111.8317933 | E177: 99.88121633 | F177: 112.7172171 | G177: 103.443595 | H177: 111.5845113 | I177: 107.1342625 | J177: 110.6612478
B178: 2024-05-17 | C178: 115.0718404 | D178: 111.7556388 | E178: 99.91094716 | F178: 112.1276564 | G178: 103.2066726 | H178: 111.0141421 | I178: 107.1763337 | J178: 110.5465957
B179: 2024-05-20 | C179: 114.6162621 | D179: 111.7539671 | E179: 99.56933682 | F179: 111.6800997 | G179: 102.9063278 | H179: 111.3520903 | I179: 107.2184214 | J179: 110.2017251
B180: 2024-05-21 | C180: 114.217315 | D180: 111.7305875 | E180: 99.19854711 | F180: 111.2860702 | G180: 102.6480976 | H180: 111.3004177 | I180: 107.2605256 | J180: 109.9089745
B181: 2024-05-22 | C181: 112.1488924 | D181: 109.6620804 | E181: 96.77995822 | F181: 109.2674675 | G181: 101.1812121 | H181: 111.3498278 | I181: 107.3026463 | J181: 108.3894352
B182: 2024-05-23 | C182: 111.9935672 | D182: 108.8079015 | E182: 95.46719348 | F182: 109.1077452 | G182: 100.2281592 | H182: 110.2873573 | I182: 107.3447836 | J182: 107.5952725
B183: 2024-05-24 | C183: 112.1568178 | D183: 108.5934714 | E183: 95.44352418 | F183: 109.2584949 | G183: 99.12486768 | H183: 110.051869 | I183: 107.3869374 | J183: 107.2296642
B184: 2024-05-27 | C184: 112.2296154 | D184: 108.8099518 | E184: 95.19131848 | F184: 109.3211349 | G184: 99.30672449 | H184: 109.9341949 | I184: 107.4291078 | J184: 107.3936587
B185: 2024-05-28 | C185: 111.5590085 | D185: 108.3481182 | E185: 94.62285779 | F185: 108.6592146 | G185: 97.75347033 | H185: 109.0249788 | I185: 107.4712948 | J185: 106.7758951
B186: 2024-05-29 | C186: 110.7487594 | D186: 107.6900994 | E186: 93.76967663 | F186: 107.8610559 | G186: 97.27659724 | H186: 109.5754814 | I186: 107.5134984 | J186: 105.8509319
B187: 2024-05-30
B188: 2024-05-31 | C188: 110.2511675 | D188: 107.3937613 | E188: 92.65877588 | F188: 107.3677905 | G188: 97.35154006 | H188: 110.1937199 | I188: 107.5557185 | J188: 105.3254266
B189: 2024-06-03 | C189: 110.5245456 | D189: 107.710706 | E189: 92.33727613 | F189: 107.626036 | G189: 97.14662344 | H189: 110.1282816 | I189: 107.5979552 | J189: 105.2680531
B190: 2024-06-04 | C190: 110.5818739 | D190: 107.5140971 | E190: 91.97064509 | F190: 107.6737446 | G190: 95.66667039 | H190: 111.130306 | I190: 107.6402085 | J190: 105.0700623
B191: 2024-06-05 | C191: 110.5607871 | D191: 106.8489602 | E191: 91.45775353 | F191: 107.6450612 | G191: 95.51102765 | H191: 111.4283008 | I191: 107.6824784 | J191: 104.7295566
B192: 2024-06-06 | C192: 111.745882 | D192: 108.0160657 | E192: 92.46815251 | F192: 108.7856677 | G192: 97.47048183 | H192: 110.9226757 | I192: 107.7247649 | J192: 106.0161427
B193: 2024-06-07 | C193: 110.0384461 | D193: 106.3017948 | E193: 91.12220738 | F193: 107.1210152 | G193: 94.33496126 | H193: 112.5406243 | I193: 107.767068 | J193: 104.1773529
B194: 2024-06-10 | C194: 109.4067641 | D194: 105.6990339 | E194: 90.31544341 | F194: 106.4981238 | G194: 94.23531058 | H194: 112.890963 | I194: 107.8093877 | J194: 104.1707279
B195: 2024-06-11 | C195: 110.3482085 | D195: 106.3712811 | E195: 90.50592195 | F195: 107.4062323 | G195: 96.01308441 | H195: 112.9758408 | I195: 107.851724 | J195: 104.9260032
B196: 2024-06-12 | C196: 108.8692262 | D196: 105.179294 | E196: 89.65763974 | F196: 105.9587349 | G196: 92.9349676 | H196: 113.0240657 | I196: 107.894077 | J196: 103.460361
B197: 2024-06-13 | C197: 108.4095675 | D197: 104.7545437 | E197: 88.50251395 | F197: 105.5033548 | G197: 92.29849083 | H197: 112.7196258 | I197: 107.9364466 | J197: 103.1424906
B198: 2024-06-14 | C198: 108.9163838 | D198: 105.1017977 | E198: 88.60266076 | F198: 105.9883418 | G198: 92.38170532 | H198: 113.1020837 | I198: 107.9788327 | J198: 103.224311
B199: 2024-06-17 | C199: 107.4827122 | D199: 104.4002297 | E199: 87.18396184 | F199: 104.5849735 | G199: 90.90038783 | H199: 113.0199572 | I199: 108.0212356 | J199: 102.7718446
B200: 2024-06-18 | C200: 107.4675179 | D200: 104.5929749 | E200: 87.17119201 | F200: 104.5622381 | G200: 91.78888401 | H200: 113.0605976 | I200: 108.0636551 | J200: 103.1967587
B201: 2024-06-19 | C201: 107.7332441 | D201: 104.9738583 | E201: 87.540622 | F201: 104.8127571 | G201: 92.26374039 | H201: 114.1071448 | I201: 108.1060912 | J201: 103.7409917
B202: 2024-06-20 | C202: 107.6422042 | D202: 104.758637 | E202: 86.76205997 | F202: 104.7163287 | G202: 92.16072434 | H202: 113.8161402 | I202: 108.1485441 | J202: 103.9002072
... 69 more rows
